Body Name,Body,Organisational unit,Service division,Expenditure category,Date,Transacton number,Net amount,Supplier,Narrative
Tendring DC,http://statistics.data.gov.uk/id/local-authority-district/22UN,Corporate Services,1950 - Transport,3062 - Running Costs - Petrol,17/09/2013,2111065-1,112.92,2101825 - Allstar Business Solutions Ltd,Courier Diesel
Tendring DC,http://statistics.data.gov.uk/id/local-authority-district/22UN,Corporate Services,6980 - Essex Family Needs Project,4469 - Other Non - Legal Professional Services,10/09/2013,1054907-1,5713,2103923 - Anglia Ruskin University,SECOND INSTALMENT PAYMENT
Tendring DC,http://statistics.data.gov.uk/id/local-authority-district/22UN,Corporate Services,7025 - CDRP Support,4900 - Grants,17/09/2013,2111016-1,127.24,2100048 - Argos Business Solutions,Borderline Camera Argos
Tendring DC,http://statistics.data.gov.uk/id/local-authority-district/22UN,Corporate Services,1320 - Print Unit Service Unit,4302 - External Print Unit Expenses,03/09/2013,1054699-1,40,2100069 - Autoprint,JOB 273
Tendring DC,http://statistics.data.gov.uk/id/local-authority-district/22UN,Corporate Services,1320 - Print Unit Service Unit,4080 - Materials & Consumables,03/09/2013,1054700-1,152,2100069 - Autoprint,PRINT REQS
Tendring DC,http://statistics.data.gov.uk/id/local-authority-district/22UN,Corporate Services,1100 - Corporate Director (Corporate Services) and Admin Service Unit,4300 - Printing & Stationery,03/09/2013,2110726-1,1.9,REDACTED PERSONAL DATA,REDACTED PERSONAL DATA
Tendring DC,http://statistics.data.gov.uk/id/local-authority-district/22UN,Corporate Services,6580 - Member Support Cost,4300 - Printing & Stationery,03/09/2013,2110727-1,92.32,REDACTED PERSONAL DATA,REDACTED PERSONAL DATA
Tendring DC,http://statistics.data.gov.uk/id/local-authority-district/22UN,Corporate Services,1100 - Corporate Director (Corporate Services) and Admin Service Unit,4300 - Printing & Stationery,03/09/2013,2110727-2,24.86,REDACTED PERSONAL DATA,REDACTED PERSONAL DATA
Tendring DC,http://statistics.data.gov.uk/id/local-authority-district/22UN,Corporate Services,1100 - Corporate Director (Corporate Services) and Admin Service Unit,4300 - Printing & Stationery,03/09/2013,2110728-1,3.8,2100111 - Banner Business Supplies Ltd,Misc Stationery
Tendring DC,http://statistics.data.gov.uk/id/local-authority-district/22UN,Corporate Services,1100 - Corporate Director (Corporate Services) and Admin Service Unit,4300 - Printing & Stationery,03/09/2013,2110729-1,107.03,2100111 - Banner Business Supplies Ltd,Banner
Tendring DC,http://statistics.data.gov.uk/id/local-authority-district/22UN,Corporate Services,1100 - Corporate Director (Corporate Services) and Admin Service Unit,4300 - Printing & Stationery,03/09/2013,2110730-1,27.71,2100111 - Banner Business Supplies Ltd,Banner
Tendring DC,http://statistics.data.gov.uk/id/local-authority-district/22UN,Corporate Services,1100 - Corporate Director (Corporate Services) and Admin Service Unit,4300 - Printing & Stationery,03/09/2013,2110731-1,102.19,2100111 - Banner Business Supplies Ltd,Banner
Tendring DC,http://statistics.data.gov.uk/id/local-authority-district/22UN,Corporate Services,1100 - Corporate Director (Corporate Services) and Admin Service Unit,4300 - Printing & Stationery,10/09/2013,2110898-1,99.82,2100111 - Banner Business Supplies Ltd,Stationery Order
Tendring DC,http://statistics.data.gov.uk/id/local-authority-district/22UN,Corporate Services,1100 - Corporate Director (Corporate Services) and Admin Service Unit,4300 - Printing & Stationery,17/09/2013,2111102-1,81.39,2100111 - Banner Business Supplies Ltd,Banner
Tendring DC,http://statistics.data.gov.uk/id/local-authority-district/22UN,Corporate Services,1120 - Accountancy Service Unit,4040 - Equipment & Tools,24/09/2013,2111130-1,155.56,2100111 - Banner Business Supplies Ltd,Calculator
Tendring DC,http://statistics.data.gov.uk/id/local-authority-district/22UN,Corporate Services,1100 - Corporate Director (Corporate Services) and Admin Service Unit,4300 - Printing & Stationery,24/09/2013,2111133-1,31.4,2100111 - Banner Business Supplies Ltd,Paper & Envelopes
Tendring DC,http://statistics.data.gov.uk/id/local-authority-district/22UN,Corporate Services,6580 - Member Support Cost,4300 - Printing & Stationery,24/09/2013,2111133-2,32.91,2100111 - Banner Business Supplies Ltd,Paper & Envelopes
Tendring DC,http://statistics.data.gov.uk/id/local-authority-district/22UN,Corporate Services,H800 - Structural Repairs,C200 - Main Contractor,02/09/2013,1054819-1,52500,2113311 - Barclays Bank plc,DEPOSIT MONIES FOR TDC PURCHASES OF VICTORIA COURT
Tendring DC,http://statistics.data.gov.uk/id/local-authority-district/22UN,Corporate Services,6460 - Career Track,4753 - Computer - Application Software,10/09/2013,2110862-1,1184,REDACTED PERSONAL DATA,REDACTED PERSONAL DATA
Tendring DC,http://statistics.data.gov.uk/id/local-authority-district/22UN,Corporate Services,1760 - IT Direct Service Costs,4715 - Data Communication Charge,12/09/2013,1055149-1,46.89,2113248 - BT Payment Services Ltd,1625 Sept 13
Tendring DC,http://statistics.data.gov.uk/id/local-authority-district/22UN,Corporate Services,1760 - IT Direct Service Costs,4715 - Data Communication Charge,17/09/2013,1055150-1,45.36,2113248 - BT Payment Services Ltd,8827 SEpt 13
Tendring DC,http://statistics.data.gov.uk/id/local-authority-district/22UN,Corporate Services,1760 - IT Direct Service Costs,4715 - Data Communication Charge,17/09/2013,1055151-1,45.36,2113248 - BT Payment Services Ltd,35267075Q046 SEpt 13
Tendring DC,http://statistics.data.gov.uk/id/local-authority-district/22UN,Corporate Services,1760 - IT Direct Service Costs,4715 - Data Communication Charge,17/09/2013,1055152-1,45.36,2113248 - BT Payment Services Ltd,35267071Q046 Sep 13
Tendring DC,http://statistics.data.gov.uk/id/local-authority-district/22UN,Corporate Services,1760 - IT Direct Service Costs,4715 - Data Communication Charge,03/09/2013,1055153-1,188.93,2113248 - BT Payment Services Ltd,2194 Sep 13
Tendring DC,http://statistics.data.gov.uk/id/local-authority-district/22UN,Corporate Services,1760 - IT Direct Service Costs,4715 - Data Communication Charge,11/09/2013,1055154-1,45.36,2113248 - BT Payment Services Ltd,3347 Sept 13
Tendring DC,http://statistics.data.gov.uk/id/local-authority-district/22UN,Corporate Services,1760 - IT Direct Service Costs,4715 - Data Communication Charge,09/09/2013,1055159-1,121,2113248 - BT Payment Services Ltd,1372 sep13
Tendring DC,http://statistics.data.gov.uk/id/local-authority-district/22UN,Corporate Services,1815 - Personnel and Human Resources Issues,1708 - Training - New Programme Development Courses,24/09/2013,1055087-1,95,2101866 - C.I.E.H.,H&S in Workplace
Tendring DC,http://statistics.data.gov.uk/id/local-authority-district/22UN,Corporate Services,1815 - Personnel and Human Resources Issues,1708 - Training - New Programme Development Courses,24/09/2013,1055087-2,33,2101866 - C.I.E.H.,H&S in Workplace
Tendring DC,http://statistics.data.gov.uk/id/local-authority-district/22UN,Corporate Services,1815 - Personnel and Human Resources Issues,1708 - Training - New Programme Development Courses,24/09/2013,1055087-3,3.95,2101866 - C.I.E.H.,H&S in Workplace
Tendring DC,http://statistics.data.gov.uk/id/local-authority-district/22UN,Corporate Services,1320 - Print Unit Service Unit,4080 - Materials & Consumables,10/09/2013,1054893-1,118.08,2100291 - Canon (UK) Ltd,PAPER
Tendring DC,http://statistics.data.gov.uk/id/local-authority-district/22UN,Corporate Services,1320 - Print Unit Service Unit,4080 - Materials & Consumables,17/09/2013,2110939-1,138.72,2100291 - Canon (UK) Ltd,Specialised Paper
Tendring DC,http://statistics.data.gov.uk/id/local-authority-district/22UN,Corporate Services,1432 - TDC Website,4500 - Consultancy Fees,03/09/2013,1054639-1,2090,2100202 - Capita Business Services Ltd,IP PORTAL
Tendring DC,http://statistics.data.gov.uk/id/local-authority-district/22UN,Corporate Services,9900 - General Fund Balance Sheet,B879 - Charges made by Merchant Acquirer,24/09/2013,2111286-1,30.96,2100202 - Capita Business Services Ltd,Capita Aug 13
Tendring DC,http://statistics.data.gov.uk/id/local-authority-district/22UN,Corporate Services,9900 - General Fund Balance Sheet,B879 - Charges made by Merchant Acquirer,24/09/2013,2111286-2,58.1,2100202 - Capita Business Services Ltd,Capita Aug 13
Tendring DC,http://statistics.data.gov.uk/id/local-authority-district/22UN,Corporate Services,9900 - General Fund Balance Sheet,B879 - Charges made by Merchant Acquirer,24/09/2013,2111286-3,226.98,2100202 - Capita Business Services Ltd,Capita Aug 13
Tendring DC,http://statistics.data.gov.uk/id/local-authority-district/22UN,Corporate Services,9900 - General Fund Balance Sheet,B879 - Charges made by Merchant Acquirer,24/09/2013,2111286-4,589.22,2100202 - Capita Business Services Ltd,Capita Aug 13
Tendring DC,http://statistics.data.gov.uk/id/local-authority-district/22UN,Corporate Services,9900 - General Fund Balance Sheet,B879 - Charges made by Merchant Acquirer,24/09/2013,2111286-5,322.2,2100202 - Capita Business Services Ltd,Capita Aug 13
Tendring DC,http://statistics.data.gov.uk/id/local-authority-district/22UN,Corporate Services,9900 - General Fund Balance Sheet,B879 - Charges made by Merchant Acquirer,24/09/2013,2111286-6,213.39,2100202 - Capita Business Services Ltd,Capita Aug 13
Tendring DC,http://statistics.data.gov.uk/id/local-authority-district/22UN,Corporate Services,9900 - General Fund Balance Sheet,B879 - Charges made by Merchant Acquirer,24/09/2013,2111286-7,333.9,2100202 - Capita Business Services Ltd,Capita Aug 13
Tendring DC,http://statistics.data.gov.uk/id/local-authority-district/22UN,Corporate Services,9900 - General Fund Balance Sheet,B879 - Charges made by Merchant Acquirer,24/09/2013,2111286-8,177,2100202 - Capita Business Services Ltd,Capita Aug 13
Tendring DC,http://statistics.data.gov.uk/id/local-authority-district/22UN,Corporate Services,1815 - Personnel and Human Resources Issues,1520 - Removal Costs - Relocation,03/09/2013,1054659-1,1490.4,2112743 - Catherine Bicknell,RELOCATION EXPENSES CATHERINE BICKNELL
Tendring DC,http://statistics.data.gov.uk/id/local-authority-district/22UN,Corporate Services,1140 - Audit Services Service Unit,1700 - Training - Courses,10/09/2013,1054845-1,1020,2103962 - Chartered Institute of Internal Auditors,IIA COURSE
Tendring DC,http://statistics.data.gov.uk/id/local-authority-district/22UN,Corporate Services,1500 - Planning Development Manager,3300 - Public Transport - Officers,24/09/2013,2111273-1,28.4,REDACTED PERSONAL DATA,REDACTED PERSONAL DATA
Tendring DC,http://statistics.data.gov.uk/id/local-authority-district/22UN,Corporate Services,1930 - Asset Management Service Unit,4469 - Other Non - Legal Professional Services,10/09/2013,1054881-1,895,2109394 - CIPFA Business Ltd,AMP RENEWAL
Tendring DC,http://statistics.data.gov.uk/id/local-authority-district/22UN,Corporate Services,6975 - Community Builder,5500 - Miscellaneous Expenses,24/09/2013,2111344-1,47960,2100247 - Citizens Advice Bureau Tendring,
Tendring DC,http://statistics.data.gov.uk/id/local-authority-district/22UN,Corporate Services,6620 - Corporate Management - General,5190 - Bank Commission Charges,06/09/2013,1055000-1,2,2100269 - Co operative Bank plc,
Tendring DC,http://statistics.data.gov.uk/id/local-authority-district/22UN,Corporate Services,5800 - Brightlingsea Sports Centre,4710 - Telephones - Charges,06/09/2013,1055001-1,30,2100269 - Co operative Bank plc,
Tendring DC,http://statistics.data.gov.uk/id/local-authority-district/22UN,Corporate Services,1760 - IT Direct Service Costs,4715 - Data Communication Charge,06/09/2013,1055001-2,10,2100269 - Co operative Bank plc,
Tendring DC,http://statistics.data.gov.uk/id/local-authority-district/22UN,Corporate Services,6620 - Corporate Management - General,5190 - Bank Commission Charges,06/09/2013,1055001-3,2,2100269 - Co operative Bank plc,
Tendring DC,http://statistics.data.gov.uk/id/local-authority-district/22UN,Corporate Services,1760 - IT Direct Service Costs,4715 - Data Communication Charge,06/09/2013,1055002-1,10.39,2100269 - Co operative Bank plc,
Tendring DC,http://statistics.data.gov.uk/id/local-authority-district/22UN,Corporate Services,6620 - Corporate Management - General,5190 - Bank Commission Charges,06/09/2013,1055002-2,2,2100269 - Co operative Bank plc,
Tendring DC,http://statistics.data.gov.uk/id/local-authority-district/22UN,Corporate Services,9900 - General Fund Balance Sheet,B863 - Bailiff Payments Holding Account,24/09/2013,2111345-1,1607,REDACTED COMMERCIAL CONFIDENTIALITY,REDACTED COMMERCIAL CONFIDENTIALITY
Tendring DC,http://statistics.data.gov.uk/id/local-authority-district/22UN,Corporate Services,6560 - Other Democratic Costs,4110 - General Provisions,26/09/2013,2111355-1,16.62,2100304 - CO-OP Bank,Visa Aug 13
Tendring DC,http://statistics.data.gov.uk/id/local-authority-district/22UN,Corporate Services,6560 - Other Democratic Costs,4110 - General Provisions,24/09/2013,2111284-1,16.62,2101884 - Cooper & Brome (Plumbing & Heating) Ltd,Visa Aug 13
Tendring DC,http://statistics.data.gov.uk/id/local-authority-district/22UN,Corporate Services,6560 - Other Democratic Costs,4110 - General Provisions,25/09/2013,2111353-1,-16.62,2101884 - Cooper & Brome (Plumbing & Heating) Ltd,Reversal of MT input in error
Tendring DC,http://statistics.data.gov.uk/id/local-authority-district/22UN,Corporate Services,6460 - Career Track,4688 - Career Track Exam Fees,10/09/2013,1054872-1,22,REDACTED PERSONAL DATA,REDACTED PERSONAL DATA
Tendring DC,http://statistics.data.gov.uk/id/local-authority-district/22UN,Corporate Services,6460 - Career Track,4688 - Career Track Exam Fees,24/09/2013,1055089-1,22,REDACTED PERSONAL DATA,REDACTED PERSONAL DATA
Tendring DC,http://statistics.data.gov.uk/id/local-authority-district/22UN,Corporate Services,6460 - Career Track,4688 - Career Track Exam Fees,24/09/2013,1055090-1,22,REDACTED PERSONAL DATA,REDACTED PERSONAL DATA
Tendring DC,http://statistics.data.gov.uk/id/local-authority-district/22UN,Corporate Services,6460 - Career Track,4688 - Career Track Exam Fees,17/09/2013,2111027-1,7.5,2103095 - Council for Administration,CFA Cert - JW
Tendring DC,http://statistics.data.gov.uk/id/local-authority-district/22UN,Corporate Services,6460 - Career Track,4688 - Career Track Exam Fees,24/09/2013,7700555-1,22,REDACTED PERSONAL DATA,REDACTED PERSONAL DATA
Tendring DC,http://statistics.data.gov.uk/id/local-authority-district/22UN,Corporate Services,6460 - Career Track,4688 - Career Track Exam Fees,24/09/2013,7700556-1,22,REDACTED PERSONAL DATA,REDACTED PERSONAL DATA
Tendring DC,http://statistics.data.gov.uk/id/local-authority-district/22UN,Corporate Services,1180 - Benefit Fraud Investigation Service Unit,5160 - Advertising,24/09/2013,2111170-1,300,2113364 - CPL Media Ltd,Advertisement
Tendring DC,http://statistics.data.gov.uk/id/local-authority-district/22UN,Corporate Services,9900 - General Fund Balance Sheet,B460 - Criminal Records Bureau,10/09/2013,2110915-1,660,2100395 - Criminal Records Bureau,Criminal Records Check
Tendring DC,http://statistics.data.gov.uk/id/local-authority-district/22UN,Corporate Services,1180 - Benefit Fraud Investigation Service Unit,5500 - Miscellaneous Expenses,03/09/2013,1054695-1,64,2102200 - David Horn Communications Ltd,SERVICE OF IUC MACHINE
Tendring DC,http://statistics.data.gov.uk/id/local-authority-district/22UN,Corporate Services,9890 - Collection Fund - NNDR,R125 - NNDR - Payments to DCLG,10/09/2013,2110910-1,1270300,2100432 - DCLG,NNDR and RSG
Tendring DC,http://statistics.data.gov.uk/id/local-authority-district/22UN,Corporate Services,8984 - Business Rates Tariff and Levy,6990 - Business Rate Tariff and Levy,10/09/2013,2110910-2,534551,2100432 - DCLG,NNDR and RSG
Tendring DC,http://statistics.data.gov.uk/id/local-authority-district/22UN,Corporate Services,9890 - Collection Fund - NNDR,R135 - NNDR - Transitional Relief Settlement,10/09/2013,2110910-3,-12500,2100432 - DCLG,NNDR and RSG
Tendring DC,http://statistics.data.gov.uk/id/local-authority-district/22UN,Corporate Services,9940 - Collection Fund Balance Sheet,B244 - DCLG - NNDR Agency Balance,10/09/2013,2110914-1,170945,2100432 - DCLG,RSG/NNDR
Tendring DC,http://statistics.data.gov.uk/id/local-authority-district/22UN,Corporate Services,7025 - CDRP Support,4900 - Grants,17/09/2013,2111017-1,1150,2112014 - De Vere Cars,De Vere Transport
Tendring DC,http://statistics.data.gov.uk/id/local-authority-district/22UN,Corporate Services,1760 - IT Direct Service Costs,4751 - Hardware & Service Maintenance,03/09/2013,1054753-1,67.31,2102545 - Dell Corporation Ltd,CS100711
Tendring DC,http://statistics.data.gov.uk/id/local-authority-district/22UN,Corporate Services,C350 - Hardware rolling replacement programme,C275 - Hardware,03/09/2013,1054754-1,1180.68,2102545 - Dell Corporation Ltd,CS100668
Tendring DC,http://statistics.data.gov.uk/id/local-authority-district/22UN,Corporate Services,1760 - IT Direct Service Costs,4751 - Hardware & Service Maintenance,24/09/2013,1055130-1,336.55,2102545 - Dell Corporation Ltd,PDU
Tendring DC,http://statistics.data.gov.uk/id/local-authority-district/22UN,Corporate Services,1760 - IT Direct Service Costs,4751 - Hardware & Service Maintenance,24/09/2013,1055131-1,67.89,2102545 - Dell Corporation Ltd,Fixed Rack Equipment Shelf
Tendring DC,http://statistics.data.gov.uk/id/local-authority-district/22UN,Corporate Services,C350 - Hardware rolling replacement programme,C275 - Hardware,24/09/2013,1055132-1,10877.74,2102545 - Dell Corporation Ltd,Laptop
Tendring DC,http://statistics.data.gov.uk/id/local-authority-district/22UN,Corporate Services,C350 - Hardware rolling replacement programme,C275 - Hardware,24/09/2013,1055132-2,1470,2102545 - Dell Corporation Ltd,Laptop
Tendring DC,http://statistics.data.gov.uk/id/local-authority-district/22UN,Corporate Services,1760 - IT Direct Service Costs,4751 - Hardware & Service Maintenance,24/09/2013,1055133-1,134.62,2102545 - Dell Corporation Ltd,PDU
Tendring DC,http://statistics.data.gov.uk/id/local-authority-district/22UN,Corporate Services,9900 - General Fund Balance Sheet,B382 - Rechargeable Works - Other,17/09/2013,2110938-1,100.49,2110672 - Dun & Bradstreet Ltd,D&B
Tendring DC,http://statistics.data.gov.uk/id/local-authority-district/22UN,Corporate Services,1090 - Chief Executive and Support Service Unit,4400 - Maintenance Under Service Agreements,10/09/2013,2110820-1,15.44,2102826 - Eden Springs UK Ltd,Eden Springs
Tendring DC,http://statistics.data.gov.uk/id/local-authority-district/22UN,Corporate Services,H880 - New Build Initiatives and Acquisitions,C200 - Main Contractor,10/09/2013,2110908-1,472500,2109294 - Ellisons Solicitors,Completion monies for TDC purchase of Victoria Court
Tendring DC,http://statistics.data.gov.uk/id/local-authority-district/22UN,Corporate Services,1140 - Audit Services Service Unit,4880 - Subscriptions Paid,10/09/2013,1054911-1,100,2111249 - Essex Audit Group,ESSEX AUDIT GROUP SUBS
Tendring DC,http://statistics.data.gov.uk/id/local-authority-district/22UN,Corporate Services,1180 - Benefit Fraud Investigation Service Unit,5500 - Miscellaneous Expenses,03/09/2013,1054812-1,10,2100429 - Essex County Council,
Tendring DC,http://statistics.data.gov.uk/id/local-authority-district/22UN,Corporate Services,9880 - Collection Fund - Council Tax,R100 - Precept - ECC,24/09/2013,2111293-1,4616471,2100409 - Essex County Council,
Tendring DC,http://statistics.data.gov.uk/id/local-authority-district/22UN,Corporate Services,9880 - Collection Fund - Council Tax,R110 - Council Tax Balance - ECC,24/09/2013,2111293-2,92582,2100409 - Essex County Council,
Tendring DC,http://statistics.data.gov.uk/id/local-authority-district/22UN,Corporate Services,9890 - Collection Fund - NNDR,R127 - NNDR - Essex County Retention,24/09/2013,2111293-3,217766,2100409 - Essex County Council,
Tendring DC,http://statistics.data.gov.uk/id/local-authority-district/22UN,Corporate Services,6683 - Second Homes Discount Scheme,8109 - Second Homes Discount Scheme - ECC Contribution,24/09/2013,2111293-4,-37770,2100409 - Essex County Council,
Tendring DC,http://statistics.data.gov.uk/id/local-authority-district/22UN,Corporate Services,6420 - Cost Of Council Tax Collection,8124 - Contribution - Collection Investment/Hardship Admin.,24/09/2013,2111293-5,-12037,2100409 - Essex County Council,
Tendring DC,http://statistics.data.gov.uk/id/local-authority-district/22UN,Corporate Services,6420 - Cost Of Council Tax Collection,8124 - Contribution - Collection Investment/Hardship Admin.,24/09/2013,2111293-6,-1250,2100409 - Essex County Council,
Tendring DC,http://statistics.data.gov.uk/id/local-authority-district/22UN,Corporate Services,8971 - MIRS - Contributions Payable to the Pension Scheme,1816 - Superannuation Deficiency Contribution,11/09/2013,7009476-3,137750,2100419 - Essex County Council,Pension 00013
Tendring DC,http://statistics.data.gov.uk/id/local-authority-district/22UN,Corporate Services,8971 - MIRS - Contributions Payable to the Pension Scheme,1810 - Superannuation - Financial Strain/Added Years,11/09/2013,7009476-4,17185.87,2100419 - Essex County Council,Pension 00013
Tendring DC,http://statistics.data.gov.uk/id/local-authority-district/22UN,Corporate Services,8971 - MIRS - Contributions Payable to the Pension Scheme,1822 - Superannuation - Port Health Pensions etc.,17/09/2013,7009487-0,800.05,2100419 - Essex County Council,Port Health Authority
Tendring DC,http://statistics.data.gov.uk/id/local-authority-district/22UN,Corporate Services,1300 - Legal Services Service Unit,4880 - Subscriptions Paid,24/09/2013,7009516-1,1057.55,2100498 - Essex County Council,VF ANN FILES MAINT
Tendring DC,http://statistics.data.gov.uk/id/local-authority-district/22UN,Corporate Services,9880 - Collection Fund - Council Tax,R101 - Precept - Essex Fire,24/09/2013,2111292-1,282150,2100469 - Essex Fire Authority,
Tendring DC,http://statistics.data.gov.uk/id/local-authority-district/22UN,Corporate Services,9880 - Collection Fund - Council Tax,R111 - Council Tax Balance - Essex Fire,24/09/2013,2111292-2,5658,2100469 - Essex Fire Authority,
Tendring DC,http://statistics.data.gov.uk/id/local-authority-district/22UN,Corporate Services,9890 - Collection Fund - NNDR,R128 - NNDR - Fire Retention,24/09/2013,2111292-3,24196,2100469 - Essex Fire Authority,
Tendring DC,http://statistics.data.gov.uk/id/local-authority-district/22UN,Corporate Services,6683 - Second Homes Discount Scheme,8109 - Second Homes Discount Scheme - ECC Contribution,24/09/2013,2111292-4,-2106,2100469 - Essex Fire Authority,
Tendring DC,http://statistics.data.gov.uk/id/local-authority-district/22UN,Corporate Services,6420 - Cost Of Council Tax Collection,8124 - Contribution - Collection Investment/Hardship Admin.,24/09/2013,2111292-5,-736,2100469 - Essex Fire Authority,
Tendring DC,http://statistics.data.gov.uk/id/local-authority-district/22UN,Corporate Services,9880 - Collection Fund - Council Tax,R102 - Precept - Essex Police,24/09/2013,2111291-1,601001,2100500 - Essex Police Authority,Precept 160913 POL
Tendring DC,http://statistics.data.gov.uk/id/local-authority-district/22UN,Corporate Services,9880 - Collection Fund - Council Tax,R112 - Council Tax Balance - Essex Police,24/09/2013,2111291-2,11647,2100500 - Essex Police Authority,Precept 160913 POL
Tendring DC,http://statistics.data.gov.uk/id/local-authority-district/22UN,Corporate Services,1660 - Other Apportionable Overheads,4609 - Child Care Vouchers Management Fee,10/09/2013,1054950-2,76.46,REDACTED PERSONAL DATA,REDACTED PERSONAL DATA
Tendring DC,http://statistics.data.gov.uk/id/local-authority-district/22UN,Corporate Services,1815 - Personnel and Human Resources Issues,1708 - Training - New Programme Development Courses,10/09/2013,2110852-1,525,REDACTED PERSONAL DATA,REDACTED PERSONAL DATA
Tendring DC,http://statistics.data.gov.uk/id/local-authority-district/22UN,Corporate Services,1815 - Personnel and Human Resources Issues,1708 - Training - New Programme Development Courses,10/09/2013,2110852-2,45.7,REDACTED PERSONAL DATA,REDACTED PERSONAL DATA
Tendring DC,http://statistics.data.gov.uk/id/local-authority-district/22UN,Corporate Services,1300 - Legal Services Service Unit,4466 - Land Registry Fees,10/09/2013,2110916-1,45,2100636 - HM Land Registry,Land Registry Enquiries
Tendring DC,http://statistics.data.gov.uk/id/local-authority-district/22UN,Corporate Services,4660 - Public Health,5500 - Miscellaneous Expenses,10/09/2013,2110916-2,26,2100636 - HM Land Registry,Land Registry Enquiries
Tendring DC,http://statistics.data.gov.uk/id/local-authority-district/22UN,Corporate Services,"1580 - Benefits, Revenues and Customer Contact SU",4466 - Land Registry Fees,10/09/2013,2110916-3,156,2100636 - HM Land Registry,Land Registry Enquiries
Tendring DC,http://statistics.data.gov.uk/id/local-authority-district/22UN,Corporate Services,4300 - Dangerous Structures,4615 - Hired Services - Building Services,10/09/2013,2110916-4,20,2100636 - HM Land Registry,Land Registry Enquiries
Tendring DC,http://statistics.data.gov.uk/id/local-authority-district/22UN,Corporate Services,1520 - Head of Planning and Customer Services,4624 - Hired Services - Land Registry,10/09/2013,2110916-5,53,2100636 - HM Land Registry,Land Registry Enquiries
Tendring DC,http://statistics.data.gov.uk/id/local-authority-district/22UN,Corporate Services,1930 - Asset Management Service Unit,4469 - Other Non - Legal Professional Services,10/09/2013,2110916-6,192,2100636 - HM Land Registry,Land Registry Enquiries
Tendring DC,http://statistics.data.gov.uk/id/local-authority-district/22UN,Corporate Services,H920 - DFGs,C400 - Grant payments,10/09/2013,2110916-7,72,2100636 - HM Land Registry,Land Registry Enquiries
Tendring DC,http://statistics.data.gov.uk/id/local-authority-district/22UN,Corporate Services,4750 - Housing Disrepair,4080 - Materials & Consumables,10/09/2013,2110916-8,15,2100636 - HM Land Registry,Land Registry Enquiries
Tendring DC,http://statistics.data.gov.uk/id/local-authority-district/22UN,Corporate Services,5140 - Homelessness,4680 - Bed & Breakfast Accommodation,10/09/2013,2110916-9,27,2100636 - HM Land Registry,Land Registry Enquiries
Tendring DC,http://statistics.data.gov.uk/id/local-authority-district/22UN,Corporate Services,H880 - New Build Initiatives and Acquisitions,C200 - Main Contractor,17/09/2013,1055085-1,21000,2113354 - HMRC,PAYMENT OF SDLT FOR TDC PURCHASE OF VICTORIA COURT
Tendring DC,http://statistics.data.gov.uk/id/local-authority-district/22UN,Corporate Services,1100 - Corporate Director (Corporate Services) and Admin Service Unit,1700 - Training - Courses,10/09/2013,2110870-1,95,REDACTED PERSONAL DATA,REDACTED PERSONAL DATA
Tendring DC,http://statistics.data.gov.uk/id/local-authority-district/22UN,Corporate Services,1760 - IT Direct Service Costs,4751 - Hardware & Service Maintenance,24/09/2013,1055135-1,303,2102228 - Incoms Systems PLC,Cleaning Tape
Tendring DC,http://statistics.data.gov.uk/id/local-authority-district/22UN,Corporate Services,1760 - IT Direct Service Costs,4751 - Hardware & Service Maintenance,24/09/2013,1055136-1,248,2102228 - Incoms Systems PLC,Tape Cartridge
Tendring DC,http://statistics.data.gov.uk/id/local-authority-district/22UN,Corporate Services,1760 - IT Direct Service Costs,4751 - Hardware & Service Maintenance,24/09/2013,1055137-1,70,2102228 - Incoms Systems PLC,Connector
Tendring DC,http://statistics.data.gov.uk/id/local-authority-district/22UN,Corporate Services,1100 - Corporate Director (Corporate Services) and Admin Service Unit,4300 - Printing & Stationery,03/09/2013,1054750-1,68.5,2100782 - Insight Direct (uk) Limited,CS100750
Tendring DC,http://statistics.data.gov.uk/id/local-authority-district/22UN,Corporate Services,1100 - Corporate Director (Corporate Services) and Admin Service Unit,4300 - Printing & Stationery,03/09/2013,1054751-1,16.32,2100782 - Insight Direct (uk) Limited,CS100750
Tendring DC,http://statistics.data.gov.uk/id/local-authority-district/22UN,Corporate Services,1760 - IT Direct Service Costs,4751 - Hardware & Service Maintenance,24/09/2013,1055134-1,77.84,2100782 - Insight Direct (uk) Limited,DVD Onve
Tendring DC,http://statistics.data.gov.uk/id/local-authority-district/22UN,Corporate Services,1140 - Audit Services Service Unit,4750 - Computer - Purchase Of Equipment,24/09/2013,1055138-1,513.06,2100782 - Insight Direct (uk) Limited,Monitors
Tendring DC,http://statistics.data.gov.uk/id/local-authority-district/22UN,Corporate Services,1000 - Community Services Service Unit,3311 - Travelling Career Track,03/09/2013,1054655-1,6,REDACTED PERSONAL DATA,REDACTED PERSONAL DATA
Tendring DC,http://statistics.data.gov.uk/id/local-authority-district/22UN,Corporate Services,1150 - Other Corporate Services Mgt & Central Admin Service Unit,3311 - Travelling Career Track,17/09/2013,1055028-1,6,REDACTED PERSONAL DATA,REDACTED PERSONAL DATA
Tendring DC,http://statistics.data.gov.uk/id/local-authority-district/22UN,Corporate Services,H880 - New Build Initiatives and Acquisitions,C200 - Main Contractor,10/09/2013,1054942-1,540,2100651 - Land Registry,LAND REGISTRY FEES-APPLICATION TO REGISTER TRANSFER
Tendring DC,http://statistics.data.gov.uk/id/local-authority-district/22UN,Corporate Services,6460 - Career Track,4355 - Books & Periodicals,24/09/2013,2111240-1,5.4,REDACTED PERSONAL DATA,REDACTED PERSONAL DATA
Tendring DC,http://statistics.data.gov.uk/id/local-authority-district/22UN,Corporate Services,1320 - Print Unit Service Unit,4080 - Materials & Consumables,03/09/2013,1054701-1,103.26,2100864 - Leston Stationery Ltd,ACE/BOXES
Tendring DC,http://statistics.data.gov.uk/id/local-authority-district/22UN,Corporate Services,1320 - Print Unit Service Unit,4080 - Materials & Consumables,03/09/2013,1054702-1,75,2100864 - Leston Stationery Ltd,BUS CARD BOXES
Tendring DC,http://statistics.data.gov.uk/id/local-authority-district/22UN,Corporate Services,1320 - Print Unit Service Unit,4080 - Materials & Consumables,10/09/2013,1054891-1,23.8,2100864 - Leston Stationery Ltd,PAPER
Tendring DC,http://statistics.data.gov.uk/id/local-authority-district/22UN,Corporate Services,1320 - Print Unit Service Unit,4080 - Materials & Consumables,10/09/2013,1054892-1,119.6,2100864 - Leston Stationery Ltd,PAPER
Tendring DC,http://statistics.data.gov.uk/id/local-authority-district/22UN,Corporate Services,1760 - IT Direct Service Costs,6320 - IT Services Agreements Payment,10/09/2013,1054952-1,51622.01,2108077 - Liberata Financial Services Ltd,LIBERATA MAIN CONTRACT PAYMENT AUG 13
Tendring DC,http://statistics.data.gov.uk/id/local-authority-district/22UN,Corporate Services,1760 - IT Direct Service Costs,6320 - IT Services Agreements Payment,17/09/2013,1055080-1,51622.01,2108077 - Liberata Financial Services Ltd,LIBERATA MAIN CONTRACT PAYMENT SEPT 13
Tendring DC,http://statistics.data.gov.uk/id/local-authority-district/22UN,Corporate Services,7025 - CDRP Support,4900 - Grants,03/09/2013,1054757-1,135,2111739 - Love To Eat,BORDERLINE AWARDS BUFFET
Tendring DC,http://statistics.data.gov.uk/id/local-authority-district/22UN,Corporate Services,1815 - Personnel and Human Resources Issues,1707 - Training - Workforce Development Courses,17/09/2013,2111013-1,1950,2113334 - Martin Reddington Associates,EVP Pulse Survey
Tendring DC,http://statistics.data.gov.uk/id/local-authority-district/22UN,Corporate Services,7220 - Election Expenses,4486 - Election Expenses,03/09/2013,2110768-1,100,2109428 - Martin Yale International,Repair of Opener
Tendring DC,http://statistics.data.gov.uk/id/local-authority-district/22UN,Corporate Services,1760 - IT Direct Service Costs,4751 - Hardware & Service Maintenance,03/09/2013,1054755-1,210,2110623 - Midland Computer Services Ltd,CS100782
Tendring DC,http://statistics.data.gov.uk/id/local-authority-district/22UN,Corporate Services,1661 - Other Apportionable Overheads - Corporate Support,4700 - Postage,24/09/2013,2111275-1,1.6,REDACTED PERSONAL DATA,REDACTED PERSONAL DATA
Tendring DC,http://statistics.data.gov.uk/id/local-authority-district/22UN,Corporate Services,1661 - Other Apportionable Overheads - Corporate Support,4700 - Postage,24/09/2013,2111275-2,1.67,REDACTED PERSONAL DATA,REDACTED PERSONAL DATA
Tendring DC,http://statistics.data.gov.uk/id/local-authority-district/22UN,Corporate Services,1760 - IT Direct Service Costs,6325 - Additional Services,03/09/2013,1054752-1,480,2100967 - N Rudelhoff,CS100772
Tendring DC,http://statistics.data.gov.uk/id/local-authority-district/22UN,Corporate Services,6540 - Members Allowance,5160 - Advertising,03/09/2013,1054691-1,600.48,2100989 - Newsquest (London) Ltd,ANNOUNCEMENT DAILY GAZETTE
Tendring DC,http://statistics.data.gov.uk/id/local-authority-district/22UN,Corporate Services,1930 - Asset Management Service Unit,4469 - Other Non - Legal Professional Services,24/09/2013,2111206-1,111,REDACTED PERSONAL DATA,REDACTED PERSONAL DATA
Tendring DC,http://statistics.data.gov.uk/id/local-authority-district/22UN,Corporate Services,1930 - Asset Management Service Unit,4469 - Other Non - Legal Professional Services,24/09/2013,2111207-1,277,REDACTED PERSONAL DATA,REDACTED PERSONAL DATA
Tendring DC,http://statistics.data.gov.uk/id/local-authority-district/22UN,Corporate Services,1930 - Asset Management Service Unit,4469 - Other Non - Legal Professional Services,24/09/2013,2111208-1,277,REDACTED PERSONAL DATA,REDACTED PERSONAL DATA
Tendring DC,http://statistics.data.gov.uk/id/local-authority-district/22UN,Corporate Services,1930 - Asset Management Service Unit,4469 - Other Non - Legal Professional Services,24/09/2013,2111209-1,277,REDACTED PERSONAL DATA,REDACTED PERSONAL DATA
Tendring DC,http://statistics.data.gov.uk/id/local-authority-district/22UN,Corporate Services,1930 - Asset Management Service Unit,4469 - Other Non - Legal Professional Services,24/09/2013,2111210-1,277,REDACTED PERSONAL DATA,REDACTED PERSONAL DATA
Tendring DC,http://statistics.data.gov.uk/id/local-authority-district/22UN,Corporate Services,1930 - Asset Management Service Unit,4469 - Other Non - Legal Professional Services,24/09/2013,2111211-1,277,REDACTED PERSONAL DATA,REDACTED PERSONAL DATA
Tendring DC,http://statistics.data.gov.uk/id/local-authority-district/22UN,Corporate Services,1930 - Asset Management Service Unit,4469 - Other Non - Legal Professional Services,24/09/2013,2111212-1,277,REDACTED PERSONAL DATA,REDACTED PERSONAL DATA
Tendring DC,http://statistics.data.gov.uk/id/local-authority-district/22UN,Corporate Services,1930 - Asset Management Service Unit,4469 - Other Non - Legal Professional Services,24/09/2013,2111213-1,277,REDACTED PERSONAL DATA,REDACTED PERSONAL DATA
Tendring DC,http://statistics.data.gov.uk/id/local-authority-district/22UN,Corporate Services,1930 - Asset Management Service Unit,4469 - Other Non - Legal Professional Services,24/09/2013,2111214-1,277,REDACTED PERSONAL DATA,REDACTED PERSONAL DATA
Tendring DC,http://statistics.data.gov.uk/id/local-authority-district/22UN,Corporate Services,1930 - Asset Management Service Unit,4469 - Other Non - Legal Professional Services,24/09/2013,2111215-1,277,REDACTED PERSONAL DATA,REDACTED PERSONAL DATA
Tendring DC,http://statistics.data.gov.uk/id/local-authority-district/22UN,Corporate Services,1930 - Asset Management Service Unit,4469 - Other Non - Legal Professional Services,24/09/2013,2111216-1,277,REDACTED PERSONAL DATA,REDACTED PERSONAL DATA
Tendring DC,http://statistics.data.gov.uk/id/local-authority-district/22UN,Corporate Services,1930 - Asset Management Service Unit,4469 - Other Non - Legal Professional Services,24/09/2013,2111217-1,420,REDACTED PERSONAL DATA,REDACTED PERSONAL DATA
Tendring DC,http://statistics.data.gov.uk/id/local-authority-district/22UN,Corporate Services,1930 - Asset Management Service Unit,4469 - Other Non - Legal Professional Services,24/09/2013,2111218-1,499,REDACTED PERSONAL DATA,REDACTED PERSONAL DATA
Tendring DC,http://statistics.data.gov.uk/id/local-authority-district/22UN,Corporate Services,1930 - Asset Management Service Unit,4469 - Other Non - Legal Professional Services,24/09/2013,2111219-1,277,REDACTED PERSONAL DATA,REDACTED PERSONAL DATA
Tendring DC,http://statistics.data.gov.uk/id/local-authority-district/22UN,Corporate Services,6460 - Career Track,4688 - Career Track Exam Fees,24/09/2013,1055088-1,80.9,REDACTED PERSONAL DATA,REDACTED PERSONAL DATA
Tendring DC,http://statistics.data.gov.uk/id/local-authority-district/22UN,Corporate Services,1815 - Personnel and Human Resources Issues,1708 - Training - New Programme Development Courses,10/09/2013,2110871-1,270,REDACTED PERSONAL DATA,REDACTED PERSONAL DATA
Tendring DC,http://statistics.data.gov.uk/id/local-authority-district/22UN,Corporate Services,6460 - Career Track,4688 - Career Track Exam Fees,10/09/2013,2110872-1,78.4,REDACTED PERSONAL DATA,REDACTED PERSONAL DATA
Tendring DC,http://statistics.data.gov.uk/id/local-authority-district/22UN,Corporate Services,6460 - Career Track,4688 - Career Track Exam Fees,17/09/2013,2110977-1,78.4,2101071 - OCR,OCR Cand Reg
Tendring DC,http://statistics.data.gov.uk/id/local-authority-district/22UN,Corporate Services,6460 - Career Track,4688 - Career Track Exam Fees,10/09/2013,1054871-1,29,REDACTED PERSONAL DATA,REDACTED PERSONAL DATA
Tendring DC,http://statistics.data.gov.uk/id/local-authority-district/22UN,Corporate Services,6460 - Career Track,4688 - Career Track Exam Fees,10/09/2013,1054873-1,43.5,REDACTED PERSONAL DATA,REDACTED PERSONAL DATA
Tendring DC,http://statistics.data.gov.uk/id/local-authority-district/22UN,Corporate Services,6460 - Career Track,4688 - Career Track Exam Fees,17/09/2013,2111021-1,14.5,2100425 - Pearson,FS Reading
Tendring DC,http://statistics.data.gov.uk/id/local-authority-district/22UN,Corporate Services,6460 - Career Track,4688 - Career Track Exam Fees,17/09/2013,2111022-1,14.5,2100425 - Pearson,FS Maths L2
Tendring DC,http://statistics.data.gov.uk/id/local-authority-district/22UN,Corporate Services,6460 - Career Track,4688 - Career Track Exam Fees,17/09/2013,2111023-1,58,2100425 - Pearson,FS ICT
Tendring DC,http://statistics.data.gov.uk/id/local-authority-district/22UN,Corporate Services,6460 - Career Track,4688 - Career Track Exam Fees,17/09/2013,2111024-1,14.5,2100425 - Pearson,FS Maths L1
Tendring DC,http://statistics.data.gov.uk/id/local-authority-district/22UN,Corporate Services,6460 - Career Track,4688 - Career Track Exam Fees,17/09/2013,2111025-1,43.5,2100425 - Pearson,FS Reading
Tendring DC,http://statistics.data.gov.uk/id/local-authority-district/22UN,Corporate Services,6460 - Career Track,4688 - Career Track Exam Fees,17/09/2013,2111026-1,87,REDACTED PERSONAL DATA,REDACTED PERSONAL DATA
Tendring DC,http://statistics.data.gov.uk/id/local-authority-district/22UN,Corporate Services,1760 - IT Direct Service Costs,4753 - Computer - Application Software,24/09/2013,1055127-1,19791.98,2101038 - Phoenix Software Limited,VMware co-Term
Tendring DC,http://statistics.data.gov.uk/id/local-authority-district/22UN,Corporate Services,"1580 - Benefits, Revenues and Customer Contact SU",4753 - Computer - Application Software,24/09/2013,1055128-1,250.8,2101038 - Phoenix Software Limited,Acrobat Professional
Tendring DC,http://statistics.data.gov.uk/id/local-authority-district/22UN,Corporate Services,1760 - IT Direct Service Costs,4753 - Computer - Application Software,24/09/2013,1055129-1,250.8,2101038 - Phoenix Software Limited,Acrobat Professional
Tendring DC,http://statistics.data.gov.uk/id/local-authority-district/22UN,Corporate Services,1661 - Other Apportionable Overheads - Corporate Support,4700 - Postage,10/09/2013,1054841-1,5050,2104077 - Pitney Bowes Ltd,RE-CREDIT FRANKING MACHINE-CLACTON-PBP A/C 10113561
Tendring DC,http://statistics.data.gov.uk/id/local-authority-district/22UN,Corporate Services,1661 - Other Apportionable Overheads - Corporate Support,4700 - Postage,17/09/2013,1055030-1,5050,2104077 - Pitney Bowes Ltd,RE-CREDIT FRANKING MACHINE-CLACTON-PBP A/C 10113561
Tendring DC,http://statistics.data.gov.uk/id/local-authority-district/22UN,Corporate Services,9900 - General Fund Balance Sheet,B886 - Rail Warrants Allocation Holding Account,24/09/2013,2111294-1,992.5,2101174 - R S P Ltd,Rail Warrants
Tendring DC,http://statistics.data.gov.uk/id/local-authority-district/22UN,Corporate Services,1815 - Personnel and Human Resources Issues,1500 - Advertising - Recruitment,24/09/2013,1055094-1,400,2111177 - Renovo Employment Group,ONLINE Training
Tendring DC,http://statistics.data.gov.uk/id/local-authority-district/22UN,Corporate Services,7220 - Election Expenses,4486 - Election Expenses,03/09/2013,2110769-1,517.82,2101139 - Royal Mail,Electoral Postage
Tendring DC,http://statistics.data.gov.uk/id/local-authority-district/22UN,Corporate Services,7240 - Electoral Registration Expenses,4700 - Postage,10/09/2013,2110816-1,4.26,2101139 - Royal Mail,Electoral Postage
Tendring DC,http://statistics.data.gov.uk/id/local-authority-district/22UN,Corporate Services,7220 - Election Expenses,4486 - Election Expenses,10/09/2013,2110817-1,8.93,2101139 - Royal Mail,Electoral Postage
Tendring DC,http://statistics.data.gov.uk/id/local-authority-district/22UN,Corporate Services,1760 - IT Direct Service Costs,4597 - Hired Services - Payments to Contractors,24/09/2013,1055126-1,900,2103677 - SecureData Europe Ltd,Professional Service onsite
Tendring DC,http://statistics.data.gov.uk/id/local-authority-district/22UN,Corporate Services,1100 - Corporate Director (Corporate Services) and Admin Service Unit,4300 - Printing & Stationery,03/09/2013,1054640-1,72,2101284 - Shaw & Sons Ltd,CREAM WOVEN PAPER
Tendring DC,http://statistics.data.gov.uk/id/local-authority-district/22UN,Corporate Services,1760 - IT Direct Service Costs,5500 - Miscellaneous Expenses,17/09/2013,1055049-1,1.69,2106628 - Tendring District Council,PETTY CASH CORPORATE
Tendring DC,http://statistics.data.gov.uk/id/local-authority-district/22UN,Corporate Services,1100 - Corporate Director (Corporate Services) and Admin Service Unit,4800 - Hospitality,17/09/2013,1055049-10,2.42,2106628 - Tendring District Council,PETTY CASH CORPORATE
Tendring DC,http://statistics.data.gov.uk/id/local-authority-district/22UN,Corporate Services,1220 - Finance and Procurement Manager Service Unit,5500 - Miscellaneous Expenses,17/09/2013,1055049-11,8.12,2106628 - Tendring District Council,PETTY CASH CORPORATE
Tendring DC,http://statistics.data.gov.uk/id/local-authority-district/22UN,Corporate Services,6460 - Career Track,1704 - Training - Travelling,17/09/2013,1055049-12,8,2106628 - Tendring District Council,PETTY CASH CORPORATE
Tendring DC,http://statistics.data.gov.uk/id/local-authority-district/22UN,Corporate Services,1620 - Corporate Performance - IT Section Service Unit,3300 - Public Transport - Officers,17/09/2013,1055049-13,16.4,2106628 - Tendring District Council,PETTY CASH CORPORATE
Tendring DC,http://statistics.data.gov.uk/id/local-authority-district/22UN,Corporate Services,1661 - Other Apportionable Overheads - Corporate Support,9403 - Data Protection Act Fees,17/09/2013,1055049-14,1.7,2106628 - Tendring District Council,PETTY CASH CORPORATE
Tendring DC,http://statistics.data.gov.uk/id/local-authority-district/22UN,Corporate Services,7025 - CDRP Support,4900 - Grants,17/09/2013,1055049-15,2.97,2106628 - Tendring District Council,PETTY CASH CORPORATE
Tendring DC,http://statistics.data.gov.uk/id/local-authority-district/22UN,Corporate Services,7025 - CDRP Support,4900 - Grants,17/09/2013,1055049-16,1.65,2106628 - Tendring District Council,PETTY CASH CORPORATE
Tendring DC,http://statistics.data.gov.uk/id/local-authority-district/22UN,Corporate Services,1760 - IT Direct Service Costs,5500 - Miscellaneous Expenses,17/09/2013,1055049-2,0.83,2106628 - Tendring District Council,PETTY CASH CORPORATE
Tendring DC,http://statistics.data.gov.uk/id/local-authority-district/22UN,Corporate Services,1100 - Corporate Director (Corporate Services) and Admin Service Unit,5500 - Miscellaneous Expenses,17/09/2013,1055049-3,1.64,2106628 - Tendring District Council,PETTY CASH CORPORATE
Tendring DC,http://statistics.data.gov.uk/id/local-authority-district/22UN,Corporate Services,1815 - Personnel and Human Resources Issues,1500 - Advertising - Recruitment,17/09/2013,1055049-4,4.58,2106628 - Tendring District Council,PETTY CASH CORPORATE
Tendring DC,http://statistics.data.gov.uk/id/local-authority-district/22UN,Corporate Services,1815 - Personnel and Human Resources Issues,1600 - Medical Expenses,17/09/2013,1055049-5,10,2106628 - Tendring District Council,PETTY CASH CORPORATE
Tendring DC,http://statistics.data.gov.uk/id/local-authority-district/22UN,Corporate Services,1100 - Corporate Director (Corporate Services) and Admin Service Unit,4300 - Printing & Stationery,17/09/2013,1055049-6,12.92,2106628 - Tendring District Council,PETTY CASH CORPORATE
Tendring DC,http://statistics.data.gov.uk/id/local-authority-district/22UN,Corporate Services,7025 - CDRP Support,4900 - Grants,17/09/2013,1055049-7,2.48,2106628 - Tendring District Council,PETTY CASH CORPORATE
Tendring DC,http://statistics.data.gov.uk/id/local-authority-district/22UN,Corporate Services,7025 - CDRP Support,4900 - Grants,17/09/2013,1055049-8,1.6,2106628 - Tendring District Council,PETTY CASH CORPORATE
Tendring DC,http://statistics.data.gov.uk/id/local-authority-district/22UN,Corporate Services,1100 - Corporate Director (Corporate Services) and Admin Service Unit,3300 - Public Transport - Officers,17/09/2013,1055049-9,8,2106628 - Tendring District Council,PETTY CASH CORPORATE
Tendring DC,http://statistics.data.gov.uk/id/local-authority-district/22UN,Corporate Services,6620 - Corporate Management - General,4883 - FRC Levy,03/09/2013,1054694-1,368,2110711 - The Financial Reporting Council,PREPARERS LEVY 1/4/13 TO 31/3/14
Tendring DC,http://statistics.data.gov.uk/id/local-authority-district/22UN,Corporate Services,1100 - Corporate Director (Corporate Services) and Admin Service Unit,4355 - Books & Periodicals,17/09/2013,2110942-1,145,2111580 - Thomson Reuters,Schofields Election Law
Tendring DC,http://statistics.data.gov.uk/id/local-authority-district/22UN,Corporate Services,1100 - Corporate Director (Corporate Services) and Admin Service Unit,4355 - Books & Periodicals,17/09/2013,2110942-2,145,2111580 - Thomson Reuters,Schofields Election Law
Tendring DC,http://statistics.data.gov.uk/id/local-authority-district/22UN,Corporate Services,1180 - Benefit Fraud Investigation Service Unit,5500 - Miscellaneous Expenses,03/09/2013,1054761-1,41.65,2101679 - TNT UK Ltd,TNT EXPRESS
Tendring DC,http://statistics.data.gov.uk/id/local-authority-district/22UN,Corporate Services,1200 - Exchequer Service Unit,4753 - Computer - Application Software,10/09/2013,1054953-1,54,2108181 - Twofold Ltd,SEALER ROLLERS
Tendring DC,http://statistics.data.gov.uk/id/local-authority-district/22UN,Corporate Services,1760 - IT Direct Service Costs,4751 - Hardware & Service Maintenance,03/09/2013,1054704-1,16.85,2101521 - Videk Limited,
Tendring DC,http://statistics.data.gov.uk/id/local-authority-district/22UN,Corporate Services,1760 - IT Direct Service Costs,4751 - Hardware & Service Maintenance,03/09/2013,1054705-1,9.9,2101521 - Videk Limited,CS100755
Tendring DC,http://statistics.data.gov.uk/id/local-authority-district/22UN,Corporate Services,1760 - IT Direct Service Costs,4751 - Hardware & Service Maintenance,03/09/2013,1054706-1,72.7,2101521 - Videk Limited,CS100765
Tendring DC,http://statistics.data.gov.uk/id/local-authority-district/22UN,Corporate Services,7040 - Civic Ceremonial Expenses,4080 - Materials & Consumables,17/09/2013,2111113-1,63,2101522 - Vodafone Corporate,
Tendring DC,http://statistics.data.gov.uk/id/local-authority-district/22UN,Corporate Services,1330 - Human Resources Service Unit,4716 - Mobile Telephone Costs,17/09/2013,2111113-10,236.37,2101522 - Vodafone Corporate,
Tendring DC,http://statistics.data.gov.uk/id/local-authority-district/22UN,Corporate Services,1370 - Streets & Seafronts Service Unit,4716 - Mobile Telephone Costs,17/09/2013,2111113-11,-14.63,2101522 - Vodafone Corporate,
Tendring DC,http://statistics.data.gov.uk/id/local-authority-district/22UN,Corporate Services,1620 - Corporate Performance - IT Section Service Unit,4716 - Mobile Telephone Costs,17/09/2013,2111113-12,372.03,2101522 - Vodafone Corporate,
Tendring DC,http://statistics.data.gov.uk/id/local-authority-district/22UN,Corporate Services,6460 - Career Track,4716 - Mobile Telephone Costs,17/09/2013,2111113-13,327.4,2101522 - Vodafone Corporate,
Tendring DC,http://statistics.data.gov.uk/id/local-authority-district/22UN,Corporate Services,6540 - Members Allowance,4716 - Mobile Telephone Costs,17/09/2013,2111113-14,-27.28,2101522 - Vodafone Corporate,
Tendring DC,http://statistics.data.gov.uk/id/local-authority-district/22UN,Corporate Services,6540 - Members Allowance,4716 - Mobile Telephone Costs,17/09/2013,2111113-15,130.32,2101522 - Vodafone Corporate,
Tendring DC,http://statistics.data.gov.uk/id/local-authority-district/22UN,Corporate Services,7716 - Jaywick Team,4716 - Mobile Telephone Costs,17/09/2013,2111113-16,-2.34,2101522 - Vodafone Corporate,
Tendring DC,http://statistics.data.gov.uk/id/local-authority-district/22UN,Corporate Services,7716 - Jaywick Team,4716 - Mobile Telephone Costs,17/09/2013,2111113-17,52.38,2101522 - Vodafone Corporate,
Tendring DC,http://statistics.data.gov.uk/id/local-authority-district/22UN,Corporate Services,1040 - Regeneration Service Unit,4716 - Mobile Telephone Costs,17/09/2013,2111113-2,-14.7,2101522 - Vodafone Corporate,
Tendring DC,http://statistics.data.gov.uk/id/local-authority-district/22UN,Corporate Services,1090 - Chief Executive and Support Service Unit,4716 - Mobile Telephone Costs,17/09/2013,2111113-3,68.23,2101522 - Vodafone Corporate,
Tendring DC,http://statistics.data.gov.uk/id/local-authority-district/22UN,Corporate Services,1090 - Chief Executive and Support Service Unit,4716 - Mobile Telephone Costs,17/09/2013,2111113-4,-12.6,2101522 - Vodafone Corporate,
Tendring DC,http://statistics.data.gov.uk/id/local-authority-district/22UN,Corporate Services,1100 - Corporate Director (Corporate Services) and Admin Service Unit,4716 - Mobile Telephone Costs,17/09/2013,2111113-5,271.25,2101522 - Vodafone Corporate,
Tendring DC,http://statistics.data.gov.uk/id/local-authority-district/22UN,Corporate Services,1180 - Benefit Fraud Investigation Service Unit,4716 - Mobile Telephone Costs,17/09/2013,2111113-6,27.79,2101522 - Vodafone Corporate,
Tendring DC,http://statistics.data.gov.uk/id/local-authority-district/22UN,Corporate Services,1210 - Facilities Management Service Unit,4716 - Mobile Telephone Costs,17/09/2013,2111113-7,-43,2101522 - Vodafone Corporate,
Tendring DC,http://statistics.data.gov.uk/id/local-authority-district/22UN,Corporate Services,1210 - Facilities Management Service Unit,4716 - Mobile Telephone Costs,17/09/2013,2111113-8,31.43,2101522 - Vodafone Corporate,
Tendring DC,http://statistics.data.gov.uk/id/local-authority-district/22UN,Corporate Services,1300 - Legal Services Service Unit,4716 - Mobile Telephone Costs,17/09/2013,2111113-9,81.78,2101522 - Vodafone Corporate,
Tendring DC,http://statistics.data.gov.uk/id/local-authority-district/22UN,Corporate Services,1050 - Leisure Service Unit,4710 - Telephones - Charges,17/09/2013,2111114-1,23.05,2101522 - Vodafone Corporate,
Tendring DC,http://statistics.data.gov.uk/id/local-authority-district/22UN,Corporate Services,1620 - Corporate Performance - IT Section Service Unit,4716 - Mobile Telephone Costs,17/09/2013,2111114-10,-56.13,2101522 - Vodafone Corporate,
Tendring DC,http://statistics.data.gov.uk/id/local-authority-district/22UN,Corporate Services,6460 - Career Track,4716 - Mobile Telephone Costs,17/09/2013,2111114-11,-52.92,2101522 - Vodafone Corporate,
Tendring DC,http://statistics.data.gov.uk/id/local-authority-district/22UN,Corporate Services,1210 - Facilities Management Service Unit,4714 - Telephones - Officers Rentals Reimbursed,17/09/2013,2111114-2,-2.1,2101522 - Vodafone Corporate,
Tendring DC,http://statistics.data.gov.uk/id/local-authority-district/22UN,Corporate Services,1210 - Facilities Management Service Unit,4714 - Telephones - Officers Rentals Reimbursed,17/09/2013,2111114-3,9.9,2101522 - Vodafone Corporate,
Tendring DC,http://statistics.data.gov.uk/id/local-authority-district/22UN,Corporate Services,1090 - Chief Executive and Support Service Unit,4716 - Mobile Telephone Costs,17/09/2013,2111114-4,176.01,2101522 - Vodafone Corporate,
Tendring DC,http://statistics.data.gov.uk/id/local-authority-district/22UN,Corporate Services,1100 - Corporate Director (Corporate Services) and Admin Service Unit,4716 - Mobile Telephone Costs,17/09/2013,2111114-5,-5.2,2101522 - Vodafone Corporate,
Tendring DC,http://statistics.data.gov.uk/id/local-authority-district/22UN,Corporate Services,1180 - Benefit Fraud Investigation Service Unit,4716 - Mobile Telephone Costs,17/09/2013,2111114-6,-4.95,2101522 - Vodafone Corporate,
Tendring DC,http://statistics.data.gov.uk/id/local-authority-district/22UN,Corporate Services,1300 - Legal Services Service Unit,4716 - Mobile Telephone Costs,17/09/2013,2111114-7,-2.25,2101522 - Vodafone Corporate,
Tendring DC,http://statistics.data.gov.uk/id/local-authority-district/22UN,Corporate Services,1330 - Human Resources Service Unit,4716 - Mobile Telephone Costs,17/09/2013,2111114-8,-30.28,2101522 - Vodafone Corporate,
Tendring DC,http://statistics.data.gov.uk/id/local-authority-district/22UN,Corporate Services,"1580 - Benefits, Revenues and Customer Contact SU",4716 - Mobile Telephone Costs,17/09/2013,2111114-9,-15.96,2101522 - Vodafone Corporate,
Tendring DC,http://statistics.data.gov.uk/id/local-authority-district/22UN,Corporate Services,1320 - Print Unit Service Unit,4350 - Photocopier Hire,24/09/2013,2111171-1,1626.45,2101517 - Xerox (UK) Ltd,252 Copies
Tendring DC,http://statistics.data.gov.uk/id/local-authority-district/22UN,Corporate Services,1320 - Print Unit Service Unit,4350 - Photocopier Hire,24/09/2013,2111172-1,471.25,2101517 - Xerox (UK) Ltd,4127 Copies & BC
Tendring DC,http://statistics.data.gov.uk/id/local-authority-district/22UN,Corporate Services,1100 - Corporate Director (Corporate Services) and Admin Service Unit,4300 - Printing & Stationery,03/09/2013,1054638-1,33.63,2107546 - XMA Limited,XMA
Tendring DC,http://statistics.data.gov.uk/id/local-authority-district/22UN,Corporate Services,1100 - Corporate Director (Corporate Services) and Admin Service Unit,4300 - Printing & Stationery,03/09/2013,1054641-1,36.56,2107546 - XMA Limited,XMA
Tendring DC,http://statistics.data.gov.uk/id/local-authority-district/22UN,Corporate Services,1100 - Corporate Director (Corporate Services) and Admin Service Unit,4300 - Printing & Stationery,03/09/2013,1054642-1,47.86,2107546 - XMA Limited,XMA
Tendring DC,http://statistics.data.gov.uk/id/local-authority-district/22UN,Corporate Services,1100 - Corporate Director (Corporate Services) and Admin Service Unit,4300 - Printing & Stationery,03/09/2013,1054643-1,148.4,2107546 - XMA Limited,XMA
Tendring DC,http://statistics.data.gov.uk/id/local-authority-district/22UN,Corporate Services,1100 - Corporate Director (Corporate Services) and Admin Service Unit,4300 - Printing & Stationery,10/09/2013,1054908-1,59.36,2107546 - XMA Limited,PRINT CARTRIDGES
Tendring DC,http://statistics.data.gov.uk/id/local-authority-district/22UN,Corporate Services,1100 - Corporate Director (Corporate Services) and Admin Service Unit,4300 - Printing & Stationery,10/09/2013,1054909-1,88.8,2107546 - XMA Limited,LONGBOW-LJ BLK TONER
Tendring DC,http://statistics.data.gov.uk/id/local-authority-district/22UN,Life Opportunities,1880 - Office Accommodation Expenses,2100 - Building Repairs,24/09/2013,2111152-1,200,2100061 - A R & J Pardoe,AR J Pardoe
Tendring DC,http://statistics.data.gov.uk/id/local-authority-district/22UN,Life Opportunities,1880 - Office Accommodation Expenses,2100 - Building Repairs,24/09/2013,2111152-2,33.33,2100061 - A R & J Pardoe,AR J Pardoe
Tendring DC,http://statistics.data.gov.uk/id/local-authority-district/22UN,Life Opportunities,5480 - HRA - Repair & Maintenance,2073 - Smoke Alarm Service/Testing,03/09/2013,1054815-1,218.04,2111360 - Aaron Services Ltd,GAS SERVICE & REPAIR-NORTH AREA 13/14
Tendring DC,http://statistics.data.gov.uk/id/local-authority-district/22UN,Life Opportunities,5480 - HRA - Repair & Maintenance,2075 - Gas Service Contract Servicing/Testing (Domestic I,03/09/2013,1054815-2,4319.87,2111360 - Aaron Services Ltd,GAS SERVICE & REPAIR-NORTH AREA 13/14
Tendring DC,http://statistics.data.gov.uk/id/local-authority-district/22UN,Life Opportunities,5480 - HRA - Repair & Maintenance,2076 - Gas Service Contract Other Refurbishment/Repairs (,03/09/2013,1054815-3,8006.86,2111360 - Aaron Services Ltd,GAS SERVICE & REPAIR-NORTH AREA 13/14
Tendring DC,http://statistics.data.gov.uk/id/local-authority-district/22UN,Life Opportunities,5480 - HRA - Repair & Maintenance,2073 - Smoke Alarm Service/Testing,17/09/2013,1055078-1,165.9,2111360 - Aaron Services Ltd,GAS SERVICE & REPAIR-NORTH AREA 13/14
Tendring DC,http://statistics.data.gov.uk/id/local-authority-district/22UN,Life Opportunities,5480 - HRA - Repair & Maintenance,2075 - Gas Service Contract Servicing/Testing (Domestic I,17/09/2013,1055078-2,2288.59,2111360 - Aaron Services Ltd,GAS SERVICE & REPAIR-NORTH AREA 13/14
Tendring DC,http://statistics.data.gov.uk/id/local-authority-district/22UN,Life Opportunities,5480 - HRA - Repair & Maintenance,2076 - Gas Service Contract Other Refurbishment/Repairs (,17/09/2013,1055078-3,7526.76,2111360 - Aaron Services Ltd,GAS SERVICE & REPAIR-NORTH AREA 13/14
Tendring DC,http://statistics.data.gov.uk/id/local-authority-district/22UN,Life Opportunities,H920 - DFGs,C400 - Grant payments,17/09/2013,1055076-1,2385.5,REDACTED PERSONAL DATA,REDACTED PERSONAL DATA
Tendring DC,http://statistics.data.gov.uk/id/local-authority-district/22UN,Life Opportunities,5480 - HRA - Repair & Maintenance,2017 - Mechanical Equipment /Extract Fans,17/09/2013,1055021-1,126,REDACTED PERSONAL DATA,REDACTED PERSONAL DATA
Tendring DC,http://statistics.data.gov.uk/id/local-authority-district/22UN,Life Opportunities,8540 - Leisure Centre Clacton,2100 - Building Repairs,24/09/2013,2111334-1,782.25,REDACTED PERSONAL DATA,REDACTED PERSONAL DATA
Tendring DC,http://statistics.data.gov.uk/id/local-authority-district/22UN,Life Opportunities,1880 - Office Accommodation Expenses,2100 - Building Repairs,24/09/2013,7009513-1,485,2101609 - Adcock Refrigeration & Air Conditioning Ltd,ADCOCK
Tendring DC,http://statistics.data.gov.uk/id/local-authority-district/22UN,Life Opportunities,5800 - Brightlingsea Sports Centre,4000 - Furniture,24/09/2013,2111221-1,193,REDACTED PERSONAL DATA,REDACTED PERSONAL DATA
Tendring DC,http://statistics.data.gov.uk/id/local-authority-district/22UN,Life Opportunities,1880 - Office Accommodation Expenses,2500 - Water Services - Metered,17/09/2013,2110980-1,439.97,2112518 - Affinity Water Ltd (East Region),Affinity Water
Tendring DC,http://statistics.data.gov.uk/id/local-authority-district/22UN,Life Opportunities,1880 - Office Accommodation Expenses,2520 - Sewerage & Environmental Charges,17/09/2013,2110980-2,485.72,2112518 - Affinity Water Ltd (East Region),Affinity Water
Tendring DC,http://statistics.data.gov.uk/id/local-authority-district/22UN,Life Opportunities,8510 - Dovercourt Swimming Pool & All Weather Facilities,2510 - Water Services - Unmetered,17/09/2013,2110981-1,708.14,2112518 - Affinity Water Ltd (East Region),Water Aug DSP
Tendring DC,http://statistics.data.gov.uk/id/local-authority-district/22UN,Life Opportunities,8540 - Leisure Centre Clacton,2510 - Water Services - Unmetered,24/09/2013,7700576-1,1101.62,2112518 - Affinity Water Ltd (East Region),WATER AUGUST
Tendring DC,http://statistics.data.gov.uk/id/local-authority-district/22UN,Life Opportunities,"1580 - Benefits, Revenues and Customer Contact SU",4880 - Subscriptions Paid,12/09/2013,1055095-1,998,2109999 - Air Conditioning Solutions (UK) Ltd,CT & NNDR Modules Annual Sub
Tendring DC,http://statistics.data.gov.uk/id/local-authority-district/22UN,Life Opportunities,"1580 - Benefits, Revenues and Customer Contact SU",4880 - Subscriptions Paid,24/09/2013,1055140-1,998,2106864 - Airey Consultancy Services Ltd,CT&NNDR Modules Annual Sub
Tendring DC,http://statistics.data.gov.uk/id/local-authority-district/22UN,Life Opportunities,5480 - HRA - Repair & Maintenance,2017 - Mechanical Equipment /Extract Fans,10/09/2013,2110836-1,766,REDACTED PERSONAL DATA,REDACTED PERSONAL DATA
Tendring DC,http://statistics.data.gov.uk/id/local-authority-district/22UN,Life Opportunities,C021 - Mercury Abatement Equipment and Cremator replacement,C200 - Main Contractor,17/09/2013,2110966-1,1750,2113215 - Allman Woodcock Limited,Weeley Crem
Tendring DC,http://statistics.data.gov.uk/id/local-authority-district/22UN,Life Opportunities,6740 - Careline,3060 - Running Costs - Diesel,24/09/2013,2111125-1,526.94,2101825 - Allstar Business Solutions Ltd,Fuel Cards - Aug
Tendring DC,http://statistics.data.gov.uk/id/local-authority-district/22UN,Life Opportunities,8530 - Brightlingsea Swimming Pool,2100 - Building Repairs,17/09/2013,2110983-1,350,2100096 - Anglia Welding (Fabrications) Co,Anglia Welding
Tendring DC,http://statistics.data.gov.uk/id/local-authority-district/22UN,Life Opportunities,8540 - Leisure Centre Clacton,2520 - Sewerage & Environmental Charges,24/09/2013,7700575-1,29.48,2112315 - Anglian Water Business,29/12/12 - 28/6/13
Tendring DC,http://statistics.data.gov.uk/id/local-authority-district/22UN,Life Opportunities,5240 - HRA - Managing Tenancies,5242 - Tenant Relations,10/09/2013,1054835-1,10,REDACTED PERSONAL DATA,REDACTED PERSONAL DATA
Tendring DC,http://statistics.data.gov.uk/id/local-authority-district/22UN,Life Opportunities,6160 - Princes Theatre,5160 - Advertising,24/09/2013,2111173-1,234,2102337 - Archant Regional Ltd,2 x Adverts 02/08/13
Tendring DC,http://statistics.data.gov.uk/id/local-authority-district/22UN,Life Opportunities,5220 - HRA - Policy & Management,5253 - HRA Health & Safety Expenses,24/09/2013,2111177-1,50.23,2100097 - Arco Ltd,PPE Equipment for PSH 9/9/13
Tendring DC,http://statistics.data.gov.uk/id/local-authority-district/22UN,Life Opportunities,5860 - Manningtree Sports Centre,5311 - General Provisions - Vending,10/09/2013,1054886-1,72,2110110 - Area Vending Services,VENDING MACHINE INGREDIENTS
Tendring DC,http://statistics.data.gov.uk/id/local-authority-district/22UN,Life Opportunities,5860 - Manningtree Sports Centre,4400 - Maintenance Under Service Agreements,10/09/2013,2110826-1,110,2110110 - Area Vending Services,Replacement Coin Mech Vending Machine
Tendring DC,http://statistics.data.gov.uk/id/local-authority-district/22UN,Life Opportunities,5240 - HRA - Managing Tenancies,4312 - Tenancy Stationery,10/09/2013,2110902-1,135.24,2100048 - Argos Business Solutions,
Tendring DC,http://statistics.data.gov.uk/id/local-authority-district/22UN,Life Opportunities,5240 - HRA - Managing Tenancies,4312 - Tenancy Stationery,08/09/2013,2111126-1,-71.24,2100048 - Argos Business Solutions,Sony Camera
Tendring DC,http://statistics.data.gov.uk/id/local-authority-district/22UN,Life Opportunities,5240 - HRA - Managing Tenancies,4312 - Tenancy Stationery,24/09/2013,2111346-1,71.24,2100048 - Argos Business Solutions,Sony Camera
Tendring DC,http://statistics.data.gov.uk/id/local-authority-district/22UN,Life Opportunities,5220 - HRA - Policy & Management,5930 - Business Planning Expenses,03/09/2013,1054712-1,396.67,2112202 - Association of Retained Council Housing,CIH ACCOM
Tendring DC,http://statistics.data.gov.uk/id/local-authority-district/22UN,Life Opportunities,8510 - Dovercourt Swimming Pool & All Weather Facilities,4300 - Printing & Stationery,10/09/2013,1054889-1,15,2100069 - Autoprint,AUTOPRINT POOL
Tendring DC,http://statistics.data.gov.uk/id/local-authority-district/22UN,Life Opportunities,1880 - Office Accommodation Expenses,4080 - Materials & Consumables,03/09/2013,1054628-1,4.98,2100099 - B & Q Trade Account,BQ
Tendring DC,http://statistics.data.gov.uk/id/local-authority-district/22UN,Life Opportunities,1880 - Office Accommodation Expenses,4080 - Materials & Consumables,03/09/2013,1054629-1,19.88,2100099 - B & Q Trade Account,BQ
Tendring DC,http://statistics.data.gov.uk/id/local-authority-district/22UN,Life Opportunities,1880 - Office Accommodation Expenses,4080 - Materials & Consumables,03/09/2013,1054630-1,25.38,2100099 - B & Q Trade Account,BQ
Tendring DC,http://statistics.data.gov.uk/id/local-authority-district/22UN,Life Opportunities,1880 - Office Accommodation Expenses,4080 - Materials & Consumables,10/09/2013,2110864-1,7.72,REDACTED PERSONAL DATA,REDACTED PERSONAL DATA
Tendring DC,http://statistics.data.gov.uk/id/local-authority-district/22UN,Life Opportunities,1880 - Office Accommodation Expenses,4080 - Materials & Consumables,24/09/2013,7009515-1,15.82,2100099 - B & Q Trade Account,B Q
Tendring DC,http://statistics.data.gov.uk/id/local-authority-district/22UN,Life Opportunities,5860 - Manningtree Sports Centre,4040 - Equipment & Tools,03/09/2013,1054697-1,19.14,2106358 - Baker Ross Ltd,ART + CRAFT SUPPLIES
Tendring DC,http://statistics.data.gov.uk/id/local-authority-district/22UN,Life Opportunities,7600 - Tourist Information Centres,4200 - Clothing & Uniforms,03/09/2013,1054782-1,339.47,2109068 - Ballantyne Edwards Ltd,SHIRTS FOR TIC
Tendring DC,http://statistics.data.gov.uk/id/local-authority-district/22UN,Life Opportunities,1565 - Careline / CCTV Service Unit,4300 - Printing & Stationery,10/09/2013,2110896-1,84.46,2100111 - Banner Business Supplies Ltd,Stationery
Tendring DC,http://statistics.data.gov.uk/id/local-authority-district/22UN,Life Opportunities,5360 - HRA - Sheltered Units,4300 - Printing & Stationery,10/09/2013,2110897-1,9.6,2100111 - Banner Business Supplies Ltd,Banner Order 19/8/13
Tendring DC,http://statistics.data.gov.uk/id/local-authority-district/22UN,Life Opportunities,5240 - HRA - Managing Tenancies,4312 - Tenancy Stationery,10/09/2013,2110897-2,111.83,2100111 - Banner Business Supplies Ltd,Banner Order 19/8/13
Tendring DC,http://statistics.data.gov.uk/id/local-authority-district/22UN,Life Opportunities,"1580 - Benefits, Revenues and Customer Contact SU",4300 - Printing & Stationery,10/09/2013,2110899-1,109.7,2100111 - Banner Business Supplies Ltd,Paper
Tendring DC,http://statistics.data.gov.uk/id/local-authority-district/22UN,Life Opportunities,5240 - HRA - Managing Tenancies,4312 - Tenancy Stationery,17/09/2013,2111062-1,61.02,2100111 - Banner Business Supplies Ltd,Banner Order 2/9/13
Tendring DC,http://statistics.data.gov.uk/id/local-authority-district/22UN,Life Opportunities,6160 - Princes Theatre,4040 - Equipment & Tools,17/09/2013,2111062-2,7.22,2100111 - Banner Business Supplies Ltd,Banner Order 2/9/13
Tendring DC,http://statistics.data.gov.uk/id/local-authority-district/22UN,Life Opportunities,"1580 - Benefits, Revenues and Customer Contact SU",4300 - Printing & Stationery,24/09/2013,2111128-1,54.58,2100111 - Banner Business Supplies Ltd,"Pens, Paper, Notebooks, Sticky Notes"
Tendring DC,http://statistics.data.gov.uk/id/local-authority-district/22UN,Life Opportunities,1565 - Careline / CCTV Service Unit,4300 - Printing & Stationery,24/09/2013,2111131-1,12.53,2100111 - Banner Business Supplies Ltd,Banner - Labels & Boxes
Tendring DC,http://statistics.data.gov.uk/id/local-authority-district/22UN,Life Opportunities,1565 - Careline / CCTV Service Unit,4300 - Printing & Stationery,24/09/2013,2111132-1,90.1,2100111 - Banner Business Supplies Ltd,Banner August 13
Tendring DC,http://statistics.data.gov.uk/id/local-authority-district/22UN,Life Opportunities,"1580 - Benefits, Revenues and Customer Contact SU",4300 - Printing & Stationery,24/09/2013,2111134-1,26.06,2100111 - Banner Business Supplies Ltd,Labels/Paper
Tendring DC,http://statistics.data.gov.uk/id/local-authority-district/22UN,Life Opportunities,5240 - HRA - Managing Tenancies,4312 - Tenancy Stationery,24/09/2013,2111135-1,15.61,2100111 - Banner Business Supplies Ltd,Banner Order
Tendring DC,http://statistics.data.gov.uk/id/local-authority-district/22UN,Life Opportunities,5240 - HRA - Managing Tenancies,4312 - Tenancy Stationery,24/09/2013,2111136-1,99.81,2100111 - Banner Business Supplies Ltd,Banner Order 09/09/13
Tendring DC,http://statistics.data.gov.uk/id/local-authority-district/22UN,Life Opportunities,6080 - Shops & Kiosks,2304 - Energy Costs - Electricity,24/09/2013,2111137-1,308.28,2100111 - Banner Business Supplies Ltd,Leis Aug 13
Tendring DC,http://statistics.data.gov.uk/id/local-authority-district/22UN,Life Opportunities,5820 - Harwich Sports Centre,2304 - Energy Costs - Electricity,24/09/2013,2111137-2,436.56,2100111 - Banner Business Supplies Ltd,Leis Aug 13
Tendring DC,http://statistics.data.gov.uk/id/local-authority-district/22UN,Life Opportunities,7600 - Tourist Information Centres,2304 - Energy Costs - Electricity,24/09/2013,2111137-3,12.03,2100111 - Banner Business Supplies Ltd,Leis Aug 13
Tendring DC,http://statistics.data.gov.uk/id/local-authority-district/22UN,Life Opportunities,5960 - Recreation Grounds,2304 - Energy Costs - Electricity,24/09/2013,2111137-4,180.64,2100111 - Banner Business Supplies Ltd,Leis Aug 13
Tendring DC,http://statistics.data.gov.uk/id/local-authority-district/22UN,Life Opportunities,6000 - Beach Hut Sites,2304 - Energy Costs - Electricity,24/09/2013,2111137-5,12.77,2100111 - Banner Business Supplies Ltd,Leis Aug 13
Tendring DC,http://statistics.data.gov.uk/id/local-authority-district/22UN,Life Opportunities,5960 - Recreation Grounds,2304 - Energy Costs - Electricity,24/09/2013,2111137-6,-110.23,2100111 - Banner Business Supplies Ltd,Leis Aug 13
Tendring DC,http://statistics.data.gov.uk/id/local-authority-district/22UN,Life Opportunities,5820 - Harwich Sports Centre,5196 - Credit Card Charges,24/09/2013,2111280-1,19.35,2100141 - Barclaycard Merchant Services,PDQ Barclaycard
Tendring DC,http://statistics.data.gov.uk/id/local-authority-district/22UN,Life Opportunities,5820 - Harwich Sports Centre,5196 - Credit Card Charges,24/09/2013,2111280-2,21.77,2100141 - Barclaycard Merchant Services,PDQ Barclaycard
Tendring DC,http://statistics.data.gov.uk/id/local-authority-district/22UN,Life Opportunities,8540 - Leisure Centre Clacton,5196 - Credit Card Charges,24/09/2013,2111281-1,36.3,2100141 - Barclaycard Merchant Services,August
Tendring DC,http://statistics.data.gov.uk/id/local-authority-district/22UN,Life Opportunities,8540 - Leisure Centre Clacton,5196 - Credit Card Charges,24/09/2013,2111281-2,397.02,2100141 - Barclaycard Merchant Services,August
Tendring DC,http://statistics.data.gov.uk/id/local-authority-district/22UN,Life Opportunities,5800 - Brightlingsea Sports Centre,5300 - Resaleable Items,24/09/2013,2111282-1,-22.4,2100141 - Barclaycard Merchant Services,Barclaycard
Tendring DC,http://statistics.data.gov.uk/id/local-authority-district/22UN,Life Opportunities,5800 - Brightlingsea Sports Centre,5300 - Resaleable Items,24/09/2013,2111282-2,-20.99,2100141 - Barclaycard Merchant Services,Barclaycard
Tendring DC,http://statistics.data.gov.uk/id/local-authority-district/22UN,Life Opportunities,8510 - Dovercourt Swimming Pool & All Weather Facilities,5196 - Credit Card Charges,26/09/2013,2111391-1,56.65,2100141 - Barclaycard Merchant Services,Dovercourt Pool
Tendring DC,http://statistics.data.gov.uk/id/local-authority-district/22UN,Life Opportunities,8510 - Dovercourt Swimming Pool & All Weather Facilities,5196 - Credit Card Charges,26/09/2013,2111391-2,19.35,2100141 - Barclaycard Merchant Services,Dovercourt Pool
Tendring DC,http://statistics.data.gov.uk/id/local-authority-district/22UN,Life Opportunities,5860 - Manningtree Sports Centre,5196 - Credit Card Charges,26/09/2013,2111392-1,19.35,2100141 - Barclaycard Merchant Services,PDQ August
Tendring DC,http://statistics.data.gov.uk/id/local-authority-district/22UN,Life Opportunities,5860 - Manningtree Sports Centre,5196 - Credit Card Charges,26/09/2013,2111392-2,42.86,2100141 - Barclaycard Merchant Services,PDQ August
Tendring DC,http://statistics.data.gov.uk/id/local-authority-district/22UN,Life Opportunities,6160 - Princes Theatre,4622 - Hired Services - Artistes and Production Companies,10/09/2013,1054925-1,8799,2111423 - Barry Collings Entertainments,CHAS & DAVE
Tendring DC,http://statistics.data.gov.uk/id/local-authority-district/22UN,Life Opportunities,8540 - Leisure Centre Clacton,2300 - Energy Costs - Fuel Oil,10/09/2013,1054898-1,1417.5,2112681 - BIRLEM Ltd,2100 LITRES OIL
Tendring DC,http://statistics.data.gov.uk/id/local-authority-district/22UN,Life Opportunities,H805 - Major Refurbishment of Heating,C200 - Main Contractor,17/09/2013,1055079-1,21777.8,2100155 - Blue Flame (Colchester) Ltd,HEATING REFURBISHMENT & UPGRADE CONTRACT
Tendring DC,http://statistics.data.gov.uk/id/local-authority-district/22UN,Life Opportunities,5140 - Homelessness,4683 - Other Homelessness Expenses,17/09/2013,1054990-1,375,REDACTED PERSONAL DATA,REDACTED PERSONAL DATA
Tendring DC,http://statistics.data.gov.uk/id/local-authority-district/22UN,Life Opportunities,7025 - CDRP Support,4900 - Grants,10/09/2013,1054928-1,43.96,2113279 - Booker,CONSUMABLES FOR CHILDRENS TRUST
Tendring DC,http://statistics.data.gov.uk/id/local-authority-district/22UN,Life Opportunities,7025 - CDRP Support,4900 - Grants,10/09/2013,1054928-2,13.76,2113279 - Booker,CONSUMABLES FOR CHILDRENS TRUST
Tendring DC,http://statistics.data.gov.uk/id/local-authority-district/22UN,Life Opportunities,"1580 - Benefits, Revenues and Customer Contact SU",4753 - Computer - Application Software,03/09/2013,1054604-1,563.78,2100116 - Bottomline Technologies,TRANSFORM REFUND PART TERM CONTRACT MINV143949
Tendring DC,http://statistics.data.gov.uk/id/local-authority-district/22UN,Life Opportunities,"1580 - Benefits, Revenues and Customer Contact SU",4753 - Computer - Application Software,03/09/2013,1054703-1,2780.8,2100116 - Bottomline Technologies,TRANSFORM UPGRADE TO V5.1
Tendring DC,http://statistics.data.gov.uk/id/local-authority-district/22UN,Life Opportunities,5240 - HRA - Managing Tenancies,5242 - Tenant Relations,10/09/2013,1054830-1,10,REDACTED PERSONAL DATA,REDACTED PERSONAL DATA
Tendring DC,http://statistics.data.gov.uk/id/local-authority-district/22UN,Life Opportunities,5480 - HRA - Repair & Maintenance,2008 - Responsive Maintenance - Floor Wall And Ceiling Fi,17/09/2013,2110918-1,210,2100117 - Brian Birt Carpets Ltd,Honeycroft
Tendring DC,http://statistics.data.gov.uk/id/local-authority-district/22UN,Life Opportunities,5820 - Harwich Sports Centre,2304 - Energy Costs - Electricity,17/09/2013,2110929-1,334.92,2100118 - British Gas Business,Harwich SC Aug
Tendring DC,http://statistics.data.gov.uk/id/local-authority-district/22UN,Life Opportunities,5860 - Manningtree Sports Centre,2304 - Energy Costs - Electricity,17/09/2013,2110930-1,587.29,2100118 - British Gas Business,M/Tree SC Aug
Tendring DC,http://statistics.data.gov.uk/id/local-authority-district/22UN,Life Opportunities,7600 - Tourist Information Centres,2304 - Energy Costs - Electricity,03/09/2013,1054708-1,587.29,2100197 - British Gas Trading Ltd,ELECTRIC JUN TO AUG 13
Tendring DC,http://statistics.data.gov.uk/id/local-authority-district/22UN,Life Opportunities,5960 - Recreation Grounds,2304 - Energy Costs - Electricity,03/09/2013,1054708-2,89.63,2100197 - British Gas Trading Ltd,ELECTRIC JUN TO AUG 13
Tendring DC,http://statistics.data.gov.uk/id/local-authority-district/22UN,Life Opportunities,5820 - Harwich Sports Centre,2304 - Energy Costs - Electricity,03/09/2013,1054708-3,334.92,2100197 - British Gas Trading Ltd,ELECTRIC JUN TO AUG 13
Tendring DC,http://statistics.data.gov.uk/id/local-authority-district/22UN,Life Opportunities,6080 - Shops & Kiosks,2304 - Energy Costs - Electricity,03/09/2013,1054708-4,36.83,2100197 - British Gas Trading Ltd,ELECTRIC JUN TO AUG 13
Tendring DC,http://statistics.data.gov.uk/id/local-authority-district/22UN,Life Opportunities,7600 - Tourist Information Centres,2304 - Energy Costs - Electricity,03/09/2013,1054708-5,118.42,2100197 - British Gas Trading Ltd,ELECTRIC JUN TO AUG 13
Tendring DC,http://statistics.data.gov.uk/id/local-authority-district/22UN,Life Opportunities,6080 - Shops & Kiosks,2304 - Energy Costs - Electricity,03/09/2013,1054708-6,-12.96,2100197 - British Gas Trading Ltd,ELECTRIC JUN TO AUG 13
Tendring DC,http://statistics.data.gov.uk/id/local-authority-district/22UN,Life Opportunities,7600 - Tourist Information Centres,2304 - Energy Costs - Electricity,03/09/2013,1054708-7,-102.87,2100197 - British Gas Trading Ltd,ELECTRIC JUN TO AUG 13
Tendring DC,http://statistics.data.gov.uk/id/local-authority-district/22UN,Life Opportunities,1880 - Office Accommodation Expenses,2304 - Energy Costs - Electricity,03/09/2013,2110733-1,377.73,2100197 - British Gas Trading Ltd,British Gas
Tendring DC,http://statistics.data.gov.uk/id/local-authority-district/22UN,Life Opportunities,1880 - Office Accommodation Expenses,2304 - Energy Costs - Electricity,03/09/2013,2110733-10,873.96,2100197 - British Gas Trading Ltd,British Gas
Tendring DC,http://statistics.data.gov.uk/id/local-authority-district/22UN,Life Opportunities,1880 - Office Accommodation Expenses,2304 - Energy Costs - Electricity,03/09/2013,2110733-11,867.46,2100197 - British Gas Trading Ltd,British Gas
Tendring DC,http://statistics.data.gov.uk/id/local-authority-district/22UN,Life Opportunities,1880 - Office Accommodation Expenses,2304 - Energy Costs - Electricity,03/09/2013,2110733-12,-112.01,2100197 - British Gas Trading Ltd,British Gas
Tendring DC,http://statistics.data.gov.uk/id/local-authority-district/22UN,Life Opportunities,1880 - Office Accommodation Expenses,2304 - Energy Costs - Electricity,03/09/2013,2110733-2,637.51,2100197 - British Gas Trading Ltd,British Gas
Tendring DC,http://statistics.data.gov.uk/id/local-authority-district/22UN,Life Opportunities,1880 - Office Accommodation Expenses,2304 - Energy Costs - Electricity,03/09/2013,2110733-3,62.33,2100197 - British Gas Trading Ltd,British Gas
Tendring DC,http://statistics.data.gov.uk/id/local-authority-district/22UN,Life Opportunities,1880 - Office Accommodation Expenses,2304 - Energy Costs - Electricity,03/09/2013,2110733-4,108.97,2100197 - British Gas Trading Ltd,British Gas
Tendring DC,http://statistics.data.gov.uk/id/local-authority-district/22UN,Life Opportunities,1860 - Depots General,2304 - Energy Costs - Electricity,03/09/2013,2110733-5,370.42,2100197 - British Gas Trading Ltd,British Gas
Tendring DC,http://statistics.data.gov.uk/id/local-authority-district/22UN,Life Opportunities,1880 - Office Accommodation Expenses,2304 - Energy Costs - Electricity,03/09/2013,2110733-6,232.93,2100197 - British Gas Trading Ltd,British Gas
Tendring DC,http://statistics.data.gov.uk/id/local-authority-district/22UN,Life Opportunities,1860 - Depots General,2304 - Energy Costs - Electricity,03/09/2013,2110733-7,21.64,2100197 - British Gas Trading Ltd,British Gas
Tendring DC,http://statistics.data.gov.uk/id/local-authority-district/22UN,Life Opportunities,1880 - Office Accommodation Expenses,2304 - Energy Costs - Electricity,03/09/2013,2110733-8,94.06,2100197 - British Gas Trading Ltd,British Gas
Tendring DC,http://statistics.data.gov.uk/id/local-authority-district/22UN,Life Opportunities,1880 - Office Accommodation Expenses,2304 - Energy Costs - Electricity,03/09/2013,2110733-9,157.44,2100197 - British Gas Trading Ltd,British Gas
Tendring DC,http://statistics.data.gov.uk/id/local-authority-district/22UN,Life Opportunities,5440 - HRA - Communal Electricity,2304 - Energy Costs - Electricity,24/09/2013,2111138-1,533.6,2100197 - British Gas Trading Ltd,Aug-13
Tendring DC,http://statistics.data.gov.uk/id/local-authority-district/22UN,Life Opportunities,5340 - HRA - Communal Central Heating,2304 - Energy Costs - Electricity,24/09/2013,2111138-2,814.55,2100197 - British Gas Trading Ltd,Aug-13
Tendring DC,http://statistics.data.gov.uk/id/local-authority-district/22UN,Life Opportunities,5360 - HRA - Sheltered Units,2304 - Energy Costs - Electricity,24/09/2013,2111138-3,276.52,2100197 - British Gas Trading Ltd,Aug-13
Tendring DC,http://statistics.data.gov.uk/id/local-authority-district/22UN,Life Opportunities,5440 - HRA - Communal Electricity,2304 - Energy Costs - Electricity,24/09/2013,2111138-4,6523.18,2100197 - British Gas Trading Ltd,Aug-13
Tendring DC,http://statistics.data.gov.uk/id/local-authority-district/22UN,Life Opportunities,5440 - HRA - Communal Electricity,2304 - Energy Costs - Electricity,24/09/2013,2111138-5,-564.53,2100197 - British Gas Trading Ltd,Aug-13
Tendring DC,http://statistics.data.gov.uk/id/local-authority-district/22UN,Life Opportunities,6740 - Careline,4710 - Telephones - Charges,03/09/2013,1054692-1,58.17,2100168 - British Telecommunications plc,BT 670718
Tendring DC,http://statistics.data.gov.uk/id/local-authority-district/22UN,Life Opportunities,8530 - Brightlingsea Swimming Pool,4710 - Telephones - Charges,03/09/2013,1054710-1,85.39,2100168 - British Telecommunications plc,
Tendring DC,http://statistics.data.gov.uk/id/local-authority-district/22UN,Life Opportunities,8530 - Brightlingsea Swimming Pool,4710 - Telephones - Charges,03/09/2013,1054710-2,13.5,2100168 - British Telecommunications plc,
Tendring DC,http://statistics.data.gov.uk/id/local-authority-district/22UN,Life Opportunities,7000 - CCTV,4718 - Fixed Communication Lines,03/09/2013,1054711-1,110,2100168 - British Telecommunications plc,BT 506035
Tendring DC,http://statistics.data.gov.uk/id/local-authority-district/22UN,Life Opportunities,7000 - CCTV,4718 - Fixed Communication Lines,10/09/2013,2110796-1,50,2100168 - British Telecommunications plc,BT Bill Harwich CCTV
Tendring DC,http://statistics.data.gov.uk/id/local-authority-district/22UN,Life Opportunities,1840 - Central Telephone Service,4710 - Telephones - Charges,17/09/2013,2110955-1,1155.72,2100168 - British Telecommunications plc,BT 253100
Tendring DC,http://statistics.data.gov.uk/id/local-authority-district/22UN,Life Opportunities,5240 - HRA - Managing Tenancies,5249 - Housing ASB Expenses,24/09/2013,2111161-1,98.03,2100168 - British Telecommunications plc,ASB Line 1/9/13 - 30/11/13
Tendring DC,http://statistics.data.gov.uk/id/local-authority-district/22UN,Life Opportunities,7000 - CCTV,4718 - Fixed Communication Lines,24/09/2013,2111256-1,46.89,2100168 - British Telecommunications plc,Harwich Factory Outlet
Tendring DC,http://statistics.data.gov.uk/id/local-authority-district/22UN,Life Opportunities,7000 - CCTV,4718 - Fixed Communication Lines,24/09/2013,2111257-1,44.7,2100168 - British Telecommunications plc,Harwich CCTV August
Tendring DC,http://statistics.data.gov.uk/id/local-authority-district/22UN,Life Opportunities,1840 - Central Telephone Service,4710 - Telephones - Charges,24/09/2013,7009511-1,964.86,2100168 - British Telecommunications plc,BT 833435
Tendring DC,http://statistics.data.gov.uk/id/local-authority-district/22UN,Life Opportunities,C263 - Replacement of Careline alarms in Group Schemes,C251 - Other Furniture,03/09/2013,1054808-1,130,REDACTED PERSONAL DATA,REDACTED PERSONAL DATA
Tendring DC,http://statistics.data.gov.uk/id/local-authority-district/22UN,Life Opportunities,6740 - Careline,4710 - Telephones - Charges,17/09/2013,1055161-1,248.89,2113248 - BT Payment Services Ltd,BT Bill - PNC 422990
Tendring DC,http://statistics.data.gov.uk/id/local-authority-district/22UN,Life Opportunities,8520 - Frinton & Walton Swimming Pool,2700 - Cleaning Materials,03/09/2013,1054715-1,218.18,2101624 - Bunzl,FRINTON-BUNZL
Tendring DC,http://statistics.data.gov.uk/id/local-authority-district/22UN,Life Opportunities,8540 - Leisure Centre Clacton,2700 - Cleaning Materials,03/09/2013,1054716-1,575.98,2101624 - Bunzl,CLEANING MATERIALS
Tendring DC,http://statistics.data.gov.uk/id/local-authority-district/22UN,Life Opportunities,8540 - Leisure Centre Clacton,2700 - Cleaning Materials,03/09/2013,1054717-1,10.16,2101624 - Bunzl,GRAFFITI REMOVER
Tendring DC,http://statistics.data.gov.uk/id/local-authority-district/22UN,Life Opportunities,8510 - Dovercourt Swimming Pool & All Weather Facilities,2700 - Cleaning Materials,10/09/2013,1054887-1,290.39,2101624 - Bunzl,BUNZL-DOVERCOURT POOL
Tendring DC,http://statistics.data.gov.uk/id/local-authority-district/22UN,Life Opportunities,5360 - HRA - Sheltered Units,2700 - Cleaning Materials,10/09/2013,2110838-1,37.03,REDACTED PERSONAL DATA,REDACTED PERSONAL DATA
Tendring DC,http://statistics.data.gov.uk/id/local-authority-district/22UN,Life Opportunities,8510 - Dovercourt Swimming Pool & All Weather Facilities,4300 - Printing & Stationery,10/09/2013,2110858-1,22.81,REDACTED PERSONAL DATA,REDACTED PERSONAL DATA
Tendring DC,http://statistics.data.gov.uk/id/local-authority-district/22UN,Life Opportunities,8150 - Office Cleaning,4080 - Materials & Consumables,10/09/2013,2110867-1,531.14,REDACTED PERSONAL DATA,REDACTED PERSONAL DATA
Tendring DC,http://statistics.data.gov.uk/id/local-authority-district/22UN,Life Opportunities,8510 - Dovercourt Swimming Pool & All Weather Facilities,2700 - Cleaning Materials,17/09/2013,2110982-1,93.42,2101624 - Bunzl,Bunzl Dovercourt Pool
Tendring DC,http://statistics.data.gov.uk/id/local-authority-district/22UN,Life Opportunities,8150 - Office Cleaning,4080 - Materials & Consumables,17/09/2013,2111117-1,47.27,2101624 - Bunzl,Bunzl
Tendring DC,http://statistics.data.gov.uk/id/local-authority-district/22UN,Life Opportunities,8150 - Office Cleaning,4080 - Materials & Consumables,24/09/2013,2111148-1,221.36,2101624 - Bunzl,Bunzl
Tendring DC,http://statistics.data.gov.uk/id/local-authority-district/22UN,Life Opportunities,8150 - Office Cleaning,4080 - Materials & Consumables,24/09/2013,2111149-1,498.28,2101624 - Bunzl,Bunzl
Tendring DC,http://statistics.data.gov.uk/id/local-authority-district/22UN,Life Opportunities,8150 - Office Cleaning,4080 - Materials & Consumables,05/09/2013,2111150-1,-4.53,2101624 - Bunzl,Bunzl
Tendring DC,http://statistics.data.gov.uk/id/local-authority-district/22UN,Life Opportunities,8150 - Office Cleaning,4080 - Materials & Consumables,24/09/2013,2111151-1,6.04,2101624 - Bunzl,Bunzl
Tendring DC,http://statistics.data.gov.uk/id/local-authority-district/22UN,Life Opportunities,5360 - HRA - Sheltered Units,2700 - Cleaning Materials,24/09/2013,2111162-1,43.88,2101624 - Bunzl,X2 Hand Towels for Mead House
Tendring DC,http://statistics.data.gov.uk/id/local-authority-district/22UN,Life Opportunities,5360 - HRA - Sheltered Units,2700 - Cleaning Materials,24/09/2013,2111163-1,43.88,2101624 - Bunzl,x2 Hand Towels Crooked Elms
Tendring DC,http://statistics.data.gov.uk/id/local-authority-district/22UN,Life Opportunities,5360 - HRA - Sheltered Units,2700 - Cleaning Materials,24/09/2013,2111164-1,43.88,2101624 - Bunzl,x2 Hand Towels for Greenfields
Tendring DC,http://statistics.data.gov.uk/id/local-authority-district/22UN,Life Opportunities,5360 - HRA - Sheltered Units,2700 - Cleaning Materials,24/09/2013,2111165-1,43.88,2101624 - Bunzl,x2 Hand Towels for Belmans
Tendring DC,http://statistics.data.gov.uk/id/local-authority-district/22UN,Life Opportunities,5360 - HRA - Sheltered Units,2700 - Cleaning Materials,24/09/2013,2111166-1,43.88,2101624 - Bunzl,x2 Hand Towels for Vyntoner house
Tendring DC,http://statistics.data.gov.uk/id/local-authority-district/22UN,Life Opportunities,5360 - HRA - Sheltered Units,2700 - Cleaning Materials,24/09/2013,2111167-1,43.88,2101624 - Bunzl,Hand Towels for Spendells
Tendring DC,http://statistics.data.gov.uk/id/local-authority-district/22UN,Life Opportunities,5360 - HRA - Sheltered Units,2700 - Cleaning Materials,24/09/2013,2111168-1,43.88,2101624 - Bunzl,Hand Towels for Honeycroft
Tendring DC,http://statistics.data.gov.uk/id/local-authority-district/22UN,Life Opportunities,5360 - HRA - Sheltered Units,2700 - Cleaning Materials,24/09/2013,2111187-1,50.63,2101624 - Bunzl,Kate Daniels Bunzl Order
Tendring DC,http://statistics.data.gov.uk/id/local-authority-district/22UN,Life Opportunities,8150 - Office Cleaning,4080 - Materials & Consumables,24/09/2013,2111347-1,4.53,2101624 - Bunzl,Bunzl
Tendring DC,http://statistics.data.gov.uk/id/local-authority-district/22UN,Life Opportunities,5360 - HRA - Sheltered Units,2700 - Cleaning Materials,24/09/2013,2111348-1,43.88,2101624 - Bunzl,Hand Towels for St marys
Tendring DC,http://statistics.data.gov.uk/id/local-authority-district/22UN,Life Opportunities,5360 - HRA - Sheltered Units,2700 - Cleaning Materials,24/09/2013,2111349-1,43.88,2101624 - Bunzl,Hand towels for Groom house
Tendring DC,http://statistics.data.gov.uk/id/local-authority-district/22UN,Life Opportunities,H710 - Selected Improvements,C200 - Main Contractor,24/09/2013,7009518-1,20.56,2101624 - Bunzl,CROOKED ELMS SOAP HAND DISPENSER
Tendring DC,http://statistics.data.gov.uk/id/local-authority-district/22UN,Life Opportunities,8540 - Leisure Centre Clacton,2100 - Building Repairs,03/09/2013,1054722-1,277.27,2100280 - C H Lindsey & Son Ltd,LOW PRESSURE W/S SHOWERS
Tendring DC,http://statistics.data.gov.uk/id/local-authority-district/22UN,Life Opportunities,8540 - Leisure Centre Clacton,2100 - Building Repairs,24/09/2013,7700543-1,201.29,2100280 - C H Lindsey & Son Ltd,H/W PROBLEM KITCHEN
Tendring DC,http://statistics.data.gov.uk/id/local-authority-district/22UN,Life Opportunities,6160 - Princes Theatre,4105 - Bar/Catering Expenses,17/09/2013,2111107-1,175,REDACTED PERSONAL DATA,REDACTED PERSONAL DATA
Tendring DC,http://statistics.data.gov.uk/id/local-authority-district/22UN,Life Opportunities,5240 - HRA - Managing Tenancies,5249 - Housing ASB Expenses,03/09/2013,1054772-1,4525,2107321 - Campbell Associates,NOISE RECORDING EQUIPMENT
Tendring DC,http://statistics.data.gov.uk/id/local-authority-district/22UN,Life Opportunities,1650 - Building Services Service Unit,4400 - Maintenance Under Service Agreements,17/09/2013,2110962-1,0.32,2100291 - Canon (UK) Ltd,Copies August
Tendring DC,http://statistics.data.gov.uk/id/local-authority-district/22UN,Life Opportunities,1650 - Building Services Service Unit,4400 - Maintenance Under Service Agreements,17/09/2013,2110963-1,48.6,2100291 - Canon (UK) Ltd,Service October
Tendring DC,http://statistics.data.gov.uk/id/local-authority-district/22UN,Life Opportunities,"1580 - Benefits, Revenues and Customer Contact SU",3312 - Car Allowances - Car Hire,10/09/2013,2110905-1,22,2104746 - CC Hire,Court Car Hire
Tendring DC,http://statistics.data.gov.uk/id/local-authority-district/22UN,Life Opportunities,"1580 - Benefits, Revenues and Customer Contact SU",3062 - Running Costs - Petrol,10/09/2013,2110905-2,5.25,2104746 - CC Hire,Court Car Hire
Tendring DC,http://statistics.data.gov.uk/id/local-authority-district/22UN,Life Opportunities,"1580 - Benefits, Revenues and Customer Contact SU",3312 - Car Allowances - Car Hire,10/09/2013,2110906-1,25,2104746 - CC Hire,Court Car Hire
Tendring DC,http://statistics.data.gov.uk/id/local-authority-district/22UN,Life Opportunities,"1580 - Benefits, Revenues and Customer Contact SU",3062 - Running Costs - Petrol,10/09/2013,2110906-2,4.17,2104746 - CC Hire,Court Car Hire
Tendring DC,http://statistics.data.gov.uk/id/local-authority-district/22UN,Life Opportunities,5260 - HRA - Rent Collection And Accounting,4462 - Bailiffs and Tracing Agent Fees re debt recovery,17/09/2013,2110931-1,7.5,2100244 - Charter Mercantile (uk) ltd,Commission on Direct Deposit Reced
Tendring DC,http://statistics.data.gov.uk/id/local-authority-district/22UN,Life Opportunities,1242 - Corporate Director (Life Opportunities),1700 - Training - Courses,10/09/2013,1054905-1,135,2111888 - Chartered Institute for the Management of Sport and Physical Activity,DK PPO 19/12/13
Tendring DC,http://statistics.data.gov.uk/id/local-authority-district/22UN,Life Opportunities,6160 - Princes Theatre,4597 - Hired Services - Payments to Contractors,10/09/2013,2110843-1,61,REDACTED PERSONAL DATA,REDACTED PERSONAL DATA
Tendring DC,http://statistics.data.gov.uk/id/local-authority-district/22UN,Life Opportunities,1880 - Office Accommodation Expenses,2100 - Building Repairs,10/09/2013,2110865-1,144,REDACTED PERSONAL DATA,REDACTED PERSONAL DATA
Tendring DC,http://statistics.data.gov.uk/id/local-authority-district/22UN,Life Opportunities,8540 - Leisure Centre Clacton,4200 - Clothing & Uniforms,10/09/2013,1054906-1,106.8,2100205 - Chelmsford Safety Supplies Ltd,PLANT ROOM PPE
Tendring DC,http://statistics.data.gov.uk/id/local-authority-district/22UN,Life Opportunities,8540 - Leisure Centre Clacton,4200 - Clothing & Uniforms,24/09/2013,7700544-1,22.95,2100205 - Chelmsford Safety Supplies Ltd,RUBBER GAUNTLETS
Tendring DC,http://statistics.data.gov.uk/id/local-authority-district/22UN,Life Opportunities,5800 - Brightlingsea Sports Centre,5160 - Advertising,17/09/2013,2110958-1,104,2100246 - Chronicle Publishing Services,Chronicle Publishing
Tendring DC,http://statistics.data.gov.uk/id/local-authority-district/22UN,Life Opportunities,6160 - Princes Theatre,5308 - Ice Cream,10/09/2013,2110845-1,202.93,REDACTED PERSONAL DATA,REDACTED PERSONAL DATA
Tendring DC,http://statistics.data.gov.uk/id/local-authority-district/22UN,Life Opportunities,6160 - Princes Theatre,5308 - Ice Cream,24/09/2013,2111143-1,72.22,2108623 - CICC Ltd,Ice Cream Sept 2013
Tendring DC,http://statistics.data.gov.uk/id/local-authority-district/22UN,Life Opportunities,6160 - Princes Theatre,5308 - Ice Cream,24/09/2013,2111144-1,13.7,2108623 - CICC Ltd,Smarties Pop up x 20
Tendring DC,http://statistics.data.gov.uk/id/local-authority-district/22UN,Life Opportunities,5360 - HRA - Sheltered Units,4400 - Maintenance Under Service Agreements,24/09/2013,2111255-1,6.25,2100237 - Cirrus Communication Systems Ltd,Replacement Batts
Tendring DC,http://statistics.data.gov.uk/id/local-authority-district/22UN,Life Opportunities,8540 - Leisure Centre Clacton,4400 - Maintenance Under Service Agreements,24/09/2013,7700551-1,327.38,2107803 - CIT Vendor Finance (UK) Ltd,XEROX COPY RENTAL
Tendring DC,http://statistics.data.gov.uk/id/local-authority-district/22UN,Life Opportunities,2000 - Coast Protection - General,2112 - Annual Maintenance,03/09/2013,2110718-1,106.6,2100268 - Clacton Tool Hire,Straps
Tendring DC,http://statistics.data.gov.uk/id/local-authority-district/22UN,Life Opportunities,5260 - HRA - Rent Collection And Accounting,4461 - Court Fees,02/09/2013,1054999-1,1140,2100269 - Co operative Bank plc,CREDIT CARD SEPT 2013
Tendring DC,http://statistics.data.gov.uk/id/local-authority-district/22UN,Life Opportunities,6620 - Corporate Management - General,5190 - Bank Commission Charges,02/09/2013,1054999-2,2,2100269 - Co operative Bank plc,CREDIT CARD SEPT 2013
Tendring DC,http://statistics.data.gov.uk/id/local-authority-district/22UN,Life Opportunities,6160 - Princes Theatre,4040 - Equipment & Tools,02/09/2013,1054999-3,85.46,2100269 - Co operative Bank plc,CREDIT CARD SEPT 2013
Tendring DC,http://statistics.data.gov.uk/id/local-authority-district/22UN,Life Opportunities,H880 - New Build Initiatives and Acquisitions,C200 - Main Contractor,02/09/2013,1054999-4,1,2100269 - Co operative Bank plc,CREDIT CARD SEPT 2013
Tendring DC,http://statistics.data.gov.uk/id/local-authority-district/22UN,Life Opportunities,8540 - Leisure Centre Clacton,4597 - Hired Services - Payments to Contractors,10/09/2013,1054901-1,494,2111358 - Colchester United FC Ltd Youth,SUMMER HOL SOCCER COACH
Tendring DC,http://statistics.data.gov.uk/id/local-authority-district/22UN,Life Opportunities,5820 - Harwich Sports Centre,4597 - Hired Services - Payments to Contractors,17/09/2013,2111030-1,125,2111358 - Colchester United FC Ltd Youth,Soccer Sessions
Tendring DC,http://statistics.data.gov.uk/id/local-authority-district/22UN,Life Opportunities,"1580 - Benefits, Revenues and Customer Contact SU",4462 - Bailiffs and Tracing Agent Fees re debt recovery,03/09/2013,1054688-1,13,2100381 - Collect Services Ltd,VAT ON FEES COLLECTED C/T
Tendring DC,http://statistics.data.gov.uk/id/local-authority-district/22UN,Life Opportunities,"1580 - Benefits, Revenues and Customer Contact SU",4462 - Bailiffs and Tracing Agent Fees re debt recovery,03/09/2013,1054688-2,-13,2100381 - Collect Services Ltd,VAT ON FEES COLLECTED C/T
Tendring DC,http://statistics.data.gov.uk/id/local-authority-district/22UN,Life Opportunities,"1580 - Benefits, Revenues and Customer Contact SU",4462 - Bailiffs and Tracing Agent Fees re debt recovery,03/09/2013,1054688-3,75.51,2100381 - Collect Services Ltd,VAT ON FEES COLLECTED C/T
Tendring DC,http://statistics.data.gov.uk/id/local-authority-district/22UN,Life Opportunities,"1580 - Benefits, Revenues and Customer Contact SU",4462 - Bailiffs and Tracing Agent Fees re debt recovery,03/09/2013,1054688-4,-75.51,2100381 - Collect Services Ltd,VAT ON FEES COLLECTED C/T
Tendring DC,http://statistics.data.gov.uk/id/local-authority-district/22UN,Life Opportunities,"1580 - Benefits, Revenues and Customer Contact SU",4462 - Bailiffs and Tracing Agent Fees re debt recovery,03/09/2013,1054688-5,3382.18,2100381 - Collect Services Ltd,VAT ON FEES COLLECTED C/T
Tendring DC,http://statistics.data.gov.uk/id/local-authority-district/22UN,Life Opportunities,"1580 - Benefits, Revenues and Customer Contact SU",4462 - Bailiffs and Tracing Agent Fees re debt recovery,03/09/2013,1054688-6,-3382.18,2100381 - Collect Services Ltd,VAT ON FEES COLLECTED C/T
Tendring DC,http://statistics.data.gov.uk/id/local-authority-district/22UN,Life Opportunities,"1580 - Benefits, Revenues and Customer Contact SU",4462 - Bailiffs and Tracing Agent Fees re debt recovery,03/09/2013,1054689-1,-3066.12,2100381 - Collect Services Ltd,VAT ON FEES COLLECTED NNDR
Tendring DC,http://statistics.data.gov.uk/id/local-authority-district/22UN,Life Opportunities,"1580 - Benefits, Revenues and Customer Contact SU",4462 - Bailiffs and Tracing Agent Fees re debt recovery,03/09/2013,1054689-2,3066.12,2100381 - Collect Services Ltd,VAT ON FEES COLLECTED NNDR
Tendring DC,http://statistics.data.gov.uk/id/local-authority-district/22UN,Life Opportunities,"1580 - Benefits, Revenues and Customer Contact SU",4462 - Bailiffs and Tracing Agent Fees re debt recovery,24/09/2013,1055101-1,52.5,2100381 - Collect Services Ltd,VAT on Fees Collected NNDR
Tendring DC,http://statistics.data.gov.uk/id/local-authority-district/22UN,Life Opportunities,"1580 - Benefits, Revenues and Customer Contact SU",4462 - Bailiffs and Tracing Agent Fees re debt recovery,24/09/2013,1055101-2,-52.5,2100381 - Collect Services Ltd,VAT on Fees Collected NNDR
Tendring DC,http://statistics.data.gov.uk/id/local-authority-district/22UN,Life Opportunities,"1580 - Benefits, Revenues and Customer Contact SU",4462 - Bailiffs and Tracing Agent Fees re debt recovery,03/09/2013,2110697-1,10,REDACTED PERSONAL DATA,REDACTED PERSONAL DATA
Tendring DC,http://statistics.data.gov.uk/id/local-authority-district/22UN,Life Opportunities,"1580 - Benefits, Revenues and Customer Contact SU",4462 - Bailiffs and Tracing Agent Fees re debt recovery,03/09/2013,2110697-2,-10,REDACTED PERSONAL DATA,REDACTED PERSONAL DATA
Tendring DC,http://statistics.data.gov.uk/id/local-authority-district/22UN,Life Opportunities,"1580 - Benefits, Revenues and Customer Contact SU",4462 - Bailiffs and Tracing Agent Fees re debt recovery,03/09/2013,2110697-3,13.75,REDACTED PERSONAL DATA,REDACTED PERSONAL DATA
Tendring DC,http://statistics.data.gov.uk/id/local-authority-district/22UN,Life Opportunities,"1580 - Benefits, Revenues and Customer Contact SU",4462 - Bailiffs and Tracing Agent Fees re debt recovery,03/09/2013,2110697-4,-13.75,REDACTED PERSONAL DATA,REDACTED PERSONAL DATA
Tendring DC,http://statistics.data.gov.uk/id/local-authority-district/22UN,Life Opportunities,"1580 - Benefits, Revenues and Customer Contact SU",4462 - Bailiffs and Tracing Agent Fees re debt recovery,03/09/2013,2110697-5,2596.98,REDACTED PERSONAL DATA,REDACTED PERSONAL DATA
Tendring DC,http://statistics.data.gov.uk/id/local-authority-district/22UN,Life Opportunities,"1580 - Benefits, Revenues and Customer Contact SU",4462 - Bailiffs and Tracing Agent Fees re debt recovery,03/09/2013,2110697-6,-2596.98,REDACTED PERSONAL DATA,REDACTED PERSONAL DATA
Tendring DC,http://statistics.data.gov.uk/id/local-authority-district/22UN,Life Opportunities,"1580 - Benefits, Revenues and Customer Contact SU",4462 - Bailiffs and Tracing Agent Fees re debt recovery,03/09/2013,2110698-1,317,REDACTED PERSONAL DATA,REDACTED PERSONAL DATA
Tendring DC,http://statistics.data.gov.uk/id/local-authority-district/22UN,Life Opportunities,"1580 - Benefits, Revenues and Customer Contact SU",4462 - Bailiffs and Tracing Agent Fees re debt recovery,03/09/2013,2110698-2,-317,REDACTED PERSONAL DATA,REDACTED PERSONAL DATA
Tendring DC,http://statistics.data.gov.uk/id/local-authority-district/22UN,Life Opportunities,"1580 - Benefits, Revenues and Customer Contact SU",4462 - Bailiffs and Tracing Agent Fees re debt recovery,17/09/2013,2110975-1,0.96,2100381 - Collect Services Ltd,VAT on fees Collected CTAX
Tendring DC,http://statistics.data.gov.uk/id/local-authority-district/22UN,Life Opportunities,"1580 - Benefits, Revenues and Customer Contact SU",4462 - Bailiffs and Tracing Agent Fees re debt recovery,17/09/2013,2110975-2,9.04,2100381 - Collect Services Ltd,VAT on fees Collected CTAX
Tendring DC,http://statistics.data.gov.uk/id/local-authority-district/22UN,Life Opportunities,"1580 - Benefits, Revenues and Customer Contact SU",4462 - Bailiffs and Tracing Agent Fees re debt recovery,17/09/2013,2110975-3,1613.12,2100381 - Collect Services Ltd,VAT on fees Collected CTAX
Tendring DC,http://statistics.data.gov.uk/id/local-authority-district/22UN,Life Opportunities,"1580 - Benefits, Revenues and Customer Contact SU",4462 - Bailiffs and Tracing Agent Fees re debt recovery,17/09/2013,2110975-4,-0.96,2100381 - Collect Services Ltd,VAT on fees Collected CTAX
Tendring DC,http://statistics.data.gov.uk/id/local-authority-district/22UN,Life Opportunities,"1580 - Benefits, Revenues and Customer Contact SU",4462 - Bailiffs and Tracing Agent Fees re debt recovery,17/09/2013,2110975-5,-9.04,2100381 - Collect Services Ltd,VAT on fees Collected CTAX
Tendring DC,http://statistics.data.gov.uk/id/local-authority-district/22UN,Life Opportunities,"1580 - Benefits, Revenues and Customer Contact SU",4462 - Bailiffs and Tracing Agent Fees re debt recovery,17/09/2013,2110975-6,-1613.12,2100381 - Collect Services Ltd,VAT on fees Collected CTAX
Tendring DC,http://statistics.data.gov.uk/id/local-authority-district/22UN,Life Opportunities,"1580 - Benefits, Revenues and Customer Contact SU",5189 - External Debt Recovery Commission,17/09/2013,2110976-1,516.76,2100381 - Collect Services Ltd,15% Commission Recovered Debts
Tendring DC,http://statistics.data.gov.uk/id/local-authority-district/22UN,Life Opportunities,"1580 - Benefits, Revenues and Customer Contact SU",4462 - Bailiffs and Tracing Agent Fees re debt recovery,17/09/2013,2111122-1,12.61,2100381 - Collect Services Ltd,VAT on fees collected NNDR
Tendring DC,http://statistics.data.gov.uk/id/local-authority-district/22UN,Life Opportunities,"1580 - Benefits, Revenues and Customer Contact SU",4462 - Bailiffs and Tracing Agent Fees re debt recovery,17/09/2013,2111122-2,-12.61,2100381 - Collect Services Ltd,VAT on fees collected NNDR
Tendring DC,http://statistics.data.gov.uk/id/local-authority-district/22UN,Life Opportunities,"1580 - Benefits, Revenues and Customer Contact SU",4462 - Bailiffs and Tracing Agent Fees re debt recovery,17/09/2013,2111122-3,1288,2100381 - Collect Services Ltd,VAT on fees collected NNDR
Tendring DC,http://statistics.data.gov.uk/id/local-authority-district/22UN,Life Opportunities,"1580 - Benefits, Revenues and Customer Contact SU",4462 - Bailiffs and Tracing Agent Fees re debt recovery,17/09/2013,2111122-4,-1288,2100381 - Collect Services Ltd,VAT on fees collected NNDR
Tendring DC,http://statistics.data.gov.uk/id/local-authority-district/22UN,Life Opportunities,9900 - General Fund Balance Sheet,B863 - Bailiff Payments Holding Account,03/09/2013,1054811-1,1927.5,REDACTED COMMERCIAL CONFIDENTIALITY,REDACTED COMMERCIAL CONFIDENTIALITY
Tendring DC,http://statistics.data.gov.uk/id/local-authority-district/22UN,Life Opportunities,9900 - General Fund Balance Sheet,B863 - Bailiff Payments Holding Account,10/09/2013,1054951-1,3021,REDACTED COMMERCIAL CONFIDENTIALITY,REDACTED COMMERCIAL CONFIDENTIALITY
Tendring DC,http://statistics.data.gov.uk/id/local-authority-district/22UN,Life Opportunities,9900 - General Fund Balance Sheet,B863 - Bailiff Payments Holding Account,17/09/2013,1055077-1,1560,REDACTED COMMERCIAL CONFIDENTIALITY,REDACTED COMMERCIAL CONFIDENTIALITY
Tendring DC,http://statistics.data.gov.uk/id/local-authority-district/22UN,Life Opportunities,"1580 - Benefits, Revenues and Customer Contact SU",4462 - Bailiffs and Tracing Agent Fees re debt recovery,24/09/2013,1055096-1,49.11,2112596 - Collect Services Ltd Clients Account,VAT on fees collected C/T
Tendring DC,http://statistics.data.gov.uk/id/local-authority-district/22UN,Life Opportunities,"1580 - Benefits, Revenues and Customer Contact SU",4462 - Bailiffs and Tracing Agent Fees re debt recovery,24/09/2013,1055096-2,-49.11,2112596 - Collect Services Ltd Clients Account,VAT on fees collected C/T
Tendring DC,http://statistics.data.gov.uk/id/local-authority-district/22UN,Life Opportunities,"1580 - Benefits, Revenues and Customer Contact SU",4462 - Bailiffs and Tracing Agent Fees re debt recovery,24/09/2013,1055096-3,3966.68,2112596 - Collect Services Ltd Clients Account,VAT on fees collected C/T
Tendring DC,http://statistics.data.gov.uk/id/local-authority-district/22UN,Life Opportunities,"1580 - Benefits, Revenues and Customer Contact SU",4462 - Bailiffs and Tracing Agent Fees re debt recovery,24/09/2013,1055096-4,-3966.68,2112596 - Collect Services Ltd Clients Account,VAT on fees collected C/T
Tendring DC,http://statistics.data.gov.uk/id/local-authority-district/22UN,Life Opportunities,5365 - HRA - Colne Housing Soc Shel Units,4404 - Service Agreement - Foundry Court,24/09/2013,2111191-1,1406.08,2100342 - Colne Housing Society Ltd,Ironside 1/7 - 30/9/13
Tendring DC,http://statistics.data.gov.uk/id/local-authority-district/22UN,Life Opportunities,8520 - Frinton & Walton Swimming Pool,2100 - Building Repairs,03/09/2013,1054726-1,459,2110353 - Contract Fire Security,FRINTON POOL-REPAIR
Tendring DC,http://statistics.data.gov.uk/id/local-authority-district/22UN,Life Opportunities,"1580 - Benefits, Revenues and Customer Contact SU",4461 - Court Fees,26/09/2013,2111354-1,3053,2100304 - CO-OP Bank,HM Courts & Brackets
Tendring DC,http://statistics.data.gov.uk/id/local-authority-district/22UN,Life Opportunities,"1580 - Benefits, Revenues and Customer Contact SU",4040 - Equipment & Tools,26/09/2013,2111354-2,78.08,2100304 - CO-OP Bank,HM Courts & Brackets
Tendring DC,http://statistics.data.gov.uk/id/local-authority-district/22UN,Life Opportunities,5260 - HRA - Rent Collection And Accounting,4461 - Court Fees,26/09/2013,2111393-1,830,2100304 - CO-OP Bank,Credit Card Sept 12
Tendring DC,http://statistics.data.gov.uk/id/local-authority-district/22UN,Life Opportunities,6620 - Corporate Management - General,5190 - Bank Commission Charges,26/09/2013,2111393-2,2,2100304 - CO-OP Bank,Credit Card Sept 12
Tendring DC,http://statistics.data.gov.uk/id/local-authority-district/22UN,Life Opportunities,5260 - HRA - Rent Collection And Accounting,4461 - Court Fees,26/09/2013,2111394-1,110,2100304 - CO-OP Bank,Credit Card Dec 12
Tendring DC,http://statistics.data.gov.uk/id/local-authority-district/22UN,Life Opportunities,6620 - Corporate Management - General,5190 - Bank Commission Charges,26/09/2013,2111394-2,2,2100304 - CO-OP Bank,Credit Card Dec 12
Tendring DC,http://statistics.data.gov.uk/id/local-authority-district/22UN,Life Opportunities,5480 - HRA - Repair & Maintenance,2007 - Responsive Maintenance - Electrical Installations,10/09/2013,1054864-1,542.52,REDACTED PERSONAL DATA,REDACTED PERSONAL DATA
Tendring DC,http://statistics.data.gov.uk/id/local-authority-district/22UN,Life Opportunities,H860 - Disabled Adaptations,C200 - Main Contractor,10/09/2013,1054865-1,4781.43,REDACTED PERSONAL DATA,REDACTED PERSONAL DATA
Tendring DC,http://statistics.data.gov.uk/id/local-authority-district/22UN,Life Opportunities,H860 - Disabled Adaptations,C200 - Main Contractor,10/09/2013,1054866-1,348.03,REDACTED PERSONAL DATA,REDACTED PERSONAL DATA
Tendring DC,http://statistics.data.gov.uk/id/local-authority-district/22UN,Life Opportunities,1860 - Depots General,2100 - Building Repairs,17/09/2013,1055015-1,66,2100314 - Cooper & Brome (Plumbing & Heating) Ltd,COOPER & BROME
Tendring DC,http://statistics.data.gov.uk/id/local-authority-district/22UN,Life Opportunities,1880 - Office Accommodation Expenses,2100 - Building Repairs,17/09/2013,1055016-1,66,2100314 - Cooper & Brome (Plumbing & Heating) Ltd,COOPER & BROME
Tendring DC,http://statistics.data.gov.uk/id/local-authority-district/22UN,Life Opportunities,1860 - Depots General,2100 - Building Repairs,17/09/2013,1055017-1,66,2100314 - Cooper & Brome (Plumbing & Heating) Ltd,COOPER & BROME
Tendring DC,http://statistics.data.gov.uk/id/local-authority-district/22UN,Life Opportunities,1880 - Office Accommodation Expenses,2100 - Building Repairs,17/09/2013,1055018-1,584.52,2100314 - Cooper & Brome (Plumbing & Heating) Ltd,COOPER & BROME
Tendring DC,http://statistics.data.gov.uk/id/local-authority-district/22UN,Life Opportunities,H920 - DFGs,C400 - Grant payments,24/09/2013,2111225-1,6335.92,REDACTED PERSONAL DATA,REDACTED PERSONAL DATA
Tendring DC,http://statistics.data.gov.uk/id/local-authority-district/22UN,Life Opportunities,"1580 - Benefits, Revenues and Customer Contact SU",4461 - Court Fees,24/09/2013,2111283-1,3053,2101884 - Cooper & Brome (Plumbing & Heating) Ltd,HM Courts & Brackets
Tendring DC,http://statistics.data.gov.uk/id/local-authority-district/22UN,Life Opportunities,"1580 - Benefits, Revenues and Customer Contact SU",4040 - Equipment & Tools,24/09/2013,2111283-2,78.08,2101884 - Cooper & Brome (Plumbing & Heating) Ltd,HM Courts & Brackets
Tendring DC,http://statistics.data.gov.uk/id/local-authority-district/22UN,Life Opportunities,"1580 - Benefits, Revenues and Customer Contact SU",4461 - Court Fees,02/09/2013,2111352-1,-3053,2101884 - Cooper & Brome (Plumbing & Heating) Ltd,Reversal of MT in error
Tendring DC,http://statistics.data.gov.uk/id/local-authority-district/22UN,Life Opportunities,"1580 - Benefits, Revenues and Customer Contact SU",4040 - Equipment & Tools,02/09/2013,2111352-2,-78.08,2101884 - Cooper & Brome (Plumbing & Heating) Ltd,Reversal of MT in error
Tendring DC,http://statistics.data.gov.uk/id/local-authority-district/22UN,Life Opportunities,8520 - Frinton & Walton Swimming Pool,2308 - Energy Costs - Gas (Including LPG),24/09/2013,1055103-1,2599.14,2104620 - Corona Energy Retail 4 Limited,Frinton Pool Gas
Tendring DC,http://statistics.data.gov.uk/id/local-authority-district/22UN,Life Opportunities,8510 - Dovercourt Swimming Pool & All Weather Facilities,2308 - Energy Costs - Gas (Including LPG),24/09/2013,1055104-1,1369.72,2104620 - Corona Energy Retail 4 Limited,Dovercourt Pool
Tendring DC,http://statistics.data.gov.uk/id/local-authority-district/22UN,Life Opportunities,8540 - Leisure Centre Clacton,2308 - Energy Costs - Gas (Including LPG),24/09/2013,7700578-1,1130.95,2104620 - Corona Energy Retail 4 Limited,AUGUST
Tendring DC,http://statistics.data.gov.uk/id/local-authority-district/22UN,Life Opportunities,5240 - HRA - Managing Tenancies,5242 - Tenant Relations,03/09/2013,1054771-1,1083.6,2104177 - Corporate Document Services Ltd,TENDRING QUESTIONNAIRE PRINTING & DESIGN 2013
Tendring DC,http://statistics.data.gov.uk/id/local-authority-district/22UN,Life Opportunities,8540 - Leisure Centre Clacton,2100 - Building Repairs,03/09/2013,1054720-1,58.33,2100183 - CR Services,WATER FOUNTAIN SOCKET
Tendring DC,http://statistics.data.gov.uk/id/local-authority-district/22UN,Life Opportunities,8540 - Leisure Centre Clacton,2100 - Building Repairs,03/09/2013,1054721-1,61.1,2100183 - CR Services,FAULTY SAUNA LIGHTS
Tendring DC,http://statistics.data.gov.uk/id/local-authority-district/22UN,Life Opportunities,8530 - Brightlingsea Swimming Pool,2100 - Building Repairs,10/09/2013,2110798-1,115,2100183 - CR Services,CR Services
Tendring DC,http://statistics.data.gov.uk/id/local-authority-district/22UN,Life Opportunities,8530 - Brightlingsea Swimming Pool,2100 - Building Repairs,10/09/2013,2110799-1,242,2100183 - CR Services,CR Services
Tendring DC,http://statistics.data.gov.uk/id/local-authority-district/22UN,Life Opportunities,8530 - Brightlingsea Swimming Pool,2100 - Building Repairs,10/09/2013,2110800-1,70,2100183 - CR Services,CR Services
Tendring DC,http://statistics.data.gov.uk/id/local-authority-district/22UN,Life Opportunities,8530 - Brightlingsea Swimming Pool,2100 - Building Repairs,10/09/2013,2110801-1,100,2100183 - CR Services,CR Services
Tendring DC,http://statistics.data.gov.uk/id/local-authority-district/22UN,Life Opportunities,8530 - Brightlingsea Swimming Pool,2100 - Building Repairs,10/09/2013,2110802-1,110,2100183 - CR Services,CR Services
Tendring DC,http://statistics.data.gov.uk/id/local-authority-district/22UN,Life Opportunities,8530 - Brightlingsea Swimming Pool,2100 - Building Repairs,10/09/2013,2110803-1,280,2100183 - CR Services,CR Services
Tendring DC,http://statistics.data.gov.uk/id/local-authority-district/22UN,Life Opportunities,6160 - Princes Theatre,4597 - Hired Services - Payments to Contractors,10/09/2013,2110844-1,4.9,REDACTED PERSONAL DATA,REDACTED PERSONAL DATA
Tendring DC,http://statistics.data.gov.uk/id/local-authority-district/22UN,Life Opportunities,9920 - HRA Balance Sheet,B505 - DCLGM Capital Receipts Pooling Creditor,10/09/2013,2110907-1,8270.34,2100432 - DCLG,Housing Capital Receipts Pooling Payment Q1 - 2013/14 Supp
Tendring DC,http://statistics.data.gov.uk/id/local-authority-district/22UN,Life Opportunities,5480 - HRA - Repair & Maintenance,2067 - Other Minor Equipment  Servicing (Hoists Etc),24/09/2013,2111201-1,289.86,REDACTED PERSONAL DATA,REDACTED PERSONAL DATA
Tendring DC,http://statistics.data.gov.uk/id/local-authority-district/22UN,Life Opportunities,5240 - HRA - Managing Tenancies,5242 - Tenant Relations,03/09/2013,1054662-1,10,REDACTED PERSONAL DATA,REDACTED PERSONAL DATA
Tendring DC,http://statistics.data.gov.uk/id/local-authority-district/22UN,Life Opportunities,H820 - Asbestos Management,C200 - Main Contractor,24/09/2013,2111205-1,1310,REDACTED PERSONAL DATA,REDACTED PERSONAL DATA
Tendring DC,http://statistics.data.gov.uk/id/local-authority-district/22UN,Life Opportunities,5820 - Harwich Sports Centre,4597 - Hired Services - Payments to Contractors,10/09/2013,1054913-1,75,2112824 - Dynamic Stability,PILATES CLASSES
Tendring DC,http://statistics.data.gov.uk/id/local-authority-district/22UN,Life Opportunities,5860 - Manningtree Sports Centre,4597 - Hired Services - Payments to Contractors,10/09/2013,2110805-1,75,2112824 - Dynamic Stability,Pilates Instructor x 3 Hrs
Tendring DC,http://statistics.data.gov.uk/id/local-authority-district/22UN,Life Opportunities,8540 - Leisure Centre Clacton,9200 - Course Income,10/09/2013,1054940-1,20,2113391 - E Johnson,
Tendring DC,http://statistics.data.gov.uk/id/local-authority-district/22UN,Life Opportunities,5480 - HRA - Repair & Maintenance,2071 - Electric Installation Testing,10/09/2013,1054917-1,150,2110229 - East Coast Electrical Contractors Ltd,PIR ONLY
Tendring DC,http://statistics.data.gov.uk/id/local-authority-district/22UN,Life Opportunities,H810 - Electrical Re-wiring,C200 - Main Contractor,10/09/2013,1054918-1,1795.5,2110229 - East Coast Electrical Contractors Ltd,FINAL INVOICE + VALUATIONS
Tendring DC,http://statistics.data.gov.uk/id/local-authority-district/22UN,Life Opportunities,H810 - Electrical Re-wiring,C200 - Main Contractor,10/09/2013,1054919-1,593.75,2110229 - East Coast Electrical Contractors Ltd,FINAL INVOICES + VALUATIONS
Tendring DC,http://statistics.data.gov.uk/id/local-authority-district/22UN,Life Opportunities,H825 - Refurbishment of Door Entry Systems,C200 - Main Contractor,17/09/2013,2110961-1,35,2110229 - East Coast Electrical Contractors Ltd,Hove Court
Tendring DC,http://statistics.data.gov.uk/id/local-authority-district/22UN,Life Opportunities,8520 - Frinton & Walton Swimming Pool,2100 - Building Repairs,03/09/2013,1054725-1,63,2100433 - East Essex Pool Care,EEPC-REPAIR CONEX
Tendring DC,http://statistics.data.gov.uk/id/local-authority-district/22UN,Life Opportunities,7620 - Air Show,4300 - Printing & Stationery,17/09/2013,2110928-1,396.86,2100404 - Easy Tigernet,Airshow Photograph Aug 2013
Tendring DC,http://statistics.data.gov.uk/id/local-authority-district/22UN,Life Opportunities,1880 - Office Accommodation Expenses,2304 - Energy Costs - Electricity,17/09/2013,1055068-1,4387.23,2105146 - EDF Energy 1 Ltd,EDF ENERGY
Tendring DC,http://statistics.data.gov.uk/id/local-authority-district/22UN,Life Opportunities,6160 - Princes Theatre,2304 - Energy Costs - Electricity,17/09/2013,1055068-2,487.47,2105146 - EDF Energy 1 Ltd,EDF ENERGY
Tendring DC,http://statistics.data.gov.uk/id/local-authority-district/22UN,Life Opportunities,8510 - Dovercourt Swimming Pool & All Weather Facilities,2308 - Energy Costs - Gas (Including LPG),24/09/2013,7700563-1,2756.9,2105146 - EDF Energy 1 Ltd,ELECTRIC DOVERCOURT POOL
Tendring DC,http://statistics.data.gov.uk/id/local-authority-district/22UN,Life Opportunities,8540 - Leisure Centre Clacton,2304 - Energy Costs - Electricity,24/09/2013,7700574-1,7285.48,2105146 - EDF Energy 1 Ltd,AUGUST
Tendring DC,http://statistics.data.gov.uk/id/local-authority-district/22UN,Life Opportunities,C021 - Mercury Abatement Equipment and Cremator replacement,C200 - Main Contractor,03/09/2013,1054773-1,300,2107747 - EDI Surveys Ltd,TRACING OF GAS MAIN WEELEY CREM
Tendring DC,http://statistics.data.gov.uk/id/local-authority-district/22UN,Life Opportunities,8530 - Brightlingsea Swimming Pool,2304 - Energy Costs - Electricity,10/09/2013,1054894-1,3990.64,2107644 - Eon,20/5/13-19/8/13
Tendring DC,http://statistics.data.gov.uk/id/local-authority-district/22UN,Life Opportunities,5860 - Manningtree Sports Centre,4400 - Maintenance Under Service Agreements,03/09/2013,1054696-1,188.7,2100531 - Euro-Fire Ltd,FIRE EXTINGUISHER SERVICE
Tendring DC,http://statistics.data.gov.uk/id/local-authority-district/22UN,Life Opportunities,5480 - HRA - Repair & Maintenance,2059 - Fire Fighting Equipment Servicing,03/09/2013,1054713-1,67.45,REDACTED PERSONAL DATA,REDACTED PERSONAL DATA
Tendring DC,http://statistics.data.gov.uk/id/local-authority-district/22UN,Life Opportunities,5480 - HRA - Repair & Maintenance,2060 - Fire Fighting Equipment Repairs,17/09/2013,2110919-1,73.4,2100531 - Euro-Fire Ltd,Spendells House
Tendring DC,http://statistics.data.gov.uk/id/local-authority-district/22UN,Life Opportunities,5480 - HRA - Repair & Maintenance,2060 - Fire Fighting Equipment Repairs,17/09/2013,2110920-1,138,2100531 - Euro-Fire Ltd,Mead House
Tendring DC,http://statistics.data.gov.uk/id/local-authority-district/22UN,Life Opportunities,5480 - HRA - Repair & Maintenance,2060 - Fire Fighting Equipment Repairs,17/09/2013,2110921-1,144.85,2100531 - Euro-Fire Ltd,Greenfields
Tendring DC,http://statistics.data.gov.uk/id/local-authority-district/22UN,Life Opportunities,5480 - HRA - Repair & Maintenance,2060 - Fire Fighting Equipment Repairs,17/09/2013,2110922-1,94.35,2100531 - Euro-Fire Ltd,Crooked Elms
Tendring DC,http://statistics.data.gov.uk/id/local-authority-district/22UN,Life Opportunities,1242 - Corporate Director (Life Opportunities),1700 - Training - Courses,17/09/2013,2111110-1,680,2100503 - Ferret Information Systems Ltd,Ferret Training Courses
Tendring DC,http://statistics.data.gov.uk/id/local-authority-district/22UN,Life Opportunities,5480 - HRA - Repair & Maintenance,2058 - Fire Alarms Repairs,03/09/2013,1054714-1,3445,REDACTED PERSONAL DATA,REDACTED PERSONAL DATA
Tendring DC,http://statistics.data.gov.uk/id/local-authority-district/22UN,Life Opportunities,5480 - HRA - Repair & Maintenance,2058 - Fire Alarms Repairs,17/09/2013,1055050-1,140,2108583 - Firesite,BELMANS COURT
Tendring DC,http://statistics.data.gov.uk/id/local-authority-district/22UN,Life Opportunities,5480 - HRA - Repair & Maintenance,2057 - Fire Alarms Servicing,17/09/2013,1055051-1,160,2108583 - Firesite,GROOM HOUSE
Tendring DC,http://statistics.data.gov.uk/id/local-authority-district/22UN,Life Opportunities,5480 - HRA - Repair & Maintenance,2058 - Fire Alarms Repairs,17/09/2013,1055052-1,25,2108583 - Firesite,GROOM HOUSE
Tendring DC,http://statistics.data.gov.uk/id/local-authority-district/22UN,Life Opportunities,5480 - HRA - Repair & Maintenance,2058 - Fire Alarms Repairs,03/09/2013,2110762-1,50,2108583 - Firesite,St Marys Court
Tendring DC,http://statistics.data.gov.uk/id/local-authority-district/22UN,Life Opportunities,5480 - HRA - Repair & Maintenance,2058 - Fire Alarms Repairs,17/09/2013,2110935-1,95,2108583 - Firesite,Crooked Elms
Tendring DC,http://statistics.data.gov.uk/id/local-authority-district/22UN,Life Opportunities,5480 - HRA - Repair & Maintenance,2058 - Fire Alarms Repairs,17/09/2013,2111105-1,50,REDACTED PERSONAL DATA,REDACTED PERSONAL DATA
Tendring DC,http://statistics.data.gov.uk/id/local-authority-district/22UN,Life Opportunities,7600 - Tourist Information Centres,9356 - Commission Sales,10/09/2013,1054843-1,986.4,2103743 - First Essex Buses Ltd,Aug-13
Tendring DC,http://statistics.data.gov.uk/id/local-authority-district/22UN,Life Opportunities,8540 - Leisure Centre Clacton,2904 - Premises Licensing - Other,10/09/2013,2110912-1,291.8,2107806 - Fitness Professionals Ltd,Body Training System
Tendring DC,http://statistics.data.gov.uk/id/local-authority-district/22UN,Life Opportunities,5140 - Homelessness,4683 - Other Homelessness Expenses,17/09/2013,1054996-1,725,REDACTED PERSONAL DATA,REDACTED PERSONAL DATA
Tendring DC,http://statistics.data.gov.uk/id/local-authority-district/22UN,Life Opportunities,1880 - Office Accommodation Expenses,2100 - Building Repairs,17/09/2013,2110952-1,115.69,2100584 - Frinton & Walton Town Council,Town Council of F&W
Tendring DC,http://statistics.data.gov.uk/id/local-authority-district/22UN,Life Opportunities,1780 - Health & Safety,4597 - Hired Services - Payments to Contractors,03/09/2013,1054760-1,330,REDACTED PERSONAL DATA,REDACTED PERSONAL DATA
Tendring DC,http://statistics.data.gov.uk/id/local-authority-district/22UN,Life Opportunities,"1580 - Benefits, Revenues and Customer Contact SU",4635 - Cash Collection Contract,24/09/2013,2111335-1,5,2101233 - G4S Cash Services (UK) Limited,Cash Delivery
Tendring DC,http://statistics.data.gov.uk/id/local-authority-district/22UN,Life Opportunities,"1580 - Benefits, Revenues and Customer Contact SU",4635 - Cash Collection Contract,24/09/2013,2111336-1,470.49,2101233 - G4S Cash Services (UK) Limited,G4S Oct 13
Tendring DC,http://statistics.data.gov.uk/id/local-authority-district/22UN,Life Opportunities,8560 - Happy Valley Recreation Ground Pitch & Putt,4635 - Cash Collection Contract,24/09/2013,2111336-10,69.57,2101233 - G4S Cash Services (UK) Limited,G4S Oct 13
Tendring DC,http://statistics.data.gov.uk/id/local-authority-district/22UN,Life Opportunities,5820 - Harwich Sports Centre,4635 - Cash Collection Contract,24/09/2013,2111336-11,69.57,2101233 - G4S Cash Services (UK) Limited,G4S Oct 13
Tendring DC,http://statistics.data.gov.uk/id/local-authority-district/22UN,Life Opportunities,8025 - Car Parks - Off St,4635 - Cash Collection Contract,24/09/2013,2111336-12,47.8,2101233 - G4S Cash Services (UK) Limited,G4S Oct 13
Tendring DC,http://statistics.data.gov.uk/id/local-authority-district/22UN,Life Opportunities,5260 - HRA - Rent Collection And Accounting,4635 - Cash Collection Contract,24/09/2013,2111336-2,119.64,2101233 - G4S Cash Services (UK) Limited,G4S Oct 13
Tendring DC,http://statistics.data.gov.uk/id/local-authority-district/22UN,Life Opportunities,5260 - HRA - Rent Collection And Accounting,4635 - Cash Collection Contract,24/09/2013,2111336-3,19.58,2101233 - G4S Cash Services (UK) Limited,G4S Oct 13
Tendring DC,http://statistics.data.gov.uk/id/local-authority-district/22UN,Life Opportunities,"1580 - Benefits, Revenues and Customer Contact SU",4635 - Cash Collection Contract,24/09/2013,2111336-4,29.11,2101233 - G4S Cash Services (UK) Limited,G4S Oct 13
Tendring DC,http://statistics.data.gov.uk/id/local-authority-district/22UN,Life Opportunities,8025 - Car Parks - Off St,4635 - Cash Collection Contract,24/09/2013,2111336-5,68.11,2101233 - G4S Cash Services (UK) Limited,G4S Oct 13
Tendring DC,http://statistics.data.gov.uk/id/local-authority-district/22UN,Life Opportunities,8540 - Leisure Centre Clacton,4635 - Cash Collection Contract,24/09/2013,2111336-6,208.7,2101233 - G4S Cash Services (UK) Limited,G4S Oct 13
Tendring DC,http://statistics.data.gov.uk/id/local-authority-district/22UN,Life Opportunities,8510 - Dovercourt Swimming Pool & All Weather Facilities,4635 - Cash Collection Contract,24/09/2013,2111336-7,139.13,2101233 - G4S Cash Services (UK) Limited,G4S Oct 13
Tendring DC,http://statistics.data.gov.uk/id/local-authority-district/22UN,Life Opportunities,5800 - Brightlingsea Sports Centre,4635 - Cash Collection Contract,24/09/2013,2111336-8,69.57,2101233 - G4S Cash Services (UK) Limited,G4S Oct 13
Tendring DC,http://statistics.data.gov.uk/id/local-authority-district/22UN,Life Opportunities,8520 - Frinton & Walton Swimming Pool,4635 - Cash Collection Contract,24/09/2013,2111336-9,139.13,2101233 - G4S Cash Services (UK) Limited,G4S Oct 13
Tendring DC,http://statistics.data.gov.uk/id/local-authority-district/22UN,Life Opportunities,H920 - DFGs,C400 - Grant payments,24/09/2013,2111232-1,3800,REDACTED PERSONAL DATA,REDACTED PERSONAL DATA
Tendring DC,http://statistics.data.gov.uk/id/local-authority-district/22UN,Life Opportunities,H920 - DFGs,C400 - Grant payments,10/09/2013,1054826-1,317,REDACTED PERSONAL DATA,REDACTED PERSONAL DATA
Tendring DC,http://statistics.data.gov.uk/id/local-authority-district/22UN,Life Opportunities,H920 - DFGs,C400 - Grant payments,10/09/2013,1054827-1,311,REDACTED PERSONAL DATA,REDACTED PERSONAL DATA
Tendring DC,http://statistics.data.gov.uk/id/local-authority-district/22UN,Life Opportunities,H920 - DFGs,C400 - Grant payments,17/09/2013,1054956-1,2067.19,REDACTED PERSONAL DATA,REDACTED PERSONAL DATA
Tendring DC,http://statistics.data.gov.uk/id/local-authority-district/22UN,Life Opportunities,H920 - DFGs,C400 - Grant payments,17/09/2013,1054957-1,632,REDACTED PERSONAL DATA,REDACTED PERSONAL DATA
Tendring DC,http://statistics.data.gov.uk/id/local-authority-district/22UN,Life Opportunities,1880 - Office Accommodation Expenses,4632 - Security,10/09/2013,2110866-1,35,REDACTED PERSONAL DATA,REDACTED PERSONAL DATA
Tendring DC,http://statistics.data.gov.uk/id/local-authority-district/22UN,Life Opportunities,8540 - Leisure Centre Clacton,2100 - Building Repairs,24/09/2013,7700553-1,55,2100546 - GCS Alarms,TURNSTILE REPAIR
Tendring DC,http://statistics.data.gov.uk/id/local-authority-district/22UN,Life Opportunities,8540 - Leisure Centre Clacton,4400 - Maintenance Under Service Agreements,24/09/2013,7700573-1,708.8,2107273 - Gladstone MRM Limited,GLADSTONE UPGRADE
Tendring DC,http://statistics.data.gov.uk/id/local-authority-district/22UN,Life Opportunities,8510 - Dovercourt Swimming Pool & All Weather Facilities,4400 - Maintenance Under Service Agreements,24/09/2013,7700573-2,265.8,2107273 - Gladstone MRM Limited,GLADSTONE UPGRADE
Tendring DC,http://statistics.data.gov.uk/id/local-authority-district/22UN,Life Opportunities,8520 - Frinton & Walton Swimming Pool,4400 - Maintenance Under Service Agreements,24/09/2013,7700573-3,265.8,2107273 - Gladstone MRM Limited,GLADSTONE UPGRADE
Tendring DC,http://statistics.data.gov.uk/id/local-authority-district/22UN,Life Opportunities,5800 - Brightlingsea Sports Centre,4400 - Maintenance Under Service Agreements,24/09/2013,7700573-4,177.2,2107273 - Gladstone MRM Limited,GLADSTONE UPGRADE
Tendring DC,http://statistics.data.gov.uk/id/local-authority-district/22UN,Life Opportunities,5820 - Harwich Sports Centre,4400 - Maintenance Under Service Agreements,24/09/2013,7700573-5,177.2,2107273 - Gladstone MRM Limited,GLADSTONE UPGRADE
Tendring DC,http://statistics.data.gov.uk/id/local-authority-district/22UN,Life Opportunities,5860 - Manningtree Sports Centre,4400 - Maintenance Under Service Agreements,24/09/2013,7700573-6,177.2,2107273 - Gladstone MRM Limited,GLADSTONE UPGRADE
Tendring DC,http://statistics.data.gov.uk/id/local-authority-district/22UN,Life Opportunities,8540 - Leisure Centre Clacton,2900 - Premises Licensing - Public Entertainment,10/09/2013,2110911-1,50,2110331 - GMS Recordings,Music Broadcasting - Lifestyles
Tendring DC,http://statistics.data.gov.uk/id/local-authority-district/22UN,Life Opportunities,5240 - HRA - Managing Tenancies,5242 - Tenant Relations,10/09/2013,1054831-1,10,REDACTED PERSONAL DATA,REDACTED PERSONAL DATA
Tendring DC,http://statistics.data.gov.uk/id/local-authority-district/22UN,Life Opportunities,8540 - Leisure Centre Clacton,5160 - Advertising,03/09/2013,1054719-1,150,2112587 - Green Square Communications Limited,AD AIRSHOW PROG
Tendring DC,http://statistics.data.gov.uk/id/local-authority-district/22UN,Life Opportunities,6160 - Princes Theatre,4105 - Bar/Catering Expenses,10/09/2013,2110903-1,308.58,2112641 - Greene King Brewing and Retailing Ltd,Beverages for Theatre Bar
Tendring DC,http://statistics.data.gov.uk/id/local-authority-district/22UN,Life Opportunities,6160 - Princes Theatre,4105 - Bar/Catering Expenses,10/09/2013,2110904-1,346.44,2112641 - Greene King Brewing and Retailing Ltd,Beverages for THeatre Bar
Tendring DC,http://statistics.data.gov.uk/id/local-authority-district/22UN,Life Opportunities,6160 - Princes Theatre,4105 - Bar/Catering Expenses,17/09/2013,2111064-1,417.44,2112641 - Greene King Brewing and Retailing Ltd,Greene King Order
Tendring DC,http://statistics.data.gov.uk/id/local-authority-district/22UN,Life Opportunities,5240 - HRA - Managing Tenancies,5242 - Tenant Relations,03/09/2013,1054661-1,500,2105489 - Greenfileds Community Group,GREENFIELDS COMMUNITY GROUP IMPROVEMENT BUDGET
Tendring DC,http://statistics.data.gov.uk/id/local-authority-district/22UN,Life Opportunities,5480 - HRA - Repair & Maintenance,2017 - Mechanical Equipment /Extract Fans,24/09/2013,2111190-1,90,2106272 - Greenleaf Pest Control Services,40/08/13
Tendring DC,http://statistics.data.gov.uk/id/local-authority-district/22UN,Life Opportunities,1880 - Office Accommodation Expenses,2100 - Building Repairs,24/09/2013,2111190-2,110,2106272 - Greenleaf Pest Control Services,40/08/13
Tendring DC,http://statistics.data.gov.uk/id/local-authority-district/22UN,Life Opportunities,5480 - HRA - Repair & Maintenance,2017 - Mechanical Equipment /Extract Fans,24/09/2013,2111197-1,50,REDACTED PERSONAL DATA,REDACTED PERSONAL DATA
Tendring DC,http://statistics.data.gov.uk/id/local-authority-district/22UN,Life Opportunities,5480 - HRA - Repair & Maintenance,2017 - Mechanical Equipment /Extract Fans,24/09/2013,2111198-1,60,REDACTED PERSONAL DATA,REDACTED PERSONAL DATA
Tendring DC,http://statistics.data.gov.uk/id/local-authority-district/22UN,Life Opportunities,"1580 - Benefits, Revenues and Customer Contact SU",4462 - Bailiffs and Tracing Agent Fees re debt recovery,03/09/2013,1054690-1,153.25,2113197 - Hambury Tilmond Ltd,BAILIFF FEES RETAINED
Tendring DC,http://statistics.data.gov.uk/id/local-authority-district/22UN,Life Opportunities,"1580 - Benefits, Revenues and Customer Contact SU",4462 - Bailiffs and Tracing Agent Fees re debt recovery,03/09/2013,1054690-2,-153.25,2113197 - Hambury Tilmond Ltd,BAILIFF FEES RETAINED
Tendring DC,http://statistics.data.gov.uk/id/local-authority-district/22UN,Life Opportunities,H710 - Selected Improvements,C200 - Main Contractor,24/09/2013,2111333-1,694.62,REDACTED PERSONAL DATA,REDACTED PERSONAL DATA
Tendring DC,http://statistics.data.gov.uk/id/local-authority-district/22UN,Life Opportunities,H920 - DFGs,C400 - Grant payments,03/09/2013,1054647-1,1879.55,REDACTED PERSONAL DATA,REDACTED PERSONAL DATA
Tendring DC,http://statistics.data.gov.uk/id/local-authority-district/22UN,Life Opportunities,H920 - DFGs,C400 - Grant payments,17/09/2013,1054966-1,3026,REDACTED PERSONAL DATA,REDACTED PERSONAL DATA
Tendring DC,http://statistics.data.gov.uk/id/local-authority-district/22UN,Life Opportunities,H920 - DFGs,C400 - Grant payments,24/09/2013,2111223-1,1910,REDACTED PERSONAL DATA,REDACTED PERSONAL DATA
Tendring DC,http://statistics.data.gov.uk/id/local-authority-district/22UN,Life Opportunities,5240 - HRA - Managing Tenancies,5242 - Tenant Relations,10/09/2013,1054912-1,44,REDACTED PERSONAL DATA,REDACTED PERSONAL DATA
Tendring DC,http://statistics.data.gov.uk/id/local-authority-district/22UN,Life Opportunities,5240 - HRA - Managing Tenancies,5242 - Tenant Relations,24/09/2013,2111174-1,54,REDACTED PERSONAL DATA,REDACTED PERSONAL DATA
Tendring DC,http://statistics.data.gov.uk/id/local-authority-district/22UN,Life Opportunities,8540 - Leisure Centre Clacton,2100 - Building Repairs,24/09/2013,7700546-1,24,2100615 - Healey Tool Hire & Sales Limited,HOOVER POWER LEAD
Tendring DC,http://statistics.data.gov.uk/id/local-authority-district/22UN,Life Opportunities,7600 - Tourist Information Centres,9356 - Commission Sales,17/09/2013,2111108-1,332.86,REDACTED PERSONAL DATA,REDACTED PERSONAL DATA
Tendring DC,http://statistics.data.gov.uk/id/local-authority-district/22UN,Life Opportunities,8540 - Leisure Centre Clacton,4880 - Subscriptions Paid,10/09/2013,1054941-1,39.5,REDACTED PERSONAL DATA,REDACTED PERSONAL DATA
Tendring DC,http://statistics.data.gov.uk/id/local-authority-district/22UN,Life Opportunities,1860 - Depots General,2100 - Building Repairs,03/09/2013,1054631-1,622.2,2112468 - Henry Ashe Projects Ltd,HENRY ASHE
Tendring DC,http://statistics.data.gov.uk/id/local-authority-district/22UN,Life Opportunities,1880 - Office Accommodation Expenses,2100 - Building Repairs,24/09/2013,7009514-1,270.18,2112468 - Henry Ashe Projects Ltd,HENRY ASHE
Tendring DC,http://statistics.data.gov.uk/id/local-authority-district/22UN,Life Opportunities,8540 - Leisure Centre Clacton,5160 - Advertising,26/09/2013,2111395-1,52,2111275 - hibu (UK) Ltd,Yell AD 10/9/13
Tendring DC,http://statistics.data.gov.uk/id/local-authority-district/22UN,Life Opportunities,5260 - HRA - Rent Collection And Accounting,4461 - Court Fees,10/09/2013,1054824-1,110,REDACTED COMMERCIAL CONFIDENTIALITY,REDACTED COMMERCIAL CONFIDENTIALITY
Tendring DC,http://statistics.data.gov.uk/id/local-authority-district/22UN,Life Opportunities,5260 - HRA - Rent Collection And Accounting,4461 - Court Fees,10/09/2013,1054825-1,110,REDACTED COMMERCIAL CONFIDENTIALITY,REDACTED COMMERCIAL CONFIDENTIALITY
Tendring DC,http://statistics.data.gov.uk/id/local-authority-district/22UN,Life Opportunities,7620 - Air Show,5014 - Insurance - Air Show Insurance,17/09/2013,1055069-1,17399.99,2103697 - HMG SUB-ACCOUNT 3638,CLACTON AIRSHOW INSURANCE & FLIGHTS
Tendring DC,http://statistics.data.gov.uk/id/local-authority-district/22UN,Life Opportunities,7620 - Air Show,4628 - Hired Services - Air Displays,17/09/2013,1055069-2,3687,2103697 - HMG SUB-ACCOUNT 3638,CLACTON AIRSHOW INSURANCE & FLIGHTS
Tendring DC,http://statistics.data.gov.uk/id/local-authority-district/22UN,Life Opportunities,8520 - Frinton & Walton Swimming Pool,2100 - Building Repairs,17/09/2013,2110968-1,110,2111080 - Homecraft Contracts Electrical Ltd,FWSP - Repairs
Tendring DC,http://statistics.data.gov.uk/id/local-authority-district/22UN,Life Opportunities,8510 - Dovercourt Swimming Pool & All Weather Facilities,2100 - Building Repairs,24/09/2013,7700564-1,30,2111080 - Homecraft Contracts Electrical Ltd,DOVERCOURT POOL REPAIRS
Tendring DC,http://statistics.data.gov.uk/id/local-authority-district/22UN,Life Opportunities,8520 - Frinton & Walton Swimming Pool,2100 - Building Repairs,17/09/2013,2110967-1,445,2101848 - Homecraft Contracts Ltd,FWSP Repairs
Tendring DC,http://statistics.data.gov.uk/id/local-authority-district/22UN,Life Opportunities,8510 - Dovercourt Swimming Pool & All Weather Facilities,2100 - Building Repairs,24/09/2013,7700565-1,477,2101848 - Homecraft Contracts Ltd,DOVERCOURT POOL - REPAIRS
Tendring DC,http://statistics.data.gov.uk/id/local-authority-district/22UN,Life Opportunities,8510 - Dovercourt Swimming Pool & All Weather Facilities,2100 - Building Repairs,10/09/2013,2110891-1,45.63,2100677 - Homecraft DIY Ltd,Dovercourt Pool repairs
Tendring DC,http://statistics.data.gov.uk/id/local-authority-district/22UN,Life Opportunities,8510 - Dovercourt Swimming Pool & All Weather Facilities,2700 - Cleaning Materials,10/09/2013,2110893-1,47.48,2100677 - Homecraft DIY Ltd,Dovercourt Pool Cleaning
Tendring DC,http://statistics.data.gov.uk/id/local-authority-district/22UN,Life Opportunities,6740 - Careline,1700 - Training - Courses,24/09/2013,2111188-1,125,2113374 - Homeless Link,Accessing Mental Health Course 8/10/13
Tendring DC,http://statistics.data.gov.uk/id/local-authority-district/22UN,Life Opportunities,"1580 - Benefits, Revenues and Customer Contact SU",4300 - Printing & Stationery,03/09/2013,2110699-1,1815.2,REDACTED PERSONAL DATA,REDACTED PERSONAL DATA
Tendring DC,http://statistics.data.gov.uk/id/local-authority-district/22UN,Life Opportunities,6160 - Princes Theatre,4300 - Printing & Stationery,03/09/2013,2110701-1,435.82,2110569 - Hound Envelopes Ltd,Envelopes
Tendring DC,http://statistics.data.gov.uk/id/local-authority-district/22UN,Life Opportunities,5260 - HRA - Rent Collection And Accounting,4757 - IT External Charges,10/09/2013,2110825-1,397.02,2111338 - Housing Partners Limited,"Homeswapper List June, July & Aug 2013"
Tendring DC,http://statistics.data.gov.uk/id/local-authority-district/22UN,Life Opportunities,5220 - HRA - Policy & Management,5930 - Business Planning Expenses,03/09/2013,1054770-1,1095,2102449 - HQN Ltd,SUBS HOUSING QUALITY NETWORK 1/9/13-31/8/14
Tendring DC,http://statistics.data.gov.uk/id/local-authority-district/22UN,Life Opportunities,5860 - Manningtree Sports Centre,4597 - Hired Services - Payments to Contractors,10/09/2013,1054883-1,120,2113090 - HRC All Stars,ZUMBA + CHEERLEADING INSTRUCTOR
Tendring DC,http://statistics.data.gov.uk/id/local-authority-district/22UN,Life Opportunities,6355 - Community Activity Network,4597 - Hired Services - Payments to Contractors,10/09/2013,1054883-2,200,2113090 - HRC All Stars,ZUMBA + CHEERLEADING INSTRUCTOR
Tendring DC,http://statistics.data.gov.uk/id/local-authority-district/22UN,Life Opportunities,5480 - HRA - Repair & Maintenance,2014 - Decoration Allowances,17/09/2013,2110917-1,41.67,2109778 - ICI Contract Direct,69 Grange Road
Tendring DC,http://statistics.data.gov.uk/id/local-authority-district/22UN,Life Opportunities,5860 - Manningtree Sports Centre,4090 - Lease of Vending Machines,10/09/2013,1054882-1,356.2,2100702 - ING Lease (UK) Ltd,LEASE RENTAL SNACK + HOT DRINKS
Tendring DC,http://statistics.data.gov.uk/id/local-authority-district/22UN,Life Opportunities,5880 - Management Of Sport & Leisure Facilities,4597 - Hired Services - Payments to Contractors,17/09/2013,2110964-1,9800,2108761 - Ingleton Wood,Dovercourt Pool Extension
Tendring DC,http://statistics.data.gov.uk/id/local-authority-district/22UN,Life Opportunities,5880 - Management Of Sport & Leisure Facilities,4597 - Hired Services - Payments to Contractors,17/09/2013,2110965-1,1340,2108761 - Ingleton Wood,Dovercourt Pool Exetnsion
Tendring DC,http://statistics.data.gov.uk/id/local-authority-district/22UN,Life Opportunities,1880 - Office Accommodation Expenses,4666 - Hygiene Services,24/09/2013,2111160-1,15,2104976 - Initial Washroom Solutions,Initial 28/9/13 - 27/10/13
Tendring DC,http://statistics.data.gov.uk/id/local-authority-district/22UN,Life Opportunities,1860 - Depots General,4666 - Hygiene Services,24/09/2013,2111160-2,7.5,2104976 - Initial Washroom Solutions,Initial 28/9/13 - 27/10/13
Tendring DC,http://statistics.data.gov.uk/id/local-authority-district/22UN,Life Opportunities,1880 - Office Accommodation Expenses,4666 - Hygiene Services,24/09/2013,2111160-3,15,2104976 - Initial Washroom Solutions,Initial 28/9/13 - 27/10/13
Tendring DC,http://statistics.data.gov.uk/id/local-authority-district/22UN,Life Opportunities,1880 - Office Accommodation Expenses,4666 - Hygiene Services,24/09/2013,2111160-4,83.75,2104976 - Initial Washroom Solutions,Initial 28/9/13 - 27/10/13
Tendring DC,http://statistics.data.gov.uk/id/local-authority-district/22UN,Life Opportunities,4820 - Public Conveniences,4080 - Materials & Consumables,24/09/2013,2111160-5,103.75,2104976 - Initial Washroom Solutions,Initial 28/9/13 - 27/10/13
Tendring DC,http://statistics.data.gov.uk/id/local-authority-district/22UN,Life Opportunities,1880 - Office Accommodation Expenses,4666 - Hygiene Services,24/09/2013,2111160-6,7.5,2104976 - Initial Washroom Solutions,Initial 28/9/13 - 27/10/13
Tendring DC,http://statistics.data.gov.uk/id/local-authority-district/22UN,Life Opportunities,1880 - Office Accommodation Expenses,4448 - Confidential Waste,17/09/2013,2110949-1,131.6,2110936 - IPPlus (UK) Ltd,Ancora
Tendring DC,http://statistics.data.gov.uk/id/local-authority-district/22UN,Life Opportunities,6740 - Careline,4448 - Confidential Waste,17/09/2013,2110950-1,14.1,2110936 - IPPlus (UK) Ltd,August
Tendring DC,http://statistics.data.gov.uk/id/local-authority-district/22UN,Life Opportunities,1880 - Office Accommodation Expenses,4448 - Confidential Waste,17/09/2013,2110951-1,23.5,2110936 - IPPlus (UK) Ltd,Ancora
Tendring DC,http://statistics.data.gov.uk/id/local-authority-district/22UN,Life Opportunities,"1580 - Benefits, Revenues and Customer Contact SU",4448 - Confidential Waste,17/09/2013,2111018-1,89.3,2110936 - IPPlus (UK) Ltd,Confidential Waste Collection
Tendring DC,http://statistics.data.gov.uk/id/local-authority-district/22UN,Life Opportunities,8540 - Leisure Centre Clacton,9200 - Course Income,24/09/2013,2111272-1,20,REDACTED PERSONAL DATA,REDACTED PERSONAL DATA
Tendring DC,http://statistics.data.gov.uk/id/local-authority-district/22UN,Life Opportunities,8520 - Frinton & Walton Swimming Pool,4400 - Maintenance Under Service Agreements,03/09/2013,1054787-1,50,2111218 - J Cripps,J CRIPPS-WINDOW FWSP
Tendring DC,http://statistics.data.gov.uk/id/local-authority-district/22UN,Life Opportunities,8540 - Leisure Centre Clacton,4000 - Furniture,03/09/2013,1054718-1,80.55,2100755 - J P Lennard Ltd,H/DRIER & RESALES
Tendring DC,http://statistics.data.gov.uk/id/local-authority-district/22UN,Life Opportunities,8540 - Leisure Centre Clacton,5300 - Resaleable Items,03/09/2013,1054718-2,62.61,2100755 - J P Lennard Ltd,H/DRIER & RESALES
Tendring DC,http://statistics.data.gov.uk/id/local-authority-district/22UN,Life Opportunities,8560 - Happy Valley Recreation Ground Pitch & Putt,4040 - Equipment & Tools,03/09/2013,1054718-3,10.62,2100755 - J P Lennard Ltd,H/DRIER & RESALES
Tendring DC,http://statistics.data.gov.uk/id/local-authority-district/22UN,Life Opportunities,8540 - Leisure Centre Clacton,4000 - Furniture,03/09/2013,1054718-4,12.6,2100755 - J P Lennard Ltd,H/DRIER & RESALES
Tendring DC,http://statistics.data.gov.uk/id/local-authority-district/22UN,Life Opportunities,8540 - Leisure Centre Clacton,2100 - Building Repairs,10/09/2013,1054895-1,53.65,2100755 - J P Lennard Ltd,RATCHET SPANNER
Tendring DC,http://statistics.data.gov.uk/id/local-authority-district/22UN,Life Opportunities,5800 - Brightlingsea Sports Centre,4000 - Furniture,17/09/2013,2110959-1,69.98,2100755 - J P Lennard Ltd,J P Lennard
Tendring DC,http://statistics.data.gov.uk/id/local-authority-district/22UN,Life Opportunities,8540 - Leisure Centre Clacton,4200 - Clothing & Uniforms,24/09/2013,7700545-1,60.6,2100755 - J P Lennard Ltd,SHORTS
Tendring DC,http://statistics.data.gov.uk/id/local-authority-district/22UN,Life Opportunities,8540 - Leisure Centre Clacton,4597 - Hired Services - Payments to Contractors,24/09/2013,7700552-1,150,REDACTED PERSONAL DATA,REDACTED PERSONAL DATA
Tendring DC,http://statistics.data.gov.uk/id/local-authority-district/22UN,Life Opportunities,1240 - Housing Services Service Unit,3302 - Car Allowances - Officers,03/09/2013,1054656-1,17.6,REDACTED PERSONAL DATA,REDACTED PERSONAL DATA
Tendring DC,http://statistics.data.gov.uk/id/local-authority-district/22UN,Life Opportunities,1240 - Housing Services Service Unit,3302 - Car Allowances - Officers,10/09/2013,1054945-1,21.2,REDACTED PERSONAL DATA,REDACTED PERSONAL DATA
Tendring DC,http://statistics.data.gov.uk/id/local-authority-district/22UN,Life Opportunities,1240 - Housing Services Service Unit,3302 - Car Allowances - Officers,17/09/2013,1055036-1,22,REDACTED PERSONAL DATA,REDACTED PERSONAL DATA
Tendring DC,http://statistics.data.gov.uk/id/local-authority-district/22UN,Life Opportunities,1240 - Housing Services Service Unit,3302 - Car Allowances - Officers,24/09/2013,2111271-1,17.6,REDACTED PERSONAL DATA,REDACTED PERSONAL DATA
Tendring DC,http://statistics.data.gov.uk/id/local-authority-district/22UN,Life Opportunities,8520 - Frinton & Walton Swimming Pool,5311 - General Provisions - Vending,24/09/2013,1055105-1,166,2109088 - JC Vending Services,JC Vending Services
Tendring DC,http://statistics.data.gov.uk/id/local-authority-district/22UN,Life Opportunities,8510 - Dovercourt Swimming Pool & All Weather Facilities,5311 - General Provisions - Vending,17/09/2013,2111063-1,90.7,2109088 - JC Vending Services,Dovercourt Pool Drinks
Tendring DC,http://statistics.data.gov.uk/id/local-authority-district/22UN,Life Opportunities,8510 - Dovercourt Swimming Pool & All Weather Facilities,9228 - Swimming Lessons,17/09/2013,1055044-1,24,REDACTED PERSONAL DATA,REDACTED PERSONAL DATA
Tendring DC,http://statistics.data.gov.uk/id/local-authority-district/22UN,Life Opportunities,5140 - Homelessness,4689 - Special Homelessness Projects Expenses,24/09/2013,2111266-1,50,2100707 - JMC Fabrications,"New Street B,Sea"
Tendring DC,http://statistics.data.gov.uk/id/local-authority-district/22UN,Life Opportunities,5240 - HRA - Managing Tenancies,5242 - Tenant Relations,10/09/2013,1054829-1,10,REDACTED PERSONAL DATA,REDACTED PERSONAL DATA
Tendring DC,http://statistics.data.gov.uk/id/local-authority-district/22UN,Life Opportunities,H920 - DFGs,C400 - Grant payments,24/09/2013,2111224-1,3899.16,REDACTED PERSONAL DATA,REDACTED PERSONAL DATA
Tendring DC,http://statistics.data.gov.uk/id/local-authority-district/22UN,Life Opportunities,5140 - Homelessness,4683 - Other Homelessness Expenses,17/09/2013,1055038-1,725,REDACTED PERSONAL DATA,REDACTED PERSONAL DATA
Tendring DC,http://statistics.data.gov.uk/id/local-authority-district/22UN,Life Opportunities,5480 - HRA - Repair & Maintenance,2064 - Domestic Appliance Repairs,17/09/2013,2111053-1,45,2112159 - Justins Domestic Appliance Repairs,Kate Daniels
Tendring DC,http://statistics.data.gov.uk/id/local-authority-district/22UN,Life Opportunities,5480 - HRA - Repair & Maintenance,2064 - Domestic Appliance Repairs,17/09/2013,2111054-1,45,2112159 - Justins Domestic Appliance Repairs,Belmans Court
Tendring DC,http://statistics.data.gov.uk/id/local-authority-district/22UN,Life Opportunities,5480 - HRA - Repair & Maintenance,2064 - Domestic Appliance Repairs,17/09/2013,2111055-1,45,REDACTED PERSONAL DATA,REDACTED PERSONAL DATA
Tendring DC,http://statistics.data.gov.uk/id/local-authority-district/22UN,Life Opportunities,1880 - Office Accommodation Expenses,2100 - Building Repairs,03/09/2013,1054608-1,75,2111266 - JW Plumbing and Heating,JW PLUMBING
Tendring DC,http://statistics.data.gov.uk/id/local-authority-district/22UN,Life Opportunities,1880 - Office Accommodation Expenses,2100 - Building Repairs,03/09/2013,1054608-2,48.72,2111266 - JW Plumbing and Heating,JW PLUMBING
Tendring DC,http://statistics.data.gov.uk/id/local-authority-district/22UN,Life Opportunities,1880 - Office Accommodation Expenses,2100 - Building Repairs,10/09/2013,1054854-1,75,2111266 - JW Plumbing and Heating,JW PLUMBING
Tendring DC,http://statistics.data.gov.uk/id/local-authority-district/22UN,Life Opportunities,1880 - Office Accommodation Expenses,2100 - Building Repairs,10/09/2013,1054854-2,58.18,2111266 - JW Plumbing and Heating,JW PLUMBING
Tendring DC,http://statistics.data.gov.uk/id/local-authority-district/22UN,Life Opportunities,1880 - Office Accommodation Expenses,2100 - Building Repairs,10/09/2013,1054855-1,75,2111266 - JW Plumbing and Heating,JW PLUMBING
Tendring DC,http://statistics.data.gov.uk/id/local-authority-district/22UN,Life Opportunities,1880 - Office Accommodation Expenses,2100 - Building Repairs,10/09/2013,1054855-2,90.16,2111266 - JW Plumbing and Heating,JW PLUMBING
Tendring DC,http://statistics.data.gov.uk/id/local-authority-district/22UN,Life Opportunities,H860 - Disabled Adaptations,C200 - Main Contractor,10/09/2013,1054922-1,2167,REDACTED PERSONAL DATA,REDACTED PERSONAL DATA
Tendring DC,http://statistics.data.gov.uk/id/local-authority-district/22UN,Life Opportunities,H860 - Disabled Adaptations,C200 - Main Contractor,10/09/2013,1054922-2,2645,REDACTED PERSONAL DATA,REDACTED PERSONAL DATA
Tendring DC,http://statistics.data.gov.uk/id/local-authority-district/22UN,Life Opportunities,H860 - Disabled Adaptations,C200 - Main Contractor,24/09/2013,2111195-1,2650,REDACTED PERSONAL DATA,REDACTED PERSONAL DATA
Tendring DC,http://statistics.data.gov.uk/id/local-authority-district/22UN,Life Opportunities,H860 - Disabled Adaptations,C200 - Main Contractor,24/09/2013,2111195-2,2625,REDACTED PERSONAL DATA,REDACTED PERSONAL DATA
Tendring DC,http://statistics.data.gov.uk/id/local-authority-district/22UN,Life Opportunities,8520 - Frinton & Walton Swimming Pool,2100 - Building Repairs,17/09/2013,1055019-1,204.17,2100758 - K A Hockley Ltd,FWSP-REPAIRS & MAINTENANCE
Tendring DC,http://statistics.data.gov.uk/id/local-authority-district/22UN,Life Opportunities,5140 - Homelessness,4683 - Other Homelessness Expenses,17/09/2013,1054992-1,725,REDACTED PERSONAL DATA,REDACTED PERSONAL DATA
Tendring DC,http://statistics.data.gov.uk/id/local-authority-district/22UN,Life Opportunities,1565 - Careline / CCTV Service Unit,3302 - Car Allowances - Officers,17/09/2013,1055035-1,6.4,2112682 - K Williams,CAREER TRACK MILEAGE-KATIE WILLIAMS
Tendring DC,http://statistics.data.gov.uk/id/local-authority-district/22UN,Life Opportunities,6160 - Princes Theatre,2100 - Building Repairs,17/09/2013,2110933-1,330,2100016 - Kemp Rust Consulting Ltd,Princes Theatre Site Report
Tendring DC,http://statistics.data.gov.uk/id/local-authority-district/22UN,Life Opportunities,6160 - Princes Theatre,4622 - Hired Services - Artistes and Production Companies,10/09/2013,2110840-1,10800,REDACTED PERSONAL DATA,REDACTED PERSONAL DATA
Tendring DC,http://statistics.data.gov.uk/id/local-authority-district/22UN,Life Opportunities,7000 - CCTV,4400 - Maintenance Under Service Agreements,10/09/2013,2110892-1,60,2100890 - Kirby Locks Ltd,Kirby Locks Ltd
Tendring DC,http://statistics.data.gov.uk/id/local-authority-district/22UN,Life Opportunities,6355 - Community Activity Network,4597 - Hired Services - Payments to Contractors,10/09/2013,2110828-1,200,2104322 - Kirby Tennis Club,Tennis Coaching 2013
Tendring DC,http://statistics.data.gov.uk/id/local-authority-district/22UN,Life Opportunities,5360 - HRA - Sheltered Units,4601 - Hired services - Cleaning,24/09/2013,2111202-1,238,REDACTED PERSONAL DATA,REDACTED PERSONAL DATA
Tendring DC,http://statistics.data.gov.uk/id/local-authority-district/22UN,Life Opportunities,5360 - HRA - Sheltered Units,4601 - Hired services - Cleaning,24/09/2013,2111203-1,588.88,REDACTED PERSONAL DATA,REDACTED PERSONAL DATA
Tendring DC,http://statistics.data.gov.uk/id/local-authority-district/22UN,Life Opportunities,5360 - HRA - Sheltered Units,4601 - Hired services - Cleaning,24/09/2013,2111204-1,629,REDACTED PERSONAL DATA,REDACTED PERSONAL DATA
Tendring DC,http://statistics.data.gov.uk/id/local-authority-district/22UN,Life Opportunities,"1580 - Benefits, Revenues and Customer Contact SU",4466 - Land Registry Fees,24/09/2013,7700558-1,360,2113091 - Land Registry Commercial Services,OWNERSHIP CHANGE INDICATOR MONTH 12
Tendring DC,http://statistics.data.gov.uk/id/local-authority-district/22UN,Life Opportunities,7520 - Tourism Publicity Marketing Promotion,5160 - Advertising,17/09/2013,2110972-1,395,2108803 - Landor Travel Publications Ltd,Advertising in Group Travel Organiser August 13
Tendring DC,http://statistics.data.gov.uk/id/local-authority-district/22UN,Life Opportunities,7620 - Air Show,4800 - Hospitality,17/09/2013,2110927-1,2715.2,2100893 - Leisure Hire Marquees Ltd,Marquees & Equipment for Airshow Aug 2013
Tendring DC,http://statistics.data.gov.uk/id/local-authority-district/22UN,Life Opportunities,"1580 - Benefits, Revenues and Customer Contact SU",4459 - External Legal Advice,17/09/2013,2111123-1,574,2111904 - Lester Aldridge LLP,Charges and Disbursements
Tendring DC,http://statistics.data.gov.uk/id/local-authority-district/22UN,Life Opportunities,"1580 - Benefits, Revenues and Customer Contact SU",4459 - External Legal Advice,17/09/2013,2111123-2,396.45,2111904 - Lester Aldridge LLP,Charges and Disbursements
Tendring DC,http://statistics.data.gov.uk/id/local-authority-district/22UN,Life Opportunities,"1580 - Benefits, Revenues and Customer Contact SU",4459 - External Legal Advice,17/09/2013,2111123-3,6,2111904 - Lester Aldridge LLP,Charges and Disbursements
Tendring DC,http://statistics.data.gov.uk/id/local-authority-district/22UN,Life Opportunities,5800 - Brightlingsea Sports Centre,4080 - Materials & Consumables,10/09/2013,1054890-1,120,2103500 - Liquidline,LIQUIDLINE
Tendring DC,http://statistics.data.gov.uk/id/local-authority-district/22UN,Life Opportunities,6740 - Careline,3300 - Public Transport - Officers,10/09/2013,1054943-1,25,2112785 - Luke Rosier,
Tendring DC,http://statistics.data.gov.uk/id/local-authority-district/22UN,Life Opportunities,6160 - Princes Theatre,4597 - Hired Services - Payments to Contractors,10/09/2013,2110834-1,150,2100837 - M A Williams,Stocktaking 20/8/13
Tendring DC,http://statistics.data.gov.uk/id/local-authority-district/22UN,Life Opportunities,8510 - Dovercourt Swimming Pool & All Weather Facilities,4597 - Hired Services - Payments to Contractors,24/09/2013,7700570-1,89,2111940 - M Frost & Associates Ltd,DOVERCOURT & FRINTON
Tendring DC,http://statistics.data.gov.uk/id/local-authority-district/22UN,Life Opportunities,8520 - Frinton & Walton Swimming Pool,4597 - Hired Services - Payments to Contractors,24/09/2013,7700570-2,89,2111940 - M Frost & Associates Ltd,DOVERCOURT & FRINTON
Tendring DC,http://statistics.data.gov.uk/id/local-authority-district/22UN,Life Opportunities,6160 - Princes Theatre,4105 - Bar/Catering Expenses,17/09/2013,2111028-1,53.38,2105052 - Maddisons,Bar Items
Tendring DC,http://statistics.data.gov.uk/id/local-authority-district/22UN,Life Opportunities,6160 - Princes Theatre,4105 - Bar/Catering Expenses,17/09/2013,2111028-2,81.48,2105052 - Maddisons,Bar Items
Tendring DC,http://statistics.data.gov.uk/id/local-authority-district/22UN,Life Opportunities,6160 - Princes Theatre,4040 - Equipment & Tools,24/09/2013,2111183-1,87.6,2105052 - Maddisons,x4 Half Pint Glasses x 50
Tendring DC,http://statistics.data.gov.uk/id/local-authority-district/22UN,Life Opportunities,6160 - Princes Theatre,2100 - Building Repairs,10/09/2013,1054920-1,220,2107196 - Mains 'N' Drains 24-Hour Plumbing Services,REPLACE MANHOLE COVERS
Tendring DC,http://statistics.data.gov.uk/id/local-authority-district/22UN,Life Opportunities,5480 - HRA - Repair & Maintenance,2015 - Drain Clearance And Repairs,17/09/2013,1055053-1,48.5,REDACTED PERSONAL DATA,REDACTED PERSONAL DATA
Tendring DC,http://statistics.data.gov.uk/id/local-authority-district/22UN,Life Opportunities,8510 - Dovercourt Swimming Pool & All Weather Facilities,2100 - Building Repairs,10/09/2013,2110822-1,80,2107196 - Mains 'N' Drains 24-Hour Plumbing Services,Dovercourt Pool
Tendring DC,http://statistics.data.gov.uk/id/local-authority-district/22UN,Life Opportunities,5480 - HRA - Repair & Maintenance,2015 - Drain Clearance And Repairs,17/09/2013,2111104-1,117,REDACTED PERSONAL DATA,REDACTED PERSONAL DATA
Tendring DC,http://statistics.data.gov.uk/id/local-authority-district/22UN,Life Opportunities,5480 - HRA - Repair & Maintenance,2015 - Drain Clearance And Repairs,24/09/2013,2111179-1,1761.25,2107196 - Mains 'N' Drains 24-Hour Plumbing Services,Council House Bloackages March 2013
Tendring DC,http://statistics.data.gov.uk/id/local-authority-district/22UN,Life Opportunities,5480 - HRA - Repair & Maintenance,2091 - External Works,24/09/2013,2111180-1,2714.25,2107196 - Mains 'N' Drains 24-Hour Plumbing Services,Council House Blockages
Tendring DC,http://statistics.data.gov.uk/id/local-authority-district/22UN,Life Opportunities,5480 - HRA - Repair & Maintenance,2076 - Gas Service Contract Other Refurbishment/Repairs (,24/09/2013,2111181-1,124.5,2107196 - Mains 'N' Drains 24-Hour Plumbing Services,Council House Blockages
Tendring DC,http://statistics.data.gov.uk/id/local-authority-district/22UN,Life Opportunities,C021 - Mercury Abatement Equipment and Cremator replacement,C200 - Main Contractor,24/09/2013,2111196-1,1000,2107196 - Mains 'N' Drains 24-Hour Plumbing Services,Weeley Crem
Tendring DC,http://statistics.data.gov.uk/id/local-authority-district/22UN,Life Opportunities,8540 - Leisure Centre Clacton,2100 - Building Repairs,24/09/2013,7700547-1,40,2107196 - Mains 'N' Drains 24-Hour Plumbing Services,CLEAR BLOCKED DRAIN
Tendring DC,http://statistics.data.gov.uk/id/local-authority-district/22UN,Life Opportunities,8540 - Leisure Centre Clacton,2100 - Building Repairs,24/09/2013,7700548-1,40,2107196 - Mains 'N' Drains 24-Hour Plumbing Services,CLEAR BLOCKED DRAIN
Tendring DC,http://statistics.data.gov.uk/id/local-authority-district/22UN,Life Opportunities,5240 - HRA - Managing Tenancies,5242 - Tenant Relations,10/09/2013,2110827-1,78,2113137 - Manningtree Taxis,Transport on 27/8/2013
Tendring DC,http://statistics.data.gov.uk/id/local-authority-district/22UN,Life Opportunities,5140 - Homelessness,4680 - Bed & Breakfast Accommodation,03/09/2013,2110725-1,60,REDACTED PERSONAL DATA,REDACTED PERSONAL DATA
Tendring DC,http://statistics.data.gov.uk/id/local-authority-district/22UN,Life Opportunities,5140 - Homelessness,9032 - Homelessness Accommodation Charges,03/09/2013,2110725-2,-7.05,REDACTED PERSONAL DATA,REDACTED PERSONAL DATA
Tendring DC,http://statistics.data.gov.uk/id/local-authority-district/22UN,Life Opportunities,5140 - Homelessness,4680 - Bed & Breakfast Accommodation,17/09/2013,2111056-1,140,REDACTED PERSONAL DATA,REDACTED PERSONAL DATA
Tendring DC,http://statistics.data.gov.uk/id/local-authority-district/22UN,Life Opportunities,5140 - Homelessness,9032 - Homelessness Accommodation Charges,17/09/2013,2111056-2,-16.45,REDACTED PERSONAL DATA,REDACTED PERSONAL DATA
Tendring DC,http://statistics.data.gov.uk/id/local-authority-district/22UN,Life Opportunities,5140 - Homelessness,4680 - Bed & Breakfast Accommodation,17/09/2013,2111057-1,140,REDACTED PERSONAL DATA,REDACTED PERSONAL DATA
Tendring DC,http://statistics.data.gov.uk/id/local-authority-district/22UN,Life Opportunities,5140 - Homelessness,9032 - Homelessness Accommodation Charges,17/09/2013,2111057-2,-16.45,REDACTED PERSONAL DATA,REDACTED PERSONAL DATA
Tendring DC,http://statistics.data.gov.uk/id/local-authority-district/22UN,Life Opportunities,5140 - Homelessness,4680 - Bed & Breakfast Accommodation,17/09/2013,2111058-1,40,REDACTED PERSONAL DATA,REDACTED PERSONAL DATA
Tendring DC,http://statistics.data.gov.uk/id/local-authority-district/22UN,Life Opportunities,5140 - Homelessness,9032 - Homelessness Accommodation Charges,17/09/2013,2111058-2,-4.7,REDACTED PERSONAL DATA,REDACTED PERSONAL DATA
Tendring DC,http://statistics.data.gov.uk/id/local-authority-district/22UN,Life Opportunities,5140 - Homelessness,4680 - Bed & Breakfast Accommodation,17/09/2013,2111059-1,140,REDACTED PERSONAL DATA,REDACTED PERSONAL DATA
Tendring DC,http://statistics.data.gov.uk/id/local-authority-district/22UN,Life Opportunities,5140 - Homelessness,9032 - Homelessness Accommodation Charges,17/09/2013,2111059-2,-16.45,REDACTED PERSONAL DATA,REDACTED PERSONAL DATA
Tendring DC,http://statistics.data.gov.uk/id/local-authority-district/22UN,Life Opportunities,5140 - Homelessness,4680 - Bed & Breakfast Accommodation,17/09/2013,2111060-1,60,REDACTED PERSONAL DATA,REDACTED PERSONAL DATA
Tendring DC,http://statistics.data.gov.uk/id/local-authority-district/22UN,Life Opportunities,5140 - Homelessness,9032 - Homelessness Accommodation Charges,17/09/2013,2111060-2,-7.05,REDACTED PERSONAL DATA,REDACTED PERSONAL DATA
Tendring DC,http://statistics.data.gov.uk/id/local-authority-district/22UN,Life Opportunities,5140 - Homelessness,4680 - Bed & Breakfast Accommodation,24/09/2013,2111262-1,420,REDACTED PERSONAL DATA,REDACTED PERSONAL DATA
Tendring DC,http://statistics.data.gov.uk/id/local-authority-district/22UN,Life Opportunities,5140 - Homelessness,9032 - Homelessness Accommodation Charges,24/09/2013,2111262-2,-16.45,REDACTED PERSONAL DATA,REDACTED PERSONAL DATA
Tendring DC,http://statistics.data.gov.uk/id/local-authority-district/22UN,Life Opportunities,5140 - Homelessness,4680 - Bed & Breakfast Accommodation,24/09/2013,2111263-1,180,REDACTED PERSONAL DATA,REDACTED PERSONAL DATA
Tendring DC,http://statistics.data.gov.uk/id/local-authority-district/22UN,Life Opportunities,5140 - Homelessness,9032 - Homelessness Accommodation Charges,24/09/2013,2111263-2,-7.05,REDACTED PERSONAL DATA,REDACTED PERSONAL DATA
Tendring DC,http://statistics.data.gov.uk/id/local-authority-district/22UN,Life Opportunities,5140 - Homelessness,4680 - Bed & Breakfast Accommodation,24/09/2013,2111264-1,140,REDACTED PERSONAL DATA,REDACTED PERSONAL DATA
Tendring DC,http://statistics.data.gov.uk/id/local-authority-district/22UN,Life Opportunities,5140 - Homelessness,9032 - Homelessness Accommodation Charges,24/09/2013,2111264-2,-16.45,REDACTED PERSONAL DATA,REDACTED PERSONAL DATA
Tendring DC,http://statistics.data.gov.uk/id/local-authority-district/22UN,Life Opportunities,5140 - Homelessness,4680 - Bed & Breakfast Accommodation,24/09/2013,2111265-1,20,REDACTED PERSONAL DATA,REDACTED PERSONAL DATA
Tendring DC,http://statistics.data.gov.uk/id/local-authority-district/22UN,Life Opportunities,5140 - Homelessness,9032 - Homelessness Accommodation Charges,24/09/2013,2111265-2,-2.35,REDACTED PERSONAL DATA,REDACTED PERSONAL DATA
Tendring DC,http://statistics.data.gov.uk/id/local-authority-district/22UN,Life Opportunities,5480 - HRA - Repair & Maintenance,2088 - Disabled Adaptations,24/09/2013,2111298-1,145,REDACTED PERSONAL DATA,REDACTED PERSONAL DATA
Tendring DC,http://statistics.data.gov.uk/id/local-authority-district/22UN,Life Opportunities,5480 - HRA - Repair & Maintenance,2088 - Disabled Adaptations,24/09/2013,2111298-2,90,REDACTED PERSONAL DATA,REDACTED PERSONAL DATA
Tendring DC,http://statistics.data.gov.uk/id/local-authority-district/22UN,Life Opportunities,5480 - HRA - Repair & Maintenance,2088 - Disabled Adaptations,24/09/2013,2111299-1,293,REDACTED PERSONAL DATA,REDACTED PERSONAL DATA
Tendring DC,http://statistics.data.gov.uk/id/local-authority-district/22UN,Life Opportunities,5480 - HRA - Repair & Maintenance,2088 - Disabled Adaptations,24/09/2013,2111299-2,185,REDACTED PERSONAL DATA,REDACTED PERSONAL DATA
Tendring DC,http://statistics.data.gov.uk/id/local-authority-district/22UN,Life Opportunities,H860 - Disabled Adaptations,C200 - Main Contractor,24/09/2013,2111300-1,1464,REDACTED PERSONAL DATA,REDACTED PERSONAL DATA
Tendring DC,http://statistics.data.gov.uk/id/local-authority-district/22UN,Life Opportunities,H860 - Disabled Adaptations,C200 - Main Contractor,24/09/2013,2111300-2,886,REDACTED PERSONAL DATA,REDACTED PERSONAL DATA
Tendring DC,http://statistics.data.gov.uk/id/local-authority-district/22UN,Life Opportunities,8540 - Leisure Centre Clacton,9200 - Course Income,10/09/2013,1054936-1,12,REDACTED PERSONAL DATA,REDACTED PERSONAL DATA
Tendring DC,http://statistics.data.gov.uk/id/local-authority-district/22UN,Life Opportunities,5240 - HRA - Managing Tenancies,5242 - Tenant Relations,10/09/2013,1054839-1,10,REDACTED PERSONAL DATA,REDACTED PERSONAL DATA
Tendring DC,http://statistics.data.gov.uk/id/local-authority-district/22UN,Life Opportunities,1880 - Office Accommodation Expenses,2100 - Building Repairs,17/09/2013,2110953-1,125,2113393 - Mattlocksessex,Mattlocksessex
Tendring DC,http://statistics.data.gov.uk/id/local-authority-district/22UN,Life Opportunities,1880 - Office Accommodation Expenses,2100 - Building Repairs,17/09/2013,2110954-1,75,2113393 - Mattlocksessex,Mattlocksessex
Tendring DC,http://statistics.data.gov.uk/id/local-authority-district/22UN,Life Opportunities,1090 - Chief Executive and Support Service Unit,4355 - Books & Periodicals,17/09/2013,2111070-1,61.7,2112734 - Matt's Carousel,Newspapers Aug 13
Tendring DC,http://statistics.data.gov.uk/id/local-authority-district/22UN,Life Opportunities,1100 - Corporate Director (Corporate Services) and Admin Service Unit,4355 - Books & Periodicals,17/09/2013,2111070-2,48.35,2112734 - Matt's Carousel,Newspapers Aug 13
Tendring DC,http://statistics.data.gov.uk/id/local-authority-district/22UN,Life Opportunities,1040 - Regeneration Service Unit,4355 - Books & Periodicals,17/09/2013,2111070-3,21.05,2112734 - Matt's Carousel,Newspapers Aug 13
Tendring DC,http://statistics.data.gov.uk/id/local-authority-district/22UN,Life Opportunities,"1580 - Benefits, Revenues and Customer Contact SU",4355 - Books & Periodicals,17/09/2013,2111070-4,21.05,2112734 - Matt's Carousel,Newspapers Aug 13
Tendring DC,http://statistics.data.gov.uk/id/local-authority-district/22UN,Life Opportunities,7040 - Civic Ceremonial Expenses,4080 - Materials & Consumables,17/09/2013,2111070-5,4,2112734 - Matt's Carousel,Newspapers Aug 13
Tendring DC,http://statistics.data.gov.uk/id/local-authority-district/22UN,Life Opportunities,1880 - Office Accommodation Expenses,2100 - Building Repairs,03/09/2013,1054637-1,68.4,2101791 - Medlock Electrical,MEDLOCK
Tendring DC,http://statistics.data.gov.uk/id/local-authority-district/22UN,Life Opportunities,8540 - Leisure Centre Clacton,2100 - Building Repairs,10/09/2013,1054899-1,49.68,2101791 - Medlock Electrical,LIGHT BULBS
Tendring DC,http://statistics.data.gov.uk/id/local-authority-district/22UN,Life Opportunities,8540 - Leisure Centre Clacton,2100 - Building Repairs,10/09/2013,1054900-1,5.4,2101791 - Medlock Electrical,LIGHT BULBS
Tendring DC,http://statistics.data.gov.uk/id/local-authority-district/22UN,Life Opportunities,1880 - Office Accommodation Expenses,2100 - Building Repairs,17/09/2013,2111118-1,13.2,2101791 - Medlock Electrical,Medlock
Tendring DC,http://statistics.data.gov.uk/id/local-authority-district/22UN,Life Opportunities,5880 - Management Of Sport & Leisure Facilities,5166 - Marketing and Promotion,24/09/2013,1055098-1,70,2102946 - Mellow 1557 Ltd,Voice Script Change
Tendring DC,http://statistics.data.gov.uk/id/local-authority-district/22UN,Life Opportunities,6160 - Princes Theatre,5160 - Advertising,17/09/2013,2110926-1,199,2102946 - Mellow 1557 Ltd,Dream 100 Princes theatre
Tendring DC,http://statistics.data.gov.uk/id/local-authority-district/22UN,Life Opportunities,9920 - HRA Balance Sheet,B860 - Housing Rents - Cash,17/09/2013,1054982-1,17.4,REDACTED PERSONAL DATA,REDACTED PERSONAL DATA
Tendring DC,http://statistics.data.gov.uk/id/local-authority-district/22UN,Life Opportunities,9920 - HRA Balance Sheet,B860 - Housing Rents - Cash,17/09/2013,1054988-1,350,REDACTED PERSONAL DATA,REDACTED PERSONAL DATA
Tendring DC,http://statistics.data.gov.uk/id/local-authority-district/22UN,Life Opportunities,9920 - HRA Balance Sheet,B860 - Housing Rents - Cash,24/09/2013,2111236-1,337.84,REDACTED PERSONAL DATA,REDACTED PERSONAL DATA
Tendring DC,http://statistics.data.gov.uk/id/local-authority-district/22UN,Life Opportunities,8540 - Leisure Centre Clacton,4400 - Maintenance Under Service Agreements,24/09/2013,7700549-1,64.4,2104791 - Mobile Mini Uk Ltd,CONTAINER RENT 28/8/13 - 24/9/13
Tendring DC,http://statistics.data.gov.uk/id/local-authority-district/22UN,Life Opportunities,6160 - Princes Theatre,4622 - Hired Services - Artistes and Production Companies,10/09/2013,2110833-1,1714.08,2106879 - Morningside Management Ltd,Bon Jovi
Tendring DC,http://statistics.data.gov.uk/id/local-authority-district/22UN,Life Opportunities,9920 - HRA Balance Sheet,B860 - Housing Rents - Cash,24/09/2013,2111235-1,299.33,REDACTED PERSONAL DATA,REDACTED PERSONAL DATA
Tendring DC,http://statistics.data.gov.uk/id/local-authority-district/22UN,Life Opportunities,5240 - HRA - Managing Tenancies,5242 - Tenant Relations,10/09/2013,1054838-1,10,REDACTED PERSONAL DATA,REDACTED PERSONAL DATA
Tendring DC,http://statistics.data.gov.uk/id/local-authority-district/22UN,Life Opportunities,9920 - HRA Balance Sheet,B860 - Housing Rents - Cash,10/09/2013,1054934-1,1044.01,REDACTED PERSONAL DATA,REDACTED PERSONAL DATA
Tendring DC,http://statistics.data.gov.uk/id/local-authority-district/22UN,Life Opportunities,H945 - Empty Homes funding,C402 - Grant payments for Empty Homes scheme,17/09/2013,1054959-1,5,REDACTED PERSONAL DATA,REDACTED PERSONAL DATA
Tendring DC,http://statistics.data.gov.uk/id/local-authority-district/22UN,Life Opportunities,9920 - HRA Balance Sheet,B860 - Housing Rents - Cash,17/09/2013,1054984-1,70.41,REDACTED PERSONAL DATA,REDACTED PERSONAL DATA
Tendring DC,http://statistics.data.gov.uk/id/local-authority-district/22UN,Life Opportunities,5240 - HRA - Managing Tenancies,6620 - Under Occupation Incentive Scheme,17/09/2013,1055041-1,656.46,REDACTED PERSONAL DATA,REDACTED PERSONAL DATA
Tendring DC,http://statistics.data.gov.uk/id/local-authority-district/22UN,Life Opportunities,5240 - HRA - Managing Tenancies,5242 - Tenant Relations,03/09/2013,1054664-1,10,REDACTED PERSONAL DATA,REDACTED PERSONAL DATA
Tendring DC,http://statistics.data.gov.uk/id/local-authority-district/22UN,Life Opportunities,9920 - HRA Balance Sheet,B860 - Housing Rents - Cash,10/09/2013,1054932-1,17.46,REDACTED PERSONAL DATA,REDACTED PERSONAL DATA
Tendring DC,http://statistics.data.gov.uk/id/local-authority-district/22UN,Life Opportunities,5240 - HRA - Managing Tenancies,5242 - Tenant Relations,03/09/2013,1054665-1,10,REDACTED PERSONAL DATA,REDACTED PERSONAL DATA
Tendring DC,http://statistics.data.gov.uk/id/local-authority-district/22UN,Life Opportunities,9920 - HRA Balance Sheet,B860 - Housing Rents - Cash,17/09/2013,1054983-1,36.19,REDACTED PERSONAL DATA,REDACTED PERSONAL DATA
Tendring DC,http://statistics.data.gov.uk/id/local-authority-district/22UN,Life Opportunities,9920 - HRA Balance Sheet,B860 - Housing Rents - Cash,17/09/2013,1054976-1,5320.58,REDACTED PERSONAL DATA,REDACTED PERSONAL DATA
Tendring DC,http://statistics.data.gov.uk/id/local-authority-district/22UN,Life Opportunities,9920 - HRA Balance Sheet,B860 - Housing Rents - Cash,10/09/2013,1054935-1,148.52,REDACTED PERSONAL DATA,REDACTED PERSONAL DATA
Tendring DC,http://statistics.data.gov.uk/id/local-authority-district/22UN,Life Opportunities,8510 - Dovercourt Swimming Pool & All Weather Facilities,9250 - Premium Option Card,17/09/2013,1055045-1,12.5,REDACTED PERSONAL DATA,REDACTED PERSONAL DATA
Tendring DC,http://statistics.data.gov.uk/id/local-authority-district/22UN,Life Opportunities,9920 - HRA Balance Sheet,B860 - Housing Rents - Cash,24/09/2013,2111238-1,37.73,REDACTED PERSONAL DATA,REDACTED PERSONAL DATA
Tendring DC,http://statistics.data.gov.uk/id/local-authority-district/22UN,Life Opportunities,9920 - HRA Balance Sheet,B860 - Housing Rents - Cash,24/09/2013,2111237-1,340,REDACTED PERSONAL DATA,REDACTED PERSONAL DATA
Tendring DC,http://statistics.data.gov.uk/id/local-authority-district/22UN,Life Opportunities,H945 - Empty Homes funding,C402 - Grant payments for Empty Homes scheme,17/09/2013,1054960-1,2360,REDACTED PERSONAL DATA,REDACTED PERSONAL DATA
Tendring DC,http://statistics.data.gov.uk/id/local-authority-district/22UN,Life Opportunities,9920 - HRA Balance Sheet,B860 - Housing Rents - Cash,10/09/2013,1054944-1,27.93,REDACTED PERSONAL DATA,REDACTED PERSONAL DATA
Tendring DC,http://statistics.data.gov.uk/id/local-authority-district/22UN,Life Opportunities,5240 - HRA - Managing Tenancies,5242 - Tenant Relations,10/09/2013,1054833-1,10,REDACTED PERSONAL DATA,REDACTED PERSONAL DATA
Tendring DC,http://statistics.data.gov.uk/id/local-authority-district/22UN,Life Opportunities,8540 - Leisure Centre Clacton,9200 - Course Income,10/09/2013,1054937-1,24,REDACTED PERSONAL DATA,REDACTED PERSONAL DATA
Tendring DC,http://statistics.data.gov.uk/id/local-authority-district/22UN,Life Opportunities,5140 - Homelessness,4683 - Other Homelessness Expenses,17/09/2013,1054991-1,425,REDACTED PERSONAL DATA,REDACTED PERSONAL DATA
Tendring DC,http://statistics.data.gov.uk/id/local-authority-district/22UN,Life Opportunities,H945 - Empty Homes funding,C402 - Grant payments for Empty Homes scheme,17/09/2013,1054958-1,4500,REDACTED PERSONAL DATA,REDACTED PERSONAL DATA
Tendring DC,http://statistics.data.gov.uk/id/local-authority-district/22UN,Life Opportunities,9920 - HRA Balance Sheet,B860 - Housing Rents - Cash,17/09/2013,1054987-1,1141.8,REDACTED PERSONAL DATA,REDACTED PERSONAL DATA
Tendring DC,http://statistics.data.gov.uk/id/local-authority-district/22UN,Life Opportunities,9920 - HRA Balance Sheet,B860 - Housing Rents - Cash,17/09/2013,1054985-1,19.59,REDACTED PERSONAL DATA,REDACTED PERSONAL DATA
Tendring DC,http://statistics.data.gov.uk/id/local-authority-district/22UN,Life Opportunities,5240 - HRA - Managing Tenancies,5242 - Tenant Relations,03/09/2013,1054666-1,10,REDACTED PERSONAL DATA,REDACTED PERSONAL DATA
Tendring DC,http://statistics.data.gov.uk/id/local-authority-district/22UN,Life Opportunities,9920 - HRA Balance Sheet,B860 - Housing Rents - Cash,17/09/2013,1054986-1,238.65,REDACTED PERSONAL DATA,REDACTED PERSONAL DATA
Tendring DC,http://statistics.data.gov.uk/id/local-authority-district/22UN,Life Opportunities,9920 - HRA Balance Sheet,B860 - Housing Rents - Cash,24/09/2013,2111239-1,148.52,REDACTED PERSONAL DATA,REDACTED PERSONAL DATA
Tendring DC,http://statistics.data.gov.uk/id/local-authority-district/22UN,Life Opportunities,9920 - HRA Balance Sheet,B860 - Housing Rents - Cash,24/09/2013,2111234-1,100,REDACTED PERSONAL DATA,REDACTED PERSONAL DATA
Tendring DC,http://statistics.data.gov.uk/id/local-authority-district/22UN,Life Opportunities,9920 - HRA Balance Sheet,B860 - Housing Rents - Cash,10/09/2013,1054933-1,80.74,REDACTED PERSONAL DATA,REDACTED PERSONAL DATA
Tendring DC,http://statistics.data.gov.uk/id/local-authority-district/22UN,Life Opportunities,8540 - Leisure Centre Clacton,9200 - Course Income,10/09/2013,1054939-1,20,REDACTED PERSONAL DATA,REDACTED PERSONAL DATA
Tendring DC,http://statistics.data.gov.uk/id/local-authority-district/22UN,Life Opportunities,8540 - Leisure Centre Clacton,9200 - Course Income,10/09/2013,1054938-1,12,REDACTED PERSONAL DATA,REDACTED PERSONAL DATA
Tendring DC,http://statistics.data.gov.uk/id/local-authority-district/22UN,Life Opportunities,5240 - HRA - Managing Tenancies,5242 - Tenant Relations,10/09/2013,1054837-1,10,REDACTED PERSONAL DATA,REDACTED PERSONAL DATA
Tendring DC,http://statistics.data.gov.uk/id/local-authority-district/22UN,Life Opportunities,H920 - DFGs,C400 - Grant payments,03/09/2013,1054649-1,30,REDACTED PERSONAL DATA,REDACTED PERSONAL DATA
Tendring DC,http://statistics.data.gov.uk/id/local-authority-district/22UN,Life Opportunities,5240 - HRA - Managing Tenancies,6620 - Under Occupation Incentive Scheme,17/09/2013,1055040-1,774.1,REDACTED PERSONAL DATA,REDACTED PERSONAL DATA
Tendring DC,http://statistics.data.gov.uk/id/local-authority-district/22UN,Life Opportunities,1880 - Office Accommodation Expenses,2100 - Building Repairs,03/09/2013,1054632-1,86,2100967 - N Rudelhoff,NR ELECTRICAL
Tendring DC,http://statistics.data.gov.uk/id/local-authority-district/22UN,Life Opportunities,1880 - Office Accommodation Expenses,2100 - Building Repairs,03/09/2013,1054632-2,110,2100967 - N Rudelhoff,NR ELECTRICAL
Tendring DC,http://statistics.data.gov.uk/id/local-authority-district/22UN,Life Opportunities,1880 - Office Accommodation Expenses,2100 - Building Repairs,03/09/2013,1054632-3,113,2100967 - N Rudelhoff,NR ELECTRICAL
Tendring DC,http://statistics.data.gov.uk/id/local-authority-district/22UN,Life Opportunities,1880 - Office Accommodation Expenses,2100 - Building Repairs,03/09/2013,1054632-4,69,2100967 - N Rudelhoff,NR ELECTRICAL
Tendring DC,http://statistics.data.gov.uk/id/local-authority-district/22UN,Life Opportunities,1880 - Office Accommodation Expenses,2100 - Building Repairs,03/09/2013,1054632-5,48,2100967 - N Rudelhoff,NR ELECTRICAL
Tendring DC,http://statistics.data.gov.uk/id/local-authority-district/22UN,Life Opportunities,1860 - Depots General,2100 - Building Repairs,03/09/2013,1054632-6,69,2100967 - N Rudelhoff,NR ELECTRICAL
Tendring DC,http://statistics.data.gov.uk/id/local-authority-district/22UN,Life Opportunities,1880 - Office Accommodation Expenses,2100 - Building Repairs,24/09/2013,7009512-1,1695,2100967 - N Rudelhoff,NR ELECTICAL
Tendring DC,http://statistics.data.gov.uk/id/local-authority-district/22UN,Life Opportunities,1880 - Office Accommodation Expenses,2100 - Building Repairs,17/09/2013,2110946-1,322.29,2102791 - Nantmor Blinds Ltd,Nantmor Blinds
Tendring DC,http://statistics.data.gov.uk/id/local-authority-district/22UN,Life Opportunities,1240 - Housing Services Service Unit,3302 - Car Allowances - Officers,03/09/2013,1054654-1,60,REDACTED PERSONAL DATA,REDACTED PERSONAL DATA
Tendring DC,http://statistics.data.gov.uk/id/local-authority-district/22UN,Life Opportunities,7600 - Tourist Information Centres,9356 - Commission Sales,10/09/2013,2110900-1,1426.74,2110032 - National Express Ltd,National Express Aug 13
Tendring DC,http://statistics.data.gov.uk/id/local-authority-district/22UN,Life Opportunities,8510 - Dovercourt Swimming Pool & All Weather Facilities,4880 - Subscriptions Paid,03/09/2013,1054810-1,101.4,2113301 - Newsquest (Essex) Ltd,DOVERCOURT POOL - PAPER
Tendring DC,http://statistics.data.gov.uk/id/local-authority-district/22UN,Life Opportunities,6160 - Princes Theatre,5160 - Advertising,10/09/2013,1054929-1,170.1,2100989 - Newsquest (London) Ltd,CLACTON + FRINTON GAZETTE 22/8
Tendring DC,http://statistics.data.gov.uk/id/local-authority-district/22UN,Life Opportunities,6160 - Princes Theatre,5160 - Advertising,10/09/2013,1054930-1,195,2100989 - Newsquest (London) Ltd,EVENING GAZETTE 23/8
Tendring DC,http://statistics.data.gov.uk/id/local-authority-district/22UN,Life Opportunities,5820 - Harwich Sports Centre,4597 - Hired Services - Payments to Contractors,17/09/2013,2110960-1,52.5,2112920 - Nigel Bruce Electrical Services,Electrical Repairs
Tendring DC,http://statistics.data.gov.uk/id/local-authority-district/22UN,Life Opportunities,5860 - Manningtree Sports Centre,2100 - Building Repairs,24/09/2013,7700579-1,829.17,2112920 - Nigel Bruce Electrical Services,NEW HAND DRYERS X 4
Tendring DC,http://statistics.data.gov.uk/id/local-authority-district/22UN,Life Opportunities,5860 - Manningtree Sports Centre,2100 - Building Repairs,24/09/2013,7700580-1,237.83,2112920 - Nigel Bruce Electrical Services,ELECTRICAL REPAIRS
Tendring DC,http://statistics.data.gov.uk/id/local-authority-district/22UN,Life Opportunities,5260 - HRA - Rent Collection And Accounting,4757 - IT External Charges,17/09/2013,2110932-1,250,2105490 - Northgate Housing User Group,Northgate User Group Fees 1/4/13 - 31/3/14
Tendring DC,http://statistics.data.gov.uk/id/local-authority-district/22UN,Life Opportunities,4960 - Rent Allowances,4753 - Computer - Application Software,10/09/2013,1054875-1,465,2101204 - Northgate Information Solutions UK Ltd,ATLAS BENCAP LEG 2013 2ND INSTALMENT
Tendring DC,http://statistics.data.gov.uk/id/local-authority-district/22UN,Life Opportunities,6160 - Princes Theatre,4400 - Maintenance Under Service Agreements,10/09/2013,1054923-1,315.78,2104748 - Novar Systems Ltd,SERVICE CONTRACT 13-14
Tendring DC,http://statistics.data.gov.uk/id/local-authority-district/22UN,Life Opportunities,1880 - Office Accommodation Expenses,2100 - Building Repairs,03/09/2013,1054633-1,200,2102096 - Nu-Life Cleaning,NU LIFE CLEANING
Tendring DC,http://statistics.data.gov.uk/id/local-authority-district/22UN,Life Opportunities,1880 - Office Accommodation Expenses,2100 - Building Repairs,03/09/2013,1054633-2,210,2102096 - Nu-Life Cleaning,NU LIFE CLEANING
Tendring DC,http://statistics.data.gov.uk/id/local-authority-district/22UN,Life Opportunities,1880 - Office Accommodation Expenses,2100 - Building Repairs,03/09/2013,1054633-3,45,2102096 - Nu-Life Cleaning,NU LIFE CLEANING
Tendring DC,http://statistics.data.gov.uk/id/local-authority-district/22UN,Life Opportunities,1860 - Depots General,2100 - Building Repairs,03/09/2013,1054633-4,45,2102096 - Nu-Life Cleaning,NU LIFE CLEANING
Tendring DC,http://statistics.data.gov.uk/id/local-authority-district/22UN,Life Opportunities,1880 - Office Accommodation Expenses,2100 - Building Repairs,03/09/2013,1054633-5,15,2102096 - Nu-Life Cleaning,NU LIFE CLEANING
Tendring DC,http://statistics.data.gov.uk/id/local-authority-district/22UN,Life Opportunities,1880 - Office Accommodation Expenses,2100 - Building Repairs,03/09/2013,1054633-6,15,2102096 - Nu-Life Cleaning,NU LIFE CLEANING
Tendring DC,http://statistics.data.gov.uk/id/local-authority-district/22UN,Life Opportunities,1880 - Office Accommodation Expenses,2100 - Building Repairs,03/09/2013,1054633-7,20,2102096 - Nu-Life Cleaning,NU LIFE CLEANING
Tendring DC,http://statistics.data.gov.uk/id/local-authority-district/22UN,Life Opportunities,5220 - HRA - Policy & Management,5253 - HRA Health & Safety Expenses,03/09/2013,1054634-1,50,2102096 - Nu-Life Cleaning,NU LIFE CLEANING
Tendring DC,http://statistics.data.gov.uk/id/local-authority-district/22UN,Life Opportunities,1880 - Office Accommodation Expenses,2100 - Building Repairs,03/09/2013,1054635-1,30,2102096 - Nu-Life Cleaning,NU LIFE CLEANING
Tendring DC,http://statistics.data.gov.uk/id/local-authority-district/22UN,Life Opportunities,1880 - Office Accommodation Expenses,2100 - Building Repairs,03/09/2013,1054636-1,50,2102096 - Nu-Life Cleaning,NU LIFE CLEANING
Tendring DC,http://statistics.data.gov.uk/id/local-authority-district/22UN,Life Opportunities,5360 - HRA - Sheltered Units,2702 - Window Cleaning,03/09/2013,1054777-1,1350,2102096 - Nu-Life Cleaning,APRIL-JUNE CLEANING SHELTERED SCHEMES
Tendring DC,http://statistics.data.gov.uk/id/local-authority-district/22UN,Life Opportunities,5360 - HRA - Sheltered Units,2706 - Communal Areas Cleaning Expenses,03/09/2013,1054778-1,200,2102096 - Nu-Life Cleaning,APRIL-JUNE LITTER PICKING SHELETERED SCHEME 2013
Tendring DC,http://statistics.data.gov.uk/id/local-authority-district/22UN,Life Opportunities,H920 - DFGs,C400 - Grant payments,03/09/2013,1054644-1,367,REDACTED PERSONAL DATA,REDACTED PERSONAL DATA
Tendring DC,http://statistics.data.gov.uk/id/local-authority-district/22UN,Life Opportunities,7620 - Air Show,4628 - Hired Services - Air Displays,24/09/2013,2111241-1,2639,REDACTED PERSONAL DATA,REDACTED PERSONAL DATA
Tendring DC,http://statistics.data.gov.uk/id/local-authority-district/22UN,Life Opportunities,5820 - Harwich Sports Centre,5311 - General Provisions - Vending,03/09/2013,1054698-1,66.52,2101083 - Osgood Smith,CANTEEN GOODS
Tendring DC,http://statistics.data.gov.uk/id/local-authority-district/22UN,Life Opportunities,8520 - Frinton & Walton Swimming Pool,5311 - General Provisions - Vending,03/09/2013,1054784-1,180.98,2101083 - Osgood Smith,FWSP-VENDING
Tendring DC,http://statistics.data.gov.uk/id/local-authority-district/22UN,Life Opportunities,8520 - Frinton & Walton Swimming Pool,5311 - General Provisions - Vending,03/09/2013,1054785-1,76.56,2101083 - Osgood Smith,FWSP-VENDING
Tendring DC,http://statistics.data.gov.uk/id/local-authority-district/22UN,Life Opportunities,5860 - Manningtree Sports Centre,5311 - General Provisions - Vending,10/09/2013,1054884-1,18.38,2101083 - Osgood Smith,VENDING SUPPLIES
Tendring DC,http://statistics.data.gov.uk/id/local-authority-district/22UN,Life Opportunities,5860 - Manningtree Sports Centre,5311 - General Provisions - Vending,10/09/2013,1054884-2,-5,2101083 - Osgood Smith,VENDING SUPPLIES
Tendring DC,http://statistics.data.gov.uk/id/local-authority-district/22UN,Life Opportunities,5860 - Manningtree Sports Centre,5311 - General Provisions - Vending,10/09/2013,1054885-1,209.85,2101083 - Osgood Smith,VENDING SUPPLIES
Tendring DC,http://statistics.data.gov.uk/id/local-authority-district/22UN,Life Opportunities,8520 - Frinton & Walton Swimming Pool,5311 - General Provisions - Vending,10/09/2013,1054903-1,75.57,2101083 - Osgood Smith,OSGOOD SMITH
Tendring DC,http://statistics.data.gov.uk/id/local-authority-district/22UN,Life Opportunities,8520 - Frinton & Walton Swimming Pool,5311 - General Provisions - Vending,10/09/2013,1054904-1,127.4,2101083 - Osgood Smith,OSGOOD SMITH
Tendring DC,http://statistics.data.gov.uk/id/local-authority-district/22UN,Life Opportunities,8520 - Frinton & Walton Swimming Pool,5311 - General Provisions - Vending,24/09/2013,1055102-1,73.62,2101083 - Osgood Smith,Osgood Smith
Tendring DC,http://statistics.data.gov.uk/id/local-authority-district/22UN,Life Opportunities,8520 - Frinton & Walton Swimming Pool,5311 - General Provisions - Vending,10/09/2013,2110804-1,27.71,2101083 - Osgood Smith,Canteen Goods
Tendring DC,http://statistics.data.gov.uk/id/local-authority-district/22UN,Life Opportunities,8520 - Frinton & Walton Swimming Pool,5311 - General Provisions - Vending,10/09/2013,2110853-1,61.24,REDACTED PERSONAL DATA,REDACTED PERSONAL DATA
Tendring DC,http://statistics.data.gov.uk/id/local-authority-district/22UN,Life Opportunities,8520 - Frinton & Walton Swimming Pool,5311 - General Provisions - Vending,10/09/2013,2110854-1,14.89,REDACTED PERSONAL DATA,REDACTED PERSONAL DATA
Tendring DC,http://statistics.data.gov.uk/id/local-authority-district/22UN,Life Opportunities,5800 - Brightlingsea Sports Centre,5316 - General Provisions,17/09/2013,2110956-1,110.81,2101083 - Osgood Smith,Osgood Smith
Tendring DC,http://statistics.data.gov.uk/id/local-authority-district/22UN,Life Opportunities,5820 - Harwich Sports Centre,5311 - General Provisions - Vending,17/09/2013,2110957-1,51.6,2101083 - Osgood Smith,Canteen Goods
Tendring DC,http://statistics.data.gov.uk/id/local-authority-district/22UN,Life Opportunities,8510 - Dovercourt Swimming Pool & All Weather Facilities,5311 - General Provisions - Vending,24/09/2013,7700566-1,93.56,2101083 - Osgood Smith,DOVERCOURT POOL - SWEETS
Tendring DC,http://statistics.data.gov.uk/id/local-authority-district/22UN,Life Opportunities,8510 - Dovercourt Swimming Pool & All Weather Facilities,5311 - General Provisions - Vending,24/09/2013,7700567-1,38.97,2101083 - Osgood Smith,DOVERCOURT POOL - SWEETS
Tendring DC,http://statistics.data.gov.uk/id/local-authority-district/22UN,Life Opportunities,8510 - Dovercourt Swimming Pool & All Weather Facilities,5311 - General Provisions - Vending,24/09/2013,7700567-2,3.53,2101083 - Osgood Smith,DOVERCOURT POOL - SWEETS
Tendring DC,http://statistics.data.gov.uk/id/local-authority-district/22UN,Life Opportunities,5820 - Harwich Sports Centre,5311 - General Provisions - Vending,24/09/2013,7700569-1,68.26,2101083 - Osgood Smith,CANTEEN GOODS
Tendring DC,http://statistics.data.gov.uk/id/local-authority-district/22UN,Life Opportunities,5480 - HRA - Repair & Maintenance,2078 - Gas Service Contract Other Refurbishment/Repairs (,03/09/2013,1054776-1,831.24,2113206 - P&R Installation Company Ltd,BELMANS COURT
Tendring DC,http://statistics.data.gov.uk/id/local-authority-district/22UN,Life Opportunities,5480 - HRA - Repair & Maintenance,2077 - Gas Service Contract  Servicing/Testing (Large Sca,24/09/2013,2111339-1,2873.56,2113206 - P&R Installation Company Ltd,Mechanical Svs Val 2
Tendring DC,http://statistics.data.gov.uk/id/local-authority-district/22UN,Life Opportunities,5480 - HRA - Repair & Maintenance,2078 - Gas Service Contract Other Refurbishment/Repairs (,24/09/2013,2111339-2,971.51,2113206 - P&R Installation Company Ltd,Mechanical Svs Val 2
Tendring DC,http://statistics.data.gov.uk/id/local-authority-district/22UN,Life Opportunities,5480 - HRA - Repair & Maintenance,2077 - Gas Service Contract  Servicing/Testing (Large Sca,24/09/2013,2111340-1,2873.59,2113206 - P&R Installation Company Ltd,Mechanical Svs
Tendring DC,http://statistics.data.gov.uk/id/local-authority-district/22UN,Life Opportunities,5480 - HRA - Repair & Maintenance,2078 - Gas Service Contract Other Refurbishment/Repairs (,24/09/2013,2111340-2,998,2113206 - P&R Installation Company Ltd,Mechanical Svs
Tendring DC,http://statistics.data.gov.uk/id/local-authority-district/22UN,Life Opportunities,5480 - HRA - Repair & Maintenance,2077 - Gas Service Contract  Servicing/Testing (Large Sca,24/09/2013,2111341-1,2873.61,2113206 - P&R Installation Company Ltd,Mechanical Svs Val 4
Tendring DC,http://statistics.data.gov.uk/id/local-authority-district/22UN,Life Opportunities,5480 - HRA - Repair & Maintenance,2078 - Gas Service Contract Other Refurbishment/Repairs (,24/09/2013,2111341-2,4346,2113206 - P&R Installation Company Ltd,Mechanical Svs Val 4
Tendring DC,http://statistics.data.gov.uk/id/local-authority-district/22UN,Life Opportunities,H920 - DFGs,C400 - Grant payments,03/09/2013,1054653-1,2676.75,REDACTED PERSONAL DATA,REDACTED PERSONAL DATA
Tendring DC,http://statistics.data.gov.uk/id/local-authority-district/22UN,Life Opportunities,8520 - Frinton & Walton Swimming Pool,2100 - Building Repairs,10/09/2013,2110846-1,57.95,REDACTED PERSONAL DATA,REDACTED PERSONAL DATA
Tendring DC,http://statistics.data.gov.uk/id/local-authority-district/22UN,Life Opportunities,5480 - HRA - Repair & Maintenance,2017 - Mechanical Equipment /Extract Fans,10/09/2013,1054852-1,395,REDACTED PERSONAL DATA,REDACTED PERSONAL DATA
Tendring DC,http://statistics.data.gov.uk/id/local-authority-district/22UN,Life Opportunities,5480 - HRA - Repair & Maintenance,2017 - Mechanical Equipment /Extract Fans,10/09/2013,1054852-2,489,REDACTED PERSONAL DATA,REDACTED PERSONAL DATA
Tendring DC,http://statistics.data.gov.uk/id/local-authority-district/22UN,Life Opportunities,5480 - HRA - Repair & Maintenance,2017 - Mechanical Equipment /Extract Fans,10/09/2013,1054853-1,540,REDACTED PERSONAL DATA,REDACTED PERSONAL DATA
Tendring DC,http://statistics.data.gov.uk/id/local-authority-district/22UN,Life Opportunities,5480 - HRA - Repair & Maintenance,2017 - Mechanical Equipment /Extract Fans,10/09/2013,1054853-2,464,REDACTED PERSONAL DATA,REDACTED PERSONAL DATA
Tendring DC,http://statistics.data.gov.uk/id/local-authority-district/22UN,Life Opportunities,5480 - HRA - Repair & Maintenance,2017 - Mechanical Equipment /Extract Fans,24/09/2013,2111297-1,831,2101519 - Paul N Smith,15 The Haven
Tendring DC,http://statistics.data.gov.uk/id/local-authority-district/22UN,Life Opportunities,5480 - HRA - Repair & Maintenance,2017 - Mechanical Equipment /Extract Fans,24/09/2013,2111297-2,537,2101519 - Paul N Smith,15 The Haven
Tendring DC,http://statistics.data.gov.uk/id/local-authority-district/22UN,Life Opportunities,5860 - Manningtree Sports Centre,2100 - Building Repairs,10/09/2013,1054910-1,163,2110984 - Paul Wareing Plumbing & Heating Ltd,NEW TAP + UNBLOCK SINK
Tendring DC,http://statistics.data.gov.uk/id/local-authority-district/22UN,Life Opportunities,7620 - Air Show,4628 - Hired Services - Air Displays,17/09/2013,1055039-1,1500,2113333 - Pelham Limited,ONE THOUSAND EIGHT HUNDRED POUNDS
Tendring DC,http://statistics.data.gov.uk/id/local-authority-district/22UN,Life Opportunities,4360 - Development Control - Chargeable Account,4469 - Other Non - Legal Professional Services,24/09/2013,7700554-1,653.4,2109067 - Peter J Chillingworth,WICK FARM/PARKERS FARM
Tendring DC,http://statistics.data.gov.uk/id/local-authority-district/22UN,Life Opportunities,5880 - Management Of Sport & Leisure Facilities,5166 - Marketing and Promotion,24/09/2013,7009517-1,175,2101097 - Peter Lockyer Advertising Ltd,ADVERT ARTWORK
Tendring DC,http://statistics.data.gov.uk/id/local-authority-district/22UN,Life Opportunities,7620 - Air Show,4628 - Hired Services - Air Displays,17/09/2013,1054967-1,850,2113332 - Peter Troy-Davies,AUTOGYRO DISPLAY
Tendring DC,http://statistics.data.gov.uk/id/local-authority-district/22UN,Life Opportunities,5420 - HRA - Communal Cleaning,2706 - Communal Areas Cleaning Expenses,03/09/2013,1054780-1,3521.58,2107884 - Pinnacle Essex,CONTRACT CLEANING AUG 13
Tendring DC,http://statistics.data.gov.uk/id/local-authority-district/22UN,Life Opportunities,5240 - HRA - Managing Tenancies,5248 - Estate Management Expenses,10/09/2013,1054915-1,96,REDACTED PERSONAL DATA,REDACTED PERSONAL DATA
Tendring DC,http://statistics.data.gov.uk/id/local-authority-district/22UN,Life Opportunities,7620 - Air Show,4094 - Other Equipment Hire/Leasing,10/09/2013,2110842-1,3150,REDACTED PERSONAL DATA,REDACTED PERSONAL DATA
Tendring DC,http://statistics.data.gov.uk/id/local-authority-district/22UN,Life Opportunities,5480 - HRA - Repair & Maintenance,2090 - Fencing,03/09/2013,1054707-1,130.1,REDACTED PERSONAL DATA,REDACTED PERSONAL DATA
Tendring DC,http://statistics.data.gov.uk/id/local-authority-district/22UN,Life Opportunities,5480 - HRA - Repair & Maintenance,2090 - Fencing,10/09/2013,1054921-1,540.35,REDACTED PERSONAL DATA,REDACTED PERSONAL DATA
Tendring DC,http://statistics.data.gov.uk/id/local-authority-district/22UN,Life Opportunities,5480 - HRA - Repair & Maintenance,2090 - Fencing,10/09/2013,2110848-1,639.66,REDACTED PERSONAL DATA,REDACTED PERSONAL DATA
Tendring DC,http://statistics.data.gov.uk/id/local-authority-district/22UN,Life Opportunities,5480 - HRA - Repair & Maintenance,2090 - Fencing,10/09/2013,2110849-1,321.75,REDACTED PERSONAL DATA,REDACTED PERSONAL DATA
Tendring DC,http://statistics.data.gov.uk/id/local-authority-district/22UN,Life Opportunities,5480 - HRA - Repair & Maintenance,2090 - Fencing,10/09/2013,2110850-1,74.6,REDACTED PERSONAL DATA,REDACTED PERSONAL DATA
Tendring DC,http://statistics.data.gov.uk/id/local-authority-district/22UN,Life Opportunities,6160 - Princes Theatre,4622 - Hired Services - Artistes and Production Companies,24/09/2013,2111169-1,2668.75,2111649 - Polka Dot Pantomimes,1st Payment Peter Pan to 2013/14
Tendring DC,http://statistics.data.gov.uk/id/local-authority-district/22UN,Life Opportunities,7620 - Air Show,4800 - Hospitality,17/09/2013,2111071-1,816.06,2110447 - Premier Inn Business Account,Hotel Bookings for Airshow Flight Teams
Tendring DC,http://statistics.data.gov.uk/id/local-authority-district/22UN,Life Opportunities,"1580 - Benefits, Revenues and Customer Contact SU",4094 - Other Equipment Hire/Leasing,24/09/2013,7700559-1,56.4,2101111 - Pressure Coolers Limited,WATER MACHINE
Tendring DC,http://statistics.data.gov.uk/id/local-authority-district/22UN,Life Opportunities,5480 - HRA - Repair & Maintenance,2012 - Responsive Maintenance - Clearance And Cleaning,10/09/2013,2110829-1,50,2107707 - Professional Cleaning Services (Essex) Ltd,12 Cambridge Ct
Tendring DC,http://statistics.data.gov.uk/id/local-authority-district/22UN,Life Opportunities,5480 - HRA - Repair & Maintenance,2012 - Responsive Maintenance - Clearance And Cleaning,10/09/2013,2110830-1,50,2107707 - Professional Cleaning Services (Essex) Ltd,33-52 Grove Ave
Tendring DC,http://statistics.data.gov.uk/id/local-authority-district/22UN,Life Opportunities,5480 - HRA - Repair & Maintenance,2012 - Responsive Maintenance - Clearance And Cleaning,10/09/2013,2110831-1,60,2107707 - Professional Cleaning Services (Essex) Ltd,21 Polstead Way
Tendring DC,http://statistics.data.gov.uk/id/local-authority-district/22UN,Life Opportunities,5480 - HRA - Repair & Maintenance,2012 - Responsive Maintenance - Clearance And Cleaning,10/09/2013,2110832-1,85,2107707 - Professional Cleaning Services (Essex) Ltd,51 St Clares Road
Tendring DC,http://statistics.data.gov.uk/id/local-authority-district/22UN,Life Opportunities,H800 - Structural Repairs,C200 - Main Contractor,17/09/2013,2111106-1,300,REDACTED PERSONAL DATA,REDACTED PERSONAL DATA
Tendring DC,http://statistics.data.gov.uk/id/local-authority-district/22UN,Life Opportunities,6160 - Princes Theatre,5160 - Advertising,10/09/2013,2110839-1,423,REDACTED PERSONAL DATA,REDACTED PERSONAL DATA
Tendring DC,http://statistics.data.gov.uk/id/local-authority-district/22UN,Life Opportunities,6160 - Princes Theatre,5160 - Advertising,24/09/2013,2111142-1,276,2107459 - Prospector,Distribution for Snow White & Jim Davidson 2013
Tendring DC,http://statistics.data.gov.uk/id/local-authority-district/22UN,Life Opportunities,5800 - Brightlingsea Sports Centre,2904 - Premises Licensing - Other,24/09/2013,7700571-1,2819.87,2103406 - PRS,PRS ROYALTIES 13/14
Tendring DC,http://statistics.data.gov.uk/id/local-authority-district/22UN,Life Opportunities,8540 - Leisure Centre Clacton,2904 - Premises Licensing - Other,24/09/2013,7700571-2,7347.48,2103406 - PRS,PRS ROYALTIES 13/14
Tendring DC,http://statistics.data.gov.uk/id/local-authority-district/22UN,Life Opportunities,5820 - Harwich Sports Centre,2904 - Premises Licensing - Other,24/09/2013,7700571-3,453.4,2103406 - PRS,PRS ROYALTIES 13/14
Tendring DC,http://statistics.data.gov.uk/id/local-authority-district/22UN,Life Opportunities,5860 - Manningtree Sports Centre,2904 - Premises Licensing - Other,24/09/2013,7700571-4,950.92,2103406 - PRS,PRS ROYALTIES 13/14
Tendring DC,http://statistics.data.gov.uk/id/local-authority-district/22UN,Life Opportunities,8510 - Dovercourt Swimming Pool & All Weather Facilities,2904 - Premises Licensing - Other,24/09/2013,7700572-1,499.91,2103406 - PRS,PRS ROYALTIES 13/14
Tendring DC,http://statistics.data.gov.uk/id/local-authority-district/22UN,Life Opportunities,8520 - Frinton & Walton Swimming Pool,2904 - Premises Licensing - Other,24/09/2013,7700572-2,426.55,2103406 - PRS,PRS ROYALTIES 13/14
Tendring DC,http://statistics.data.gov.uk/id/local-authority-district/22UN,Life Opportunities,5140 - Homelessness,4683 - Other Homelessness Expenses,17/09/2013,1054993-1,450,REDACTED PERSONAL DATA,REDACTED PERSONAL DATA
Tendring DC,http://statistics.data.gov.uk/id/local-authority-district/22UN,Life Opportunities,7600 - Tourist Information Centres,2100 - Building Repairs,24/09/2013,2111184-1,275,2101103 - Quality Air UK Ltd,Service of Tourist Info Air Con Unit
